{"text_format":"1","workbook":"xlsx","n_sheets":15,"sheets":["Notes","OPEN K1W","OPEN C1M","OPEN C2","OPEN TEAMS","All Res","Start","Prizes","Promotion_Certificate","BLANK","BLANK MULTI","Static Data","Bibs","Clubs","PrizesSetup"],"not_rendered":{"charts":0,"images":8,"macros":1,"external_links":3,"defined_names":98,"comments":0,"pivot_tables":0},"unopened":[],"bounds":{"document_bytes":16777216,"sheet_cells":100000,"rows_first":2000,"rows_last":500,"rows_between":2000,"halvings":0,"cell_chars":16384,"cell_head_chars":4096},"cells_cut":0,"cells_raw":0,"read":"whole","date_system":"1900"}

{"sheet":"Notes","index":0,"n_rows":8,"n_cols":3,"rows_kept":8,"cut":false,"hidden":false,"merged":[]}
[]
[null,null,"Simply Slalom"]
[null,null,2023]
[]
[null,null,"StartUp"]
[null,null,"The are two methods to start the programme, via the adjacent button or using the <CTRL><SHIFT>r key combination.  The latter is useful as it can be used from anywhere in the workbook to show the main menu. "]
[null,null,"Support"]
[null,null,"If you have any suggestions for improvements or encounter any issues when running the program please email simplyslalom@icloud.com"]

{"sheet":"OPEN K1W","index":1,"n_rows":34,"n_cols":28,"rows_kept":34,"cut":false,"hidden":false,"merged":[]}
["Pos","Ubib","RTC","Bib","Name","Cat","Club","Cls","Run 1 Time","Run 1 Pen","Run 1 Total","Run 2 Time","Run 2 Pen","Run 2 Total","Best","Wst","YOB","Sponsor","run1","H",30,0,60,0,null,null,"Pts","Alloc"]
[1,8102,null,3,"Phoebe Spicer",null,"East London",null,91.5,0,91.5,93.5,4,97.5,91.5,97.5,null,null,null,null,null,null,null,null,"0,0,0,0,0,0,0,0,0,0,0,0,0,0,0,0,0,0,0","0,0,0,0,0,0,0,0,0,2,0,0,0,0,2,0,0,0,0"]
[2,8120,null,21,"Macy Kang",null,"Nottingham",null,92.6,0,92.6,95.4,2,97.4,92.6,97.4,null,null,null,null,null,null,null,null,"0,0,0,0,0,0,0,0,0,0,0,0,0,0,0,0,0,0,0","0,0,0,0,0,0,0,0,0,0,0,0,0,0,0,0,0,0,2"]
[3,8123,null,24,"Rachel Ellis",null,"Nottingham",null,101.7,0,101.7,100.5,0,100.5,100.5,101.7,null,null,null,null,null,null,null,null,"0,0,0,0,0,0,0,0,0,0,0,0,0,0,0,0,0,0,0","0,0,0,0,0,0,0,0,0,0,0,0,0,0,0,0,0,0,0"]
[4,8124,null,25,"Tazmin Brown",null,"Nottingham",null,102,6,108,98.6,2,100.6,100.6,108,null,null,null,null,null,null,null,null,"2,0,0,0,0,0,0,0,0,0,0,0,0,0,2,0,0,0,2","0,0,0,0,0,0,0,0,0,0,2,0,0,0,0,0,0,0,0"]
[5,8128,null,29,"Katie Shattock",null,"Nottingham Trent",null,102,0,102,100.1,4,104.1,102,104.1,null,null,null,null,null,null,null,null,"0,0,0,0,0,0,0,0,0,0,0,0,0,0,0,0,0,0,0","0,2,0,0,0,0,0,0,0,0,0,0,0,0,0,2,0,0,0"]
[6,8127,null,28,"Hannah Rhodes",null,"Nottingham Trent",null,103.5,2,105.5,100.8,2,102.8,102.8,105.5,null,null,null,null,null,null,null,null,"0,0,0,0,0,0,0,0,0,2,0,0,0,0,0,0,0,0,0","0,0,0,0,0,0,0,0,0,0,0,0,2,0,0,0,0,0,0"]
[7,8136,null,37,"Leah Cameron",null,"UHI",null,102.2,2,104.2,103.8,2,105.8,104.2,105.8,null,null,null,null,null,null,null,null,"2,0,0,0,0,0,0,0,0,0,0,0,0,0,0,0,0,0,0","0,2,0,0,0,0,0,0,0,0,0,0,0,0,0,0,0,0,0"]
[8,8132,null,33,"Gracie Gormal",null,"Strathclyde",null,108.3,0,108.3,103.6,8,111.6,108.3,111.6,null,null,null,null,null,null,null,null,"0,0,0,0,0,0,0,0,0,0,0,0,0,0,0,0,0,0,0","2,0,0,0,2,0,0,0,0,2,0,0,0,0,0,2,0,0,0"]
[9,8116,null,17,"Aimee Collins",null,"Nottingham",null,108.6,0,108.6,113.4,2,115.4,108.6,115.4,null,null,null,null,null,null,null,null,"0,0,0,0,0,0,0,0,0,0,0,0,0,0,0,0,0,0,0","0,0,0,0,0,0,0,0,0,2,0,0,0,0,0,0,0,0,0"]
[10,8109,null,10,"Catrin Schröder",null,"Loughborough",null,105.5,4,109.5,108.4,2,110.4,109.5,110.4,null,null,null,null,null,null,null,null,"0,2,0,0,0,0,0,0,0,0,0,0,0,0,2,0,0,0,0","0,0,0,0,0,0,0,0,0,2,0,0,0,0,0,0,0,0,0"]
[11,8130,null,31,"Molly Sandercock",null,"Nottingham Trent",null,112.9,2,114.9,111.7,2,113.7,113.7,114.9,null,null,null,null,null,null,null,null,"0,0,2,0,0,0,0,0,0,0,0,0,0,0,0,0,0,0,0","0,0,0,0,0,0,0,0,0,0,2,0,0,0,0,0,0,0,0"]
[12,8133,null,34,"Laura Milne",null,"Strathclyde",null,121.2,2,123.2,115.5,0,115.5,115.5,123.2,null,null,null,null,null,null,null,null,"0,0,0,0,0,0,0,0,0,0,2,0,0,0,0,0,0,0,0","0,0,0,0,0,0,0,0,0,0,0,0,0,0,0,0,0,0,0"]
[13,8129,null,30,"Kerry Christie",null,"Nottingham Trent",null,132.30000000000001,8,140.30000000000001,135.69999999999999,10,145.69999999999999,140.30000000000001,145.69999999999999,null,null,null,null,null,null,null,null,"0,0,0,0,0,0,2,0,0,2,0,0,0,0,0,2,0,0,2","0,0,2,0,0,0,2,0,0,0,2,2,0,0,0,0,0,0,2"]
[14,8100,null,1,"Katie Ricketts",null,"Cardiff",null,148.30000000000001,8,156.30000000000001,148.6,6,154.6,154.6,156.30000000000001,null,null,null,null,null,null,null,null,"2,2,0,0,0,0,0,0,0,0,0,0,0,0,2,0,0,2,0","0,2,0,2,0,0,0,0,0,0,2,0,0,0,0,0,0,0,0"]
[15,8101,null,2,"Tamsin Howe",null,"Cardiff",null,172.3,60,232.3,175.4,6,181.4,181.4,232.3,null,null,null,null,null,null,null,null,"0,2,2,0,0,2,0,50,0,0,2,0,0,0,0,0,0,2,0","0,0,0,0,0,0,0,0,0,2,0,0,0,0,0,0,2,2,0"]
[16,8115,null,16,"Sophie Young",null,"Loughborough",null,153.30000000000001,204,357.3,160,104,264,264,357.3,null,null,null,null,null,null,null,null,"0,2,50,50,2,50,0,0,0,0,0,0,0,0,0,0,0,0,50","0,50,50,0,0,0,0,0,0,0,0,0,2,0,0,0,0,0,2"]
[17,8108,null,11,"Amy Thomson",null,"Loughborough",null,164.9,252,416.9,173.6,156,329.6,329.6,416.9,null,null,null,null,null,null,null,null,"0,50,50,0,0,0,0,50,0,0,0,2,0,0,0,50,0,0,50","0,50,2,0,0,0,0,0,0,50,0,2,0,0,0,2,0,0,50"]
[18,8125,null,26,"Zoë Leforestier",null,"Nottingham",null,109,466,575,150.5,208,358.5,358.5,575,null,null,null,null,null,null,null,null,"50,2,0,50,2,2,50,0,2,50,50,2,50,2,50,2,2,50,50","50,0,0,50,0,0,0,2,0,50,2,2,0,0,50,0,0,0,2"]
[19,8121,null,22,"Milly Mercer",null,"Nottingham",null,124.1,508,632.1,123.6,458,581.6,581.6,632.1,null,null,null,null,null,null,null,null,"50,2,50,2,50,0,0,50,50,50,50,2,2,0,50,0,0,50,50","50,0,50,50,2,50,0,2,50,50,2,0,0,2,50,0,0,50,50"]
[20,8119,null,20,"Katie Pocklington",null,"Nottingham",null,"DNF",null,null,107.3,556,663.3,663.3,996,null,null,null,null,null,null,null,null,null,"50,2,50,50,50,2,0,50,50,50,50,0,50,0,50,0,0,50,2"]
[21,8113,null,14,"Isobel Harris",null,"Loughborough",null,83.5,900,983.5,77.8,700,777.8,777.8,983.5,null,null,null,null,null,null,null,null,"50,50,50,50,50,50,50,50,0,50,50,50,50,50,50,50,50,50,50","50,50,50,50,50,50,50,0,50,50,50,50,0,0,50,0,0,50,50"]
[22,8111,null,12,"Isabel Jones",null,"Loughborough",null,88.9,852,940.9,"DNF",null,null,940.9,996,null,null,null,null,null,null,null,null,"50,0,50,50,50,2,50,50,50,50,50,50,50,50,50,50,50,50,50"]
[23,8118,null,19,"Kate Hipkins",null,"Nottingham",null,"DNF",null,null,null,null,null,996,999]
[24,8135,null,36,"Lois Leaver",null,"UCL"]
["=",8134,null,35,"Jasmine Thompson",null,"Sunderland"]
["=",8131,null,32,"Ruby Kendle",null,"Nottingham Trent"]
["=",8126,null,27,"Emma Christie",null,"Nottingham Trent"]
["=",8122,null,23,"Poppy Ward",null,"Nottingham"]
["=",8117,null,18,"Bea Clark",null,"Nottingham"]
["=",8114,null,15,"Natasha Marks",null,"Loughborough"]
["=",8112,null,13,"Isabelle Tall",null,"Loughborough"]
["=",8110,null,9,"Cerys Huxford",null,"Loughborough"]
["=",8103,null,4,"Joely Walling",null,"Hertfordshire"]

{"sheet":"OPEN C1M","index":2,"n_rows":20,"n_cols":28,"rows_kept":20,"cut":false,"hidden":false,"merged":[]}
["Pos","Ubib","RTC","Bib","Name","Cat","Club","Cls","Run 1 Time","Run 1 Pen","Run 1 Total","Run 2 Time","Run 2 Pen","Run 2 Total","Best","Wst","YOB","Sponsor","run1","H",30,0,60,0,null,null,"Pts","Alloc"]
[1,8208,null,20,"Edward Mcdonald",null,"Nottingham",null,91.9,0,91.9,90.6,0,90.6,90.6,91.9,null,null,null,null,null,null,null,null,"0,0,0,0,0,0,0,0,0,0,0,0,0,0,0,0,0,0,0","0,0,0,0,0,0,0,0,0,0,0,0,0,0,0,0,0,0,0"]
[2,8218,null,30,"Vittorio Pezzaioli",null,"Strathclyde",null,96.6,2,98.6,94,0,94,94,98.6,null,null,null,null,null,null,null,null,"0,0,0,0,0,0,0,0,0,2,0,0,0,0,0,0,0,0,0","0,0,0,0,0,0,0,0,0,0,0,0,0,0,0,0,0,0,0"]
[3,8213,null,25,"Toby Aston",null,"Nottingham Trent",null,95.1,2,97.1,93.4,2,95.4,95.4,97.1,null,null,null,null,null,null,null,null,"2,0,0,0,0,0,0,0,0,0,0,0,0,0,0,0,0,0,0","0,0,0,0,0,0,0,0,0,0,0,0,0,0,0,0,0,2,0"]
[4,8212,null,24,"Philip Smith",null,"Nottingham Trent",null,93.7,2,95.7,95.6,2,97.6,95.7,97.6,null,null,null,null,null,null,null,null,"2,0,0,0,0,0,0,0,0,0,0,0,0,0,0,0,0,0,0","0,0,0,0,0,0,0,0,0,2,0,0,0,0,0,0,0,0,0"]
[5,8216,null,28,"Aaron Holmes",null,"Strathclyde",null,100.7,0,100.7,98.7,0,98.7,98.7,100.7,null,null,null,null,null,null,null,null,"0,0,0,0,0,0,0,0,0,0,0,0,0,0,0,0,0,0,0","0,0,0,0,0,0,0,0,0,0,0,0,0,0,0,0,0,0,0"]
[6,8207,null,19,"Ed Dickinson",null,"Nottingham",null,101.5,2,103.5,107.2,58,165.2,103.5,165.2,null,null,null,null,null,null,null,null,"2,0,0,0,0,0,0,0,0,0,0,0,0,0,0,0,0,0,0","0,0,0,0,0,0,0,0,2,2,0,2,0,0,2,0,0,50,0"]
[7,8230,null,31,"James Rennie",null,"Bristol",null,102.5,2,104.5,108,0,108,104.5,108,null,null,null,null,null,null,null,null,"0,0,0,0,0,0,0,0,0,2,0,0,0,0,0,0,0,0,0","0,0,0,0,0,0,0,0,0,0,0,0,0,0,0,0,0,0,0"]
[8,8209,null,21,"James Lyndon",null,"Nottingham",null,113.4,6,119.4,113.5,4,117.5,117.5,119.4,null,null,null,null,null,null,null,null,"0,0,0,0,0,0,0,0,0,2,2,0,0,0,0,0,0,0,2","0,0,0,0,0,0,0,0,0,0,0,0,2,0,0,0,0,0,2"]
[9,8204,null,15,"James Jackson",null,"Loughborough",null,137.1,6,143.1,122.6,4,126.6,126.6,143.1,null,null,null,null,null,null,null,null,"0,2,0,0,0,0,0,0,0,0,0,2,0,0,0,0,0,0,2","0,0,0,0,0,0,0,0,0,0,0,0,0,0,0,0,2,0,2"]
[10,8206,null,18,"Oliver Spencer",null,"Loughborough",null,115.3,854,969.3,227.9,410,637.9,637.9,969.3,null,null,null,null,null,null,null,null,"50,50,2,50,50,50,50,50,2,50,50,50,50,50,50,50,50,50,50","0,50,50,50,0,2,50,0,0,2,2,0,2,2,50,0,50,50,50"]
[11,8202,null,13,"Daniel Hopkirk",null,"Loughborough",null,116.6,608,724.6,null,null,null,724.6,999,null,null,null,null,null,null,null,null,"50,2,0,50,50,2,50,50,0,50,50,50,50,2,50,0,50,50,2"]
[12,8217,null,29,"Benjamin Dryden",null,"Strathclyde",null,171.8,806,977.8,null,null,null,977.8,999,null,null,null,null,null,null,null,null,"50,2,50,50,50,50,50,50,50,50,2,50,50,50,50,2,50,50,50"]
[13,8203,null,14,"James Buckley",null,"Loughborough",null,"DNF",null,null,"DNF",null,null,996,996]
[14,8215,null,27,"Ryan Mallon",null,"Stirling"]
["=",8214,null,26,"Eddie Mackintosh",null,"Sheffield"]
["=",8211,null,23,"Matthew Keaney",null,"Nottingham Trent"]
["=",8210,null,22,"Liam Turner",null,"Nottingham Trent"]
["=",8205,null,17,"Joshua Perry",null,"Loughborough"]
["=",8201,null,12,"Avery Bolton",null,"Loughborough"]

{"sheet":"OPEN C2","index":3,"n_rows":15,"n_cols":28,"rows_kept":15,"cut":false,"hidden":false,"merged":[]}
["Pos","Ubib","RTC","Bib","Name","Cat","Club","Cls","Run 1 Time","Run 1 Pen","Run 1 Total","Run 2 Time","Run 2 Pen","Run 2 Total","Best","Wst","YOB","Sponsor","run1","H",30,0,60,0,null,null,"Pts","Alloc"]
[1,8414,null,18,"Vittorio Pezzaioli/Aaron Holmes",null,"Strathclyde",null,110.1,12,122.1,108.3,4,112.3,112.3,122.1,null,null,null,null,null,null,null,null,"2,2,0,2,0,0,0,0,0,2,0,0,0,0,2,0,0,2,0","0,0,0,2,0,0,0,0,2,0,0,0,0,0,0,0,0,0,0"]
[2,8408,null,9,"Ben Brown/Edward Mcdonald",null,"Nottingham",null,116.5,8,124.5,113.8,0,113.8,113.8,124.5,null,null,null,null,null,null,null,null,"2,0,0,0,0,0,2,0,0,0,0,2,0,0,0,0,0,0,2","0,0,0,0,0,0,0,0,0,0,0,0,0,0,0,0,0,0,0"]
[3,8412,null,16,"Philip Smith/Toby Aston",null,"Nottingham Trent",null,118.6,6,124.6,118.8,2,120.8,120.8,124.6,null,null,null,null,null,null,null,null,"0,0,0,0,0,0,0,2,0,2,0,0,0,0,2,0,0,0,0","0,0,0,0,0,0,0,0,0,0,0,2,0,0,0,0,0,0,0"]
[4,8407,null,8,"Ed Dickinson/Elliott Massey",null,"Nottingham",null,138.4,52,190.4,121.5,10,131.5,131.5,190.4,null,null,null,null,null,null,null,null,"2,0,2,0,0,0,2,20,0,2,0,2,0,2,0,0,20,0,0","0,2,0,2,2,0,0,0,0,0,0,0,0,0,0,2,0,2,0"]
[5,8409,null,10,"Macy Kang/Rachel Ellis",null,"Nottingham",null,137.9,10,147.9,"DNS",null,null,147.9,999,null,null,null,null,null,null,null,null,"0,2,0,0,0,0,0,2,2,0,0,2,0,2,0,0,0,0,0"]
[6,8402,null,3,"James Jackson/Catrin Schröder",null,"Loughborough",null,159.5,6,165.5,"DNS",null,null,165.5,999,null,null,null,null,null,null,null,null,"0,2,0,0,0,0,0,0,2,0,0,0,0,0,0,0,2,0,0"]
[7,8413,null,17,"Hannah Rhodes/Katie Shattock",null,"Nottingham Trent",null,221.7,62,283.7,"DNS",null,null,283.7,999,null,null,null,null,null,null,null,null,"0,2,2,0,2,0,0,50,0,2,0,2,0,0,0,0,2,0,0"]
[8,8410,null,11,"Zoë Leforestier/Simon Bullivant",null,"Nottingham",null,"DNF",null,null,98.7,706,804.7,804.7,996,null,null,null,null,null,null,null,null,"50,0,50,50,50,2,0,0,0,0,0,0,0,0,0,0,0,0,0","50,0,0,50,50,2,50,2,2,50,50,50,50,50,50,50,50,50,50"]
[9,8405,null,6,"Isabelle Tall/Thomas Shepherd",null,"Loughborough",null,"DNF",null,null,80.599999999999994,854,934.6,934.6,996,null,null,null,null,null,null,null,null,"50,50,2,50,50,0,0,0,0,0,0,0,0,0,0,0,0,0,0","50,50,2,50,50,50,50,50,2,50,50,50,50,50,50,50,50,50,50"]
[10,8404,null,5,"Oliver Spencer/Jack Crowe",null,"Loughborough",null,"DNF",null,null,79.900000000000006,902,981.9,981.9,996,null,null,null,null,null,null,null,null,"50,50,0,0,0,0,0,0,0,0,0,0,0,0,0,0,0,0,0","50,50,2,50,50,50,50,50,50,50,50,50,50,50,50,50,50,50,50"]
[11,8415,null,19,"Benjamin Dryden/Chris Skinner",null,"Strathclyde",null,"DNF",null,null,"DNF",null,null,996,996,null,null,null,null,null,null,null,null,null,"0,0,0,0,0,0,0,0,0,0,0,0,0,0,0,0,0,0,0"]
["=",8403,null,4,"Sophie Young/Daniel Hopkirk",null,"Loughborough",null,"DNF",null,null,"DNF",null,null,996,996,null,null,null,null,null,null,null,null,"50,50,50,0,0,0,0,0,0,0,0,0,0,0,0,0,0,0,0","50,50,50,0,0,0,0,0,0,0,0,0,0,0,0,0,0,0,0"]
[13,8411,null,12,"James Lyndon/Katherine Armstrong",null,"Nottingham"]
["=",8406,null,7,"Avery Bolton/James Buckley",null,"Loughborough"]

{"sheet":"OPEN TEAMS","index":4,"n_rows":13,"n_cols":28,"rows_kept":13,"cut":false,"hidden":false,"merged":[]}
["Pos","Ubib","RTC","Bib","Name","Cat","Club","Cls","Run 1 Time","Run 1 Pen","Run 1 Total","Run 2 Time","Run 2 Pen","Run 2 Total","Best","Wst","YOB","Sponsor","run1","H",30,0,60,0,null,null,"Pts","Alloc"]
[1,8607,null,10,"Nottingham 1",null,"Nottingham",null,101.7,4,105.7,null,null,null,105.7,999,null,null,null,null,null,null,null,null,"0,0,0,2,0,0,0,0,0,0,0,0,0,0,0,2,0,0,0"]
[2,8610,null,13,"Nottingham Trent 1",null,"Nottingham Trent",null,109.2,6,115.2,null,null,null,115.2,999,null,null,null,null,null,null,null,null,"2,0,0,0,0,0,0,0,0,0,0,0,2,0,2,0,0,0,0"]
[3,8611,null,14,"Nottingham Trent 2",null,"Nottingham Trent",null,118.8,0,118.8,null,null,null,118.8,999,null,null,null,null,null,null,null,null,"0,0,0,0,0,0,0,0,0,0,0,0,0,0,0,0,0,0,0"]
[4,8608,null,11,"Nottingham 2",null,"Nottingham",null,118,2,120,null,null,null,120,999,null,null,null,null,null,null,null,null,"0,0,0,0,0,0,0,0,2,0,0,0,0,0,0,0,0,0,0"]
[5,8617,null,20,"Strathclyde 3",null,"Strathclyde",null,116.4,4,120.4,null,null,null,120.4,999,null,null,null,null,null,null,null,null,"0,0,0,0,0,0,0,0,0,2,0,0,0,0,0,0,0,0,2"]
[6,8609,null,12,"Nottingham 3",null,"Nottingham",null,126.8,16,142.80000000000001,null,null,null,142.80000000000001,999,null,null,null,null,null,null,null,null,"2,0,0,0,0,0,0,0,4,4,0,2,0,0,0,0,0,0,4"]
[7,8603,null,6,"Loughborough 1",null,"Loughborough",null,159.80000000000001,20,179.8,null,null,null,179.8,999,null,null,null,null,null,null,null,null,"0,0,0,0,0,0,2,0,0,2,2,4,2,4,0,0,0,2,2"]
[8,8605,null,8,"Loughborough 3",null,"Loughborough",null,152.69999999999999,522,674.7,null,null,null,674.7,999,null,null,null,null,null,null,null,null,"0,50,4,50,2,4,0,0,0,150,0,0,100,2,0,2,52,102,4"]
[9,8615,null,18,"Strathclyde 1",null,"Strathclyde",null,165.5,624,789.5,null,null,null,789.5,999,null,null,null,null,null,null,null,null,"2,100,2,100,0,2,4,52,52,50,50,50,2,2,52,2,2,0,100"]
[10,8612,null,15,"Nottingham Trent 3",null,"Nottingham Trent"]
["=",8604,null,7,"Loughborough 2",null,"Loughborough"]
["=",8606,null,9,"Loughborough 4",null,"Loughborough"]

{"sheet":"All Res","index":5,"n_rows":0,"n_cols":0,"rows_kept":0,"cut":false,"hidden":false,"merged":[]}

{"sheet":"Start","index":6,"n_rows":0,"n_cols":0,"rows_kept":0,"cut":false,"hidden":false,"merged":[]}

{"sheet":"Prizes","index":7,"n_rows":0,"n_cols":0,"rows_kept":0,"cut":false,"hidden":false,"merged":[]}

{"sheet":"Promotion_Certificate","index":8,"n_rows":0,"n_cols":0,"rows_kept":0,"cut":false,"hidden":true,"merged":[[34,0,34,11],[35,1,35,10],[36,1,36,10],[37,1,37,10],[38,1,38,10]]}

{"sheet":"BLANK","index":9,"n_rows":1,"n_cols":24,"rows_kept":1,"cut":false,"hidden":false,"merged":[]}
["Pos","Ubib","RTC","Bib","Name","Cat","Club","Cls","Run 1 Time","Run 1 Pen","Run 1 Total","Run 2 Time","Run 2 Pen","Run 2 Total","Best","Wst","YOB","Sponsor","run1","H",30,0,60,0]

{"sheet":"BLANK MULTI","index":10,"n_rows":9,"n_cols":11,"rows_kept":9,"cut":false,"hidden":true,"merged":[[5,2,5,3],[5,5,5,7],[5,9,5,10],[0,1,0,10],[1,1,1,10],[2,1,2,10],[3,1,3,10],[4,1,4,10]]}
[null,"Multi-Entry Discount"]
[null,"At the 2023 ACM it was agreed that the Slalom Committee would refund half the cost of a second Div3 or Div4 entry to encourage Slalom participation.\nThe intention is for the organiser to charge the paddler half the cost of the additional entry and then claim the other half of the additional entry fee from the Slalom Committee"]
[null,"To assist organisers this additional report has been created showing the total discount and this should be sent to the Slalom Treasurer (slalom.treasurer@vol.britishcanoeing.org.uk) who will refund the amount below."]
[null,"In order to identify paddlers \"doubling up\" a unique identifier is required in the \"CLS\" column of the correspodding event worksheets.  This takes for form \"WDx\" and \"MDx\" for Women's and Men's classes respectively.  These codes are added automatically when both entries are via the online entry system. \nWhere the additional entry is \"on the day\", organisers will need to add the entries manually - Please note all codes must be unique."]
[null,"For a competition spanning multiple days then this form needs to be generated for each day, and all Multi-Entry Discount Refund forms relating to the competition need to be sent to the Slalom Treasurer for reimbursement."]
[null,"Competition:",null,null,"Site:",null,null,null,"Date:"]
[]
["ID","Name","Club","K1 Event","K1 Bib","K1 Disc","C1Event","C1 Bib","C1 Disc","Award Discount","Discount"]
[null,null,null,null,null,null,null,null,null,null,0]

{"sheet":"Static Data","index":11,"n_rows":138,"n_cols":49,"rows_kept":138,"cut":false,"hidden":true,"merged":[[82,11,82,12],[58,4,58,5],[63,4,63,5],[37,4,37,5],[50,4,50,5],[72,4,72,5],[71,4,71,5],[58,11,58,12],[0,41,0,46],[18,4,18,5],[0,11,0,12],[31,4,31,5],[67,4,67,5],[0,35,0,38],[0,29,0,30],[0,23,0,24],[0,4,0,5],[0,26,0,27],[34,11,34,12],[21,4,21,5],[28,4,28,5],[52,0,52,2],[0,8,0,9],[34,4,34,5],[0,14,0,16],[0,18,0,20],[45,0,45,2],[0,0,0,2],[40,0,40,2]]}
["Siwi Bib Codes",null,null,null,"Competition Data",null,null,"```","Guest Bibs",null,null,"Div4 K1M Unique Bibs",null,null,"Men_Double_Award",null,null,null,"Women_Double_Award",null,null,null,null,"Official Unranked Bibs",null,null,"Team Unique Bibs",null,null,"PREM-3_C2_Unique_Bibs",null,null,"HTML_TOP","INDEX_HTML",null,"Comp_Count_Modifier",null,null,null,null,null,"Missing_YOB_Info",null,null,null,null,null,null,"Jobs to do"]
["Event","Start","End",null,"Bib_File","2024-05-11",null,null,"Guest Unique Bibs","Name",null,"Div4_K1M_Unique_Bibs","Name",null,"MD_Code","K1_Bib_No","C1_Bib_No",null,"WD_Code","K1_Bib_No","C1_Bib_No",null,null,"Official_Unique_Bibs","Name",null,"Team_Unique_Bibs","Name",null,"PREM-3_C2_Unique_Bibs","Name",null,"<!DOCTYPE html>","<!DOCTYPE html>",null,"Actual","Alt_Comp1","Alt_Comp2","Alt_Comp3",null,null,"SiWi Bib","Name","Event","YOB","Age",null,null,"Create update userform for YOB"]
["PREM K1M",0,{"$f":"+B4-1","v":399},null,"Event_Title","BUCS Canoe Slalom",null,null,8001,null,null,5001,null,null,"MD1",null,null,null,"WD1",null,null,null,null,9001,null,null,7801,null,null,6501,null,null,"<html>","<html>",null,1,1,1,1,null,null,null,null,null,null,null,null,null,"Add MissingYOB table to workbook initialise"]
["PREM C1M",400,{"$f":"+B5-1","v":499},null,"OrganisingClub","British Universities and Colleges Sport",null,null,8002,null,null,5002,null,null,"MD2",null,null,null,"WD2",null,null,null,null,9002,null,null,7802,null,null,6502,null,null,"<head>","<head>",null,2,2,2,2,null,null,null,null,null,null,null,null,null,"Set visibility of oprion button to TRUE"]
["PREM K1W",500,799,null,"Event_Sponsor",null,null,null,8003,null,null,5003,null,null,"MD3",null,null,null,"WD3",null,null,null,null,9003,null,null,7803,null,null,6503,null,null,"    <meta http-equiv=\"Cache-Control\" content=\"no-cache, no-store, must-revalidate\">","<meta http-equiv=\"Cache-Control\" content=\"no-cache, no-store, must-revalidate\">",null,3,3,3,3,null,null,null,null,null,null,null,null,null,"Create function to toggle hide Button"]
["PREM C1W",800,999,null,"Event_Date","2024-05-12",null,null,8004,null,null,5004,null,null,"MD4",null,null,null,"WD4",null,null,null,null,9004,null,null,7804,null,null,6504,null,null,"    <meta http-equiv=\"Pragma\" content=\"no-cache\">","<meta http-equiv=\"Pragma\" content=\"no-cache\">",null,4,4,4,4]
["DIV 1 K1M",1000,1399,null,"Event_Division","Open",null,null,8005,null,null,5005,null,null,"MD5",null,null,null,"WD5",null,null,null,null,9005,null,null,7805,null,null,6505,null,null,"    <meta http-equiv=\"Expires\" content=\"0\">","<meta http-equiv=\"Expires\" content=\"0\">",null,5,40,5,15]
["DIV 1 C1M",1400,1499,null,"Host_Division","Open",null,null,8006,null,null,5006,null,null,"MD6",null,null,null,"WD6",null,null,null,null,9006,null,null,7806,null,null,6506,null,null,"   <link rel=\"stylesheet\" href=\"style.css\">","\t<meta http-equiv=\"refresh\" content=\"75 url=index.html\">",null,6,40,6,15]
["DIV 1 K1W",1500,1799,null,"PU_Division",null,null,null,8007,null,null,5007,null,null,"MD7",null,null,null,"WD7",null,null,null,null,9007,null,null,7807,null,null,6507,null,null,"</head>","\t<meta name=\"viewport\" content=\"width=device-width, initial-scale=0.5\">",null,7,40,7,15]
["DIV 1 C1W",1800,1999,null,"Officials","Yes",null,null,8008,null,null,5008,null,null,"MD8",null,null,null,"WD8",null,null,null,null,9008,null,null,7808,null,null,6508,null,null,null,"\t<link rel=\"stylesheet\" href=\"style.css\">",null,8,40,8,15]
["DIV 2 K1M",2000,2399,null,"Open","Yes",null,null,8009,null,null,5009,null,null,"MD9",null,null,null,"WD9",null,null,null,null,9009,null,null,7809,null,null,6509,null,null,null,"\t<script  type=\"text/javascript\" src = \"pagelinks.js\"></script>",null,9,40,9,15]
["DIV 2 C1M",2400,2499,null,"Vets","Yes",null,null,8010,null,null,5010,null,null,"MD10",null,null,null,"WD10",null,null,null,null,9010,null,null,7810,null,null,6510,null,null,null,"</head>",null,10,40,10,20]
["DIV 2 K1W",2500,2799,null,"C2","Yes",null,null,8011,null,null,5011,null,null,"MD11",null,null,null,"WD11",null,null,null,null,9011,null,null,7811,null,null,6511,null,null,null,"<body onload=insertText();>",null,11,40,11,20]
["DIV 2 C1W",2800,2999,null,"Division 4",null,null,null,8012,null,null,5012,null,null,"MD12",null,null,null,"WD12",null,null,null,null,9012,null,null,7812,null,null,6512,null,null,null,"<header class=\"header\">",null,12,40,12,20]
["DIV 3 K1M",3000,3999,null,"File_Name","BUCS_12_05_2024",null,null,8013,null,null,5013,null,null,"MD13",null,null,null,"WD13",null,null,null,null,9013,null,null,7813,null,null,6513,null,null,null,"  <button class=\"open-menu\">",null,13,40,13,20]
["DIV 3 C1M",4000,4499,null,"Event_Location","Holme Pierrepont",null,null,8014,null,null,5014,null,null,"MD14",null,null,null,"WD14",null,null,null,null,9014,null,null,7814,null,null,6514,null,null,null,"    Select Event",null,14,40,14,20]
["DIV 3 K1W",4500,4799,null,"Event_SubTitle",null,null,null,8015,null,null,5015,null,null,"MD15",null,null,null,"WD15",null,null,null,null,9015,null,null,7815,null,null,6515,null,null,null,"  </button> ",null,15,40,20,20]
["DIV 3 C1W",4800,4999,null,null,null,null,null,8016,null,null,5016,null,null,"MD16",null,null,null,"WD16",null,null,null,null,9016,null,null,7816,null,null,6516,null,null,null,"  <nav class=\"header--nav\">   ",null,16,40,20,20]
["DIV 4 K1M",5000,5399,null,"Simply Slalom Version",null,null,null,8017,null,null,5017,null,null,"MD17",null,null,null,"WD17",null,null,null,null,9017,null,null,7817,null,null,6517,null,null,null,"    <a class=\"close-menu\" id='links'</a>",null,17,40,20,20]
["DIV 4 C1M",5400,5499,null,"Version","24.1.0",null,null,8018,null,null,5018,null,null,"MD18",null,null,null,"WD18",null,null,null,null,9018,null,null,7818,null,null,6518,null,null,null,"  </nav>",null,18,40,20,20]
["DIV 4 K1W",5500,5799,null,null,null,null,null,8019,null,null,5019,null,null,"MD19",null,null,null,"WD19",null,null,null,null,9019,null,null,7819,null,null,6519,null,null,null,"</header>",null,19,40,20,20]
["DIV 4 C1W",5800,5999,null,"Remote Display Control",null,null,null,8020,null,null,5020,null,null,"MD20",null,null,null,"WD20",null,null,null,null,9020,null,null,7820,null,null,6520,null,null,null,"\t<div class=\"title\">",null,20,40,20,20]
["PREM-3 C2",6000,6499,null,"DisplayEnabled",true,null,null,8021,null,null,5021,null,null,"MD21",null,null,null,"WD21",null,null,null,null,9021,null,null,7821,null,null,6521,null,null,null,"\t\t<table border=0 width=100%>",null,21,40,25,40]
["PREM-3 C2S",6500,6999,null,"DisplayPath","C:\\Users\\molly\\OneDrive\\Desktop\\BUCS Canoe Slalom\\Sunday Results",null,null,8022,null,null,5022,null,null,"MD22",null,null,null,"WD22",null,null,null,null,9022,null,null,7822,null,null,6522,null,null,null,"\t\t<tr><td align=\"center\" id='event_title' </td></tr>",null,22,40,25,40]
["VET K1M",7000,7199,null,"DisplayGatePen",true,null,null,8023,null,null,5023,null,null,"MD23",null,null,null,"WD23",null,null,null,null,9023,null,null,7823,null,null,6523,null,null,null,"\t\t</table>",null,23,40,25,40]
["VET K1W",7200,7399,null,"DisplayToWeb","CENTRAL",null,null,8024,null,null,5024,null,null,"MD24",null,null,null,"WD24",null,null,null,null,9024,null,null,7824,null,null,6524,null,null,null,"\t</div>",null,24,40,25,40]
["VET C1M",7400,7599,null,"Central_FTPpath","BUCS_12_05_2024",null,null,8025,null,null,5025,null,null,"MD25",null,null,null,"WD25",null,null,null,null,9025,null,null,7825,null,null,6525,null,null,null,"\t<div class=\"container\">",null,25,40,25,40]
["VET C1W",7600,7699,null,null,null,null,null,8026,null,null,5026,null,null,"MD26",null,null,null,"WD26",null,null,null,null,9026,null,null,7826,null,null,6526,null,null,null,"\t\t<iframe src=\"\" id = 'iFrame_a' name = 'iFrame_a'  frameborder=\"0\" allowfullscreen class=\"video\"></iframe>",null,26,40,30,40]
["FORERUNNERS",7700,{"$f":"+B30-1","v":7799},null,"Simply Slalom StartUp",null,null,null,8027,null,null,5027,null,null,"MD27",null,null,null,"WD27",null,null,null,null,9027,null,null,7827,null,null,6527,null,null,null,"\t</div>",null,27,40,30,40]
["DIV 1 TEAMS",7800,7849,null,"ResetStaticData",true,null,null,8028,null,null,5028,null,null,"MD28",null,null,null,"WD28",null,null,null,null,9028,null,null,7828,null,null,6528,null,null,null,"\t<div class=\"footer\">",null,28,40,30,40]
["DIV 2 TEAMS",7850,7899,null,null,null,null,null,8029,null,null,5029,null,null,"MD29",null,null,null,"WD29",null,null,null,null,9029,null,null,7829,null,null,6529,null,null,null,"\t\t<table border=0 width=100%>",null,29,40,30,40]
["DIV 3 TEAMS",7900,7949,null,"Posted_HTML",null,null,null,8030,null,null,5030,null,null,"MD30",null,null,null,"WD30",null,null,null,null,9030,null,null,7830,null,null,6530,null,null,"HTML_MID","\t\t<tr><td id='links'</td><td width=10% id='link_live'></td></tr>",null,30,40,30,40]
["DIV 4 TEAMS",7950,7999,null,"HTMLFileList","waiting,OPEN C2,OPEN K1W,OPEN C1M,OPEN TEAMS",null,null,8031,null,null,null,null,null,null,null,null,null,null,null,null,null,null,null,null,null,null,null,null,6531,null,null,"</td></tr>","\t\t</table>",null,31,40,35,40]
["GUESTS",8000,8999,null,null,null,null,null,8032,null,null,null,null,null,null,null,null,null,null,null,null,null,null,null,null,null,null,null,null,6532,null,null,"<tr class=\"header\"><td>&nbsp;<br>Pos</td>","\t</div>",null,32,40,35,40]
["OFFICIALS",9000,9999,null,"Default Display Sheet",null,null,null,8033,null,null,"Div4 K1W Unique Bibs",null,null,null,null,null,null,null,null,null,null,null,null,null,null,null,null,null,6533,null,null,"<td>&nbsp;<br>Bib</td>","</body>",null,33,40,35,40]
[null,null,null,null,"DisplaySheet","OPEN TEAMS",null,null,8034,null,null,"Div4_K1W_Unique_Bibs","Name",null,null,null,null,null,null,null,null,null,null,null,null,null,null,null,null,6534,null,null,"<td>&nbsp;<br>Name</td>","<script  src=\"./navscript.js\"></script>",null,34,40,35,40]
[null,null,null,null,null,null,null,null,8035,null,null,5501,null,null,null,null,null,null,null,null,null,null,null,null,null,null,null,null,null,6535,null,null,"<td>&nbsp;<br>Cat</td>","</html>",null,35,40,35,40]
[null,null,null,null,"Course Configuration",null,null,null,8036,null,null,5502,null,null,null,null,null,null,null,null,null,null,null,null,null,null,null,null,null,6536,null,null,"<td>&nbsp;<br>Club</td>",null,null,36,40,40,40]
[null,null,null,null,"TotalGates",19,null,null,8037,null,null,5503,null,null,null,null,null,null,null,null,null,null,null,null,null,null,null,null,null,6537,null,null,"<td>&nbsp;<br>Cls</td>",null,null,37,40,40,40]
[null,null,null,null,"UpGates","1,4,7,10,12,15",null,null,8038,null,null,5504,null,null,null,null,null,null,null,null,null,null,null,null,null,null,null,null,null,6538,null,null,"<td>Run&nbsp;1<br>Time</td>","RES_SCROLL_JS",null,38,40,40,40]
["Start List Phase Times",null,null,null,null,null,"To Gate",null,8039,null,null,5505,null,null,null,null,null,null,null,null,null,null,null,null,null,null,null,null,null,6539,null,null,"<td>Run&nbsp;1<br>Pen</td>","var h = window.screen.width;",null,39,40,40,40]
["P_Start",0,0,null,"Judge A",1,6,null,8040,null,null,5506,null,null,null,null,null,null,null,null,null,null,null,null,null,null,null,null,null,6540,null,null,"<td>Run&nbsp;1<br>Total</td>","var my_tbody_nodelist = document.querySelectorAll(\"tbody\"),i;",null,40,40,40,40]
["R1_Start",10,0,null,"Judge B",7,11,null,8041,null,null,5507,null,null,null,null,null,null,null,null,null,null,null,null,null,null,null,null,null,null,null,null,"<td>Run&nbsp;2<br>Time</td>","if (h>1000) {"]
["R2_Start",14,0,null,"Judge C",12,16,null,8042,null,null,5508,null,null,null,null,null,null,null,null,null,null,null,null,null,null,null,null,null,null,null,null,"<td>Run&nbsp;2<br>Pen</td>","for (i = 2; i < my_tbody_nodelist.length-1; ++i) {"]
[null,null,null,null,"Judge D",17,19,null,8043,null,null,5509,null,null,null,null,null,null,null,null,null,null,null,null,null,null,null,null,null,null,null,null,"<td>Run&nbsp;2<br>Total</td>","(function (i) {"]
["Vet_Score_Comp",null,null,null,"Judge E","-","-",null,8044,null,null,5510,null,null,null,null,null,null,null,null,null,null,null,null,null,null,null,null,null,null,null,null,"<td>&nbsp;<br>Best</td>","setTimeout(function () {"]
["Div","M","C",null,"Judge F","-","-",null,8045,null,null,5511,null,null,null,null,null,null,null,null,null,null,null,null,null,null,null,null,null,null,null,null,"<td>&nbsp;<br>Behind</td>","my_tbody_nodelist[i].classList.toggle('hidden');"]
["PREM",-640,1640,null,"Judge F","-",null,null,8046,null,null,5512,null,null,null,null,null,null,null,null,null,null,null,null,null,null,null,null,null,null,null,null,"</tr>","}, 5000*i);"]
["DIV 1",-480,1230,null,null,null,null,null,8047,null,null,5513,null,null,null,null,null,null,null,null,null,null,null,null,null,null,null,null,null,null,null,null,null,"})(i);            "]
["DIV 2",-320,820,null,null,null,null,null,8048,null,null,5514,null,null,null,null,null,null,null,null,null,null,null,null,null,null,null,null,null,null,null,null,"HTML_END","}"]
["DIV 3",-160,410,null,"FTP Credentials",null,null,null,8049,null,null,5515,null,null,null,null,null,null,null,null,null,null,null,null,null,null,null,null,null,null,null,null,"<tr class=\"header\"><td colspan=\"2\">&nbsp;</td><td colspan=\"11\" class=\"nav\">","} else {"]
[null,null,null,null,"FTP_Username",null,null,null,8050,null,null,5516,null,null,null,null,null,null,null,null,null,null,null,null,null,null,null,null,null,null,null,null,"          <p id=\"links\"></p>","}"]
["Entry Fees",null,null,null,"FTP_Password",null,null,null,8051,null,null,5517,null,null,null,null,null,null,null,null,null,null,null,null,null,null,null,null,null,null,null,null,"</td><td colspan=\"1\" class=\"nextnav\"><a href=\"index.html\">Next</a>&nbsp;</td></tr>"]
["Year",2024,null,null,"FTP_Host",null,null,null,8052,null,null,5518,null,null,null,null,null,null,null,null,null,null,null,null,null,null,null,null,null,null,null,null,"</table>","for (i = 0; i < my_tbody_nodelist.length-1; ++i) {"]
["Div","Fee","Levy",null,"FTP_Port",null,null,null,8053,null,null,5519,null,null,null,null,null,null,null,null,null,null,null,null,null,null,null,null,null,null,null,null,"</body>","(function (i) {"]
["PREM",23.5,9.14,null,"FTP_FilePath",null,null,null,8054,null,null,5520,null,null,null,null,null,null,null,null,null,null,null,null,null,null,null,null,null,null,null,null,"</html>","setTimeout(function () {"]
["DIV 1",23.5,9.14,null,null,null,null,null,8055,null,null,null,null,null,null,null,null,null,null,null,null,null,null,null,null,null,null,null,null,null,null,null,null,"window.location.reload();"]
["DIV 2",15.3,4.3099999999999996,null,null,null,null,null,8056,null,null,null,null,null,null,null,null,null,null,null,null,null,null,null,null,null,null,null,null,null,null,null,"HTML_FOOTER_TOP","}, 5000*my_tbody_nodelist.length);"]
["DIV 3",9.4,0,null,"Results Files",null,null,null,8057,null,null,"Div4 C1M Unique Bibs",null,null,null,null,null,null,null,null,null,null,null,null,null,null,null,null,null,null,null,null,"<tr class=\"header\"><td colspan=\"2\">&nbsp;</td><td colspan=\"11\" class=\"nav\">","})(i);            "]
["DIV 4",7,0,null,"ResultsCSV",null,null,null,8058,null,null,"Div4_C1M_Unique_Bibs","Name",null,null,null,null,null,null,null,null,null,null,null,null,null,null,null,null,null,null,null,null,"}"]
[null,null,null,null,"ResultsPDF","BUCS_12_05_2024_Results.pdf",null,null,8059,null,null,5401]
["Slalom_Sites",null,null,null,null,null,null,null,8060,null,null,5402,null,null,null,null,null,null,null,null,null,null,null,null,null,null,null,null,null,null,null,null,"HTML_DARKLINE"]
["Abbey Rapids",null,null,null,null,null,null,null,8061,null,null,5403,null,null,null,null,null,null,null,null,null,null,null,null,null,null,null,null,null,null,null,null,"<tr class=\"divline\"><td colspan=\"14\" align=\"center\">&nbsp;</td></tr>","NAVSCRIPT_JS"]
["Aberfeldy",null,null,null,"Prizes",null,null,null,8062,null,null,5404,null,null,null,null,null,null,null,null,null,null,null,null,null,null,null,null,null,null,null,null,null,"var html = document.documentElement;"]
["Alva",null,null,null,"PrizeAlloc","Open,Vet,C2",null,null,8063,null,null,5405]
["Angel Islington",null,null,null,null,null,null,null,8064,null,null,5406,null,null,null,null,null,null,null,null,null,null,null,null,null,null,null,null,null,null,null,null,"HTML_MID_GATE_DETAIL","document.querySelector('.open-menu').onclick = function(){"]
["Bala Mill",null,null,null,null,null,null,null,8065,null,null,5407,null,null,null,null,null,null,null,null,null,null,null,null,null,null,null,null,null,null,null,null,"<td><tr class=\"header\">","  html.classList.add('active');"]
["Belfast",null,null,null,"Central FTP Service",null,null,null,8066,null,null,5408,null,null,null,null,null,null,null,null,null,null,null,null,null,null,null,null,null,null,null,null,"<td rowspan=\"2\">&nbsp;Rk</td>","};"]
["Brecon",null,null,null,"WinSCP_Location","C:\\Program Files (x86)\\WinSCP",null,null,8067,null,null,5409,null,null,null,null,null,null,null,null,null,null,null,null,null,null,null,null,null,null,null,null,"<td rowspan=\"2\">&nbsp;Bib</td>"]
["Bridgend",null,null,null,null,null,null,null,8068,null,null,5410,null,null,null,null,null,null,null,null,null,null,null,null,null,null,null,null,null,null,null,null,"<td rowspan=\"2\">&nbsp;Name</td>","document.querySelector('.close-menu').onclick = function(){"]
["Cardiff Bay",null,null,null,null,null,null,null,8069,null,null,5411,null,null,null,null,null,null,null,null,null,null,null,null,null,null,null,null,null,null,null,null,"<td rowspan=\"2\">&nbsp;Cat</td>","  html.classList.remove('active'); "]
["Cardiff Bay Pool",null,null,null,"Vets Points Calculation",null,null,null,8070,null,null,5412,null,null,null,null,null,null,null,null,null,null,null,null,null,null,null,null,null,null,null,null,"<td rowspan=\"2\">&nbsp;Club</td>","};"]
["Cardington",null,null,null,"Points = [(Best Score) / (Class Winner’s Best Score)] x M + C",null,null,null,8071,null,null,5413,null,null,null,null,null,null,null,null,null,null,null,null,null,null,null,null,null,null,null,null,"<td colspan=\"29\">&nbsp;Penalties by Gate</td>"]
["Chelmsford",null,null,null,null,null,null,null,8072,null,null,5414,null,null,null,null,null,null,null,null,null,null,null,null,null,null,null,null,null,null,null,null,"<tr class = \"header\">","html.onclick = function(event){"]
["Darley Abbey",null,null,null,null,null,null,null,8073,null,null,5415,null,null,null,null,null,null,null,null,null,null,null,null,null,null,null,null,null,null,null,null,"<td>&nbsp;Phase</td>","  if (event.target === html){"]
["Darlington Dolphin Centre",null,null,null,null,null,null,null,8074,null,null,5416,null,null,null,null,null,null,null,null,null,null,null,null,null,null,null,null,null,null,null,null,"<td>&nbsp;Time</td>","    html.classList.remove('active');"]
["Dart Country Park",null,null,null,null,"bOffs, bOpen, bDiv4,bPrem, bDiv1, bDiv2, bDiv3",null,null,8075,null,null,5417,null,null,null,null,null,null,null,null,null,null,null,null,null,null,null,null,null,null,null,null,"<td>&nbsp;1</td>","  }"]
["Dobbs Weir Enfield",null,null,null,null,null,null,null,8076,null,null,5418,null,null,null,null,null,null,null,null,null,null,null,null,null,null,null,null,null,null,null,null,"<td>&nbsp;2</td>","};"]
["Duck Mill Bedford",null,null,null,null,null,null,null,8077,null,null,5419,null,null,null,null,null,null,null,null,null,null,null,null,null,null,null,null,null,null,null,null,"<td>&nbsp;3</td>"]
["Dulverton",null,null,null,null,null,null,null,8078,null,null,5420,null,null,null,null,null,null,null,null,null,null,null,null,null,null,null,null,null,null,null,null,"<td>&nbsp;4</td>"]
["Durham",null,null,null,null,null,null,null,8079,null,null,null,null,null,null,null,null,null,null,null,null,null,null,null,null,null,null,null,null,null,null,null,"<td>&nbsp;5</td>"]
["Fairnilee",null,null,null,null,null,null,null,8080,null,null,null,null,null,null,null,null,null,null,null,null,null,null,null,null,null,null,null,null,null,null,null,"<td>&nbsp;6</td>"]
["Grandtully",null,null,null,null,null,null,null,8081,null,null,"Div4 C1W Unique Bibs",null,null,null,null,null,null,null,null,null,null,null,null,null,null,null,null,null,null,null,null,"<td>&nbsp;7</td>"]
["Harefield",null,null,null,null,null,null,null,8082,null,null,"Div4_C1W_Unique_Bibs","Name",null,null,null,null,null,null,null,null,null,null,null,null,null,null,null,null,null,null,null,"<td>&nbsp;8</td>"]
["Hatfield",null,null,null,null,null,null,null,8083,null,null,5801,null,null,null,null,null,null,null,null,null,null,null,null,null,null,null,null,null,null,null,null,"<td>&nbsp;9</td>"]
["Hexham",null,null,null,null,null,null,null,8084,null,null,5802,null,null,null,null,null,null,null,null,null,null,null,null,null,null,null,null,null,null,null,null,"<td>&nbsp;10</td>"]
["Hinckley Wharf",null,null,null,null,null,null,null,8085,null,null,5803,null,null,null,null,null,null,null,null,null,null,null,null,null,null,null,null,null,null,null,null,"<td>&nbsp;11</td>"]
["Holme Pierrepont",null,null,null,null,null,null,null,8086,null,null,5804,null,null,null,null,null,null,null,null,null,null,null,null,null,null,null,null,null,null,null,null,"<td>&nbsp;12</td>"]
["Holme Pierrepont Pool",null,null,null,null,null,null,null,8087,null,null,5805,null,null,null,null,null,null,null,null,null,null,null,null,null,null,null,null,null,null,null,null,"<td>&nbsp;13</td>"]
["Howsham Weir",null,null,null,null,null,null,null,8088,null,null,5806,null,null,null,null,null,null,null,null,null,null,null,null,null,null,null,null,null,null,null,null,"<td>&nbsp;14</td>"]
["Ironbridge",null,null,null,null,null,null,null,8089,null,null,5807,null,null,null,null,null,null,null,null,null,null,null,null,null,null,null,null,null,null,null,null,"<td>&nbsp;15</td>"]
["Kingsland Basin London",null,null,null,null,null,null,null,8090,null,null,5808,null,null,null,null,null,null,null,null,null,null,null,null,null,null,null,null,null,null,null,null,"<td>&nbsp;16</td>"]
["Kilnhurst",null,null,null,null,null,null,null,8091,null,null,5809,null,null,null,null,null,null,null,null,null,null,null,null,null,null,null,null,null,null,null,null,"<td>&nbsp;17</td>"]
["Langham Farm Frome",null,null,null,null,null,null,null,8092,null,null,5810,null,null,null,null,null,null,null,null,null,null,null,null,null,null,null,null,null,null,null,null,"<td>&nbsp;18</td>"]
["Lee Valley Legacy",null,null,null,null,null,null,null,8093,null,null,5811,null,null,null,null,null,null,null,null,null,null,null,null,null,null,null,null,null,null,null,null,"<td>&nbsp;19</td>"]
["Lee Valley Olympic",null,null,null,null,null,null,null,8094,null,null,5812,null,null,null,null,null,null,null,null,null,null,null,null,null,null,null,null,null,null,null,null,"<td>&nbsp;20</td>"]
["Linton Locks",null,null,null,null,null,null,null,8095,null,null,5813,null,null,null,null,null,null,null,null,null,null,null,null,null,null,null,null,null,null,null,null,"<td>&nbsp;21</td>"]
["Llandysul",null,null,null,null,null,null,null,8096,null,null,5814,null,null,null,null,null,null,null,null,null,null,null,null,null,null,null,null,null,null,null,null,"<td>&nbsp;22</td>"]
["Llandysul Lake",null,null,null,null,null,null,null,8097,null,null,5815,null,null,null,null,null,null,null,null,null,null,null,null,null,null,null,null,null,null,null,null,"<td>&nbsp;23</td>"]
["Market Yard Frome",null,null,null,null,null,null,null,8098,null,null,5816,null,null,null,null,null,null,null,null,null,null,null,null,null,null,null,null,null,null,null,null,"<td>&nbsp;24</td>"]
["Marple",null,null,null,null,null,null,null,8099,null,null,5817,null,null,null,null,null,null,null,null,null,null,null,null,null,null,null,null,null,null,null,null,"<td>&nbsp;</td>"]
["Matlock",null,null,null,null,null,null,null,8100,null,null,5818,null,null,null,null,null,null,null,null,null,null,null,null,null,null,null,null,null,null,null,null,"<td>&nbsp;Pen</td>"]
["Mile End Llangollen",null,null,null,null,null,null,null,8101,null,null,5819,null,null,null,null,null,null,null,null,null,null,null,null,null,null,null,null,null,null,null,null,"<td>&nbsp;Total</td>"]
["Nene White Water",null,null,null,null,null,null,null,8102,null,null,5820,null,null,null,null,null,null,null,null,null,null,null,null,null,null,null,null,null,null,null,null,"</tr>"]
["North Walls",null,null,null,null,null,null,null,8103]
["Ogmore",null,null,null,null,null,null,null,8104]
["Orton Mere",null,null,null,null,null,null,null,8105]
["Oughtibridge",null,null,null,null,null,null,null,8106]
["Outdoor Pool Hul",null,null,null,null,null,null,null,8107]
["Persley",null,null,null,null,null,null,null,8108]
["Pinkston",null,null,null,null,null,null,null,8109]
["Plas y Brenin",null,null,null,null,null,null,null,8110]
["Princes Quay Hull",null,null,null,null,null,null,null,8111]
["Rhug",null,null,null,null,null,null,null,8112]
["Richmond Pool",null,null,null,null,null,null,null,8113]
["Sands Rapid Carlisle",null,null,null,null,null,null,null,8114]
["Seaton Park",null,null,null,null,null,null,null,8115]
["Serpents Tail",null,null,null,null,null,null,null,8116]
["Shepperton",null,null,null,null,null,null,null,8117]
["Sowerby Bridge",null,null,null,null,null,null,null,8118]
["Stone",null,null,null,null,null,null,null,8119]
["Symonds Yat",null,null,null,null,null,null,null,8120]
["Tees Barrage",null,null,null,null,null,null,null,8121]
["Tees Watersports Centre",null,null,null,null,null,null,null,8122]
["Tryweryn Chapel Falls",null,null,null,null,null,null,null,8123]
["Tryweryn Graveyard",null,null,null,null,null,null,null,8124]
["Tyne Valley Prudhoe",null,null,null,null,null,null,null,8125]
["Wagon Lane Bingley",null,null,null,null,null,null,null,8126]
["Wark",null,null,null,null,null,null,null,8127]
["Washburn",null,null,null,null,null,null,null,8128]
["Wath Upon Dearn",null,null,null,null,null,null,null,8129]
["West Tanfield",null,null,null,null,null,null,null,8130]
["Winchester",null,null,null,null,null,null,null,8131]
["Windsor",null,null,null,null,null,null,null,8132]
["Winters Farm",null,null,null,null,null,null,null,8133]
["Yair Pool Selkirk",null,null,null,null,null,null,null,8134]
["Yalding Weir",null,null,null,null,null,null,null,8135]
[null,null,null,null,null,null,null,null,8136]

{"sheet":"Bibs","index":12,"n_rows":1104,"n_cols":1,"rows_kept":1104,"cut":false,"hidden":true,"merged":[]}
["PREM,K1W,1,Lois Leaver,U23,2002,Edinburgh Schools KC/Projecx,2024-12-31,S,Lois.Leaver"]
["PREM,K1W,2,Macy Kang,U23,2003,Holme Pierrepont CC,2025-02-12,E,Macy.Kang"]
["PREM,K1W,3,Amber Maslen,S,1993,Independent/GlenLyon Coffee / Dare2B,2024-05-31,S,Amber.Maslen"]
["PREM,K1W,4,Joely Walling,U23,2003,Shepperton SCC,2025-02-23,E,Joely.Walling"]
["PREM,K1W,5,Tazmin Brown,U23,2003,Proteus CC,2025-03-21,E,Tazmin.Brown"]
["PREM,K1W,6,Zoe Blythe-Shields,J18,2007,Independent,2025-01-12,E,"]
["PREM,K1W,7,Kate Lyndon,J18,2006,Stafford & Stone CC,2024-11-29,E,Kate.Lyndon"]
["PREM,K1W,8,Arina Kontchakov,J18,2007,Meridian CC/Lee Valley PC,2024-08-31,E,Arina.Kontchakov"]
["PREM,K1W,9,Katie Shattock,U23,2004,Taunton CC,2025-01-11,E,Katie.Shattock"]
["PREM,K1W,10,Joanna Blythe-Shields,U23,2003,Independent,2025-01-12,E,Joanna.Blythe-Shields"]
["PREM,K1W,11,Sofia Alfer,J18,2007,Wyedean CC,2025-01-07,E,Sofia.Alfer"]
["PREM,K1W,12,Hannah Bailey,S,1987,Stafford & Stone CC,2025-03-10,E,Hannah.Bailey"]
["PREM,K1W,13,Rachel Ellis,U23,2003,Lee Valley PC/Neustar,2024-10-30,E,Rachel.Ellis"]
["PREM,K1W,14,Sennah Nader-Humphries,J18,2006,Wyedean CC/Seren Dwr / Pyranha,2025-03-04,W,Sennah.Nader-Humphries"]
["PREM,K1W,15,Eloise Meakins,S,1993,St Albans & Hertsmere CC/We Create Better,2024-11-02,E,Eloise.Meakins"]
["PREM,K1W,16,Nikita Setchell,S,2000,Holme Pierrepont CC,2025-02-19,E,Nikita.Setchell"]
["PREM,K1W,17,Sophie Ogilvie,S,1999,CR Cats,2024-07-31,S,Sophie.Ogilvie"]
["PREM,K1W,18,Hannah Rhodes,U23,2005,Lee Valley PC,2024-10-11,E,Hannah.Rhodes"]
["PREM,K1W,19,Leah Cameron,U23,2005,Pinkston Panthers/Strathallan CC,2024-09-30,S,Leah.Cameron"]
["PREM,K1W,20,Jasmine Wilde,J16,2008,Frome CC,2024-09-11,E,"]
["PREM,K1W,21,Aimee Collins,U23,2005,Frome CC,2025-05-13,E,Aimee.Collins"]
["PREM,K1W,22,Anoushka Nabili,U23,2004,Pinkston Panthers,2025-03-31,S,Anoushka.Nabili"]
["PREM,K1W,23,Kimberley Woods,S,1995,Rugby CC/Nationwide Windows,2024-09-30,E,Kimberley.Woods"]
["PREM,K1W,24,Mallory Franklin,S,1994,Windsor & District CC,2025-03-17,E,Mallory.Franklin"]
["PREM,K1W,25,Darcey McMullins,J16,2008,Lee Valley PC,2025-03-25,E,Darcey.McMullins"]
["PREM,K1W,26,Sadie Sterry,J18,2006,Llandysul Paddlers,2025-02-06,W,"]
["PREM,K1W,27,Phoebe Spicer,S,2000,Lee Valley PC,2024-07-30,E,Phoebe.Spicer"]
["PREM,K1W,28,Kayleigh Parsons,S,2000,Shepperton SCC,2024-02-10,E,Kayleigh.Parsons"]
["PREM,K1W,29,Irina Medunyak,S,1985,Lee Valley PC,2025-02-06,E,Irina.Medunyak"]
["PREM,K1W,30,Helen Rogers,S,1995,CR Cats,2024-09-30,S,Helen.Rogers"]
["PREM,K1W,31,Molly Sandercock,U23,2004,Break Out Canoe Unit/HPP,2024-08-24,E,"]
["PREM,K1W,32,Taliesin McLean,J18,2007,Strathallan CC,2025-01-31,S,"]
["PREM,K1W,33,Laura Milne,S,2000,Pinkston Panthers,2024-07-31,S,Laura.Milne"]
["PREM,K1W,34,Olwen Yates,J16,2008,Stafford & Stone CC,2025-03-14,E,"]
["PREM,K1W,35,Ellis Miller,U23,2002,Lee Valley PC,2024-10-28,E,Ellis.Miller"]
["PREM,K1W,36,Hannah Toovey,J16,2008,CR Cats,2025-04-30,S,"]
["PREM,K1W,37,Helena Nabili,J14,2010,Pinkston Panthers,2025-03-31,S,"]
["PREM,K1W,38,Grace Shardlow,U23,2004,Holme Pierrepont CC,2024-03-19,E,Grace.Shardlow"]
["PREM,K1W,39,Claire Wilson,U23,2005,CR Cats,2024-08-31,S,"]
["PREM,K1W,40,Catrin Schroder,U23,2003,Llandysul Paddlers,2024-10-06,W,Catrin.Schroder"]
["PREM,K1W,41,Bethan Forrow,U23,2001,Lee Valley PC,2025-02-06,E,Bethan.Forrow"]
["PREM,K1W,42,Maddie Hobbs,J16,2008,Frome CC/Shepperton SCC,2024-06-07,E,"]
["PREM,K1M,1,Sam Leaver,U23,2004,Edinburgh Schools KC/Projecx,2024-12-31,S,Sam.Leaver"]
["PREM,K1M,2,Zachary Allin,S,1998,Royal Air Force,2024-12-15,E,Zachary.Allin"]
["PREM,K1M,3,Huw Swetnam,S,1981,EyeTee,2025-01-31,E,Huw.Swetnam"]
["PREM,K1M,4,Etienne Chappell,U23,2001,Seren Dwr/Llandysul Paddlers,2024-07-06,W,Etienne.Chappell"]
["PREM,K1M,5,Gwion Williams,J18,2007,Llandysul Paddlers,2025-05-25,W,"]
["PREM,K1M,6,Eren Yalkin,U23,2001,Lee Valley PC,2025-03-02,E,Eren.Yalkin"]
["PREM,K1M,7,Edward Dickinson,U23,2002,Stafford & Stone CC,2024-09-30,E,Edward.Dickinson"]
["PREM,K1M,8,David Paterson,S,2000,Manchester CC,2025-04-13,E,David.Paterson"]
["PREM,K1M,9,Thomas Mayer,U23,2003,Stafford & Stone CC,2024-10-31,E,Thomas.Mayer"]
["PREM,K1M,10,Callum Walling,S,1999,Shepperton SCC,2025-02-27,E,Callum.Walling"]
["PREM,K1M,11,Luke Kevane,U23,2004,Lower Wharfe CC,2025-03-15,E,Luke.Kevane"]
["PREM,K1M,12,Ben Brown,U23,2004,Holme Pierrepont CC,2024-07-27,E,Ben.Brown"]
["PREM,K1M,13,Edward McDonald,U23,2005,Holme Pierrepont CC,2024-08-02,E,Edward.McDonald"]
["PREM,K1M,14,Michael Brown,S,1996,CR Cats,2025-03-17,E,Michael.Brown"]
["PREM,K1M,15,Reilly Vernon,U23,2002,Holme Pierrepont CC,2023-09-06,E,Reilly.Vernon"]
["PREM,K1M,16,Padraig Cowan,U23,2003,Breadalbane CC,2024-09-30,S,Padraig.Cowan"]
["PREM,K1M,17,Paul Sunderland,S,1997,Stafford & Stone CC,2115-10-31,E,Paul.Sunderland"]
["PREM,K1M,18,Oscar Wyllie,J18,2006,Breadalbane CC,2024-09-30,S,Oscar.Wyllie"]
["PREM,K1M,19,Matthew Curry,S,2000,Holme Pierrepont CC,2024-09-15,E,Matthew.Curry"]
["PREM,K1M,20,Jake Brown,S,2000,Tees Tigers/HPPCC,2025-02-26,E,Jake.Brown"]
["PREM,K1M,21,Murray Robb,J18,2006,CR Cats,2025-01-31,S,"]
["PREM,K1M,22,Kurts-Adams Rozentals,U23,2002,Stafford & Stone CC,2024-05-14,E,Kurts-Adams.Rozentals"]
["PREM,K1M,23,Cody Brown,U23,2005,Lower Wharfe CC/Custom Shutter Design,2024-07-27,E,Cody.Brown"]
["PREM,K1M,24,Oliver Cooper,U23,2005,Seren Dwr/Llandysul Paddlers,2025-04-15,W,Oliver.Cooper"]
["PREM,K1M,25,Finlay Yates-Jones,U23,2002,Llandysul Paddlers,2024-08-18,W,Finlay.Yates-Jones"]
["PREM,K1M,26,Luca Cano-Mole,U23,2005,Shepperton SCC,2025-04-07,E,Luca.Cano-Mole"]
["PREM,K1M,27,Rob Neave,M,1985,Stafford & Stone CC,2024-05-31,E,Rob.Neave"]
["PREM,K1M,28,Anton Lippek,S,1989,Warrington CC,2024-11-20,E,Anton.Lippek"]
["PREM,K1M,29,Ben Haylett,U23,2001,Holme Pierrepont CC,2024-07-10,E,Ben.Haylett"]
["PREM,K1M,30,Nathan Nabili,J18,2006,Pinkston Panthers,2025-03-31,S,"]
["PREM,K1M,31,Sam Moss,S,1997,Holme Pierrepont CC,2024-08-28,E,Sam.Moss"]
["PREM,K1M,32,Klass-Francisks Rozentals,U23,2005,Stafford & Stone CC,2023-12-17,E,Klass-Francisks.Rozentals"]
["PREM,K1M,33,Jonathan Atkinson,S,1997,Proteus CC,2024-09-08,E,Jonathan.Atkinson"]
["PREM,K1M,34,Eddie Mackintosh,U23,2005,Manchester CC/Hexham CC,2025-05-23,E,Eddie.Mackintosh"]
["PREM,K1M,35,Harry Kirby,J18,2007,Stafford & Stone CC,2025-04-10,E,"]
["PREM,K1M,36,Robin Vasey,M,1984,Stafford & Stone CC,2025-02-12,E,Robin.Vasey"]
["PREM,K1M,37,Dominic Thomas,J18,2007,Lee Valley PC,2024-07-05,E,Dominic.Thomas"]
["PREM,K1M,38,Peter Willett,M,1984,Stafford & Stone CC,2025-03-29,E,Peter.Willett"]
["PREM,K1M,39,Robert Holdway,M,1983,Stafford & Stone CC,2024-07-24,E,Robert.Holdway"]
["PREM,K1M,40,Findlay McLean,U23,2005,Strathallan CC,2025-01-31,S,Findlay.McLean"]
["PREM,K1M,41,William Lafford,U23,2001,Wyedean CC,2025-02-06,E,William.Lafford"]
["PREM,K1M,42,David Mason,U23,2003,Wyedean CC/Stroud Valley CC,2024-09-04,E,"]
["PREM,K1M,43,Calum Cresser,S,1996,Tees Tigers,2024-05-15,E,Calum.Cresser"]
["PREM,K1M,44,Henry Lyons,U23,2001,Aberdeen KC,2024-10-31,S,Henry.Lyons"]
["PREM,K1M,45,Oliver Snowden,U23,2004,North Wales Slalom,2024-05-30,W,Oliver.Snowden"]
["PREM,K1M,46,Irvine McDonald,U23,2005,Strathallan CC/Central Squads,2025-04-30,S,"]
["PREM,K1M,47,Thomas Merrifield,U23,2004,Taunton CC,2025-03-28,E,Thomas.Merrifield"]
["PREM,K1M,48,Jake Silvester,S,1992,Independent,2025-02-19,E,Jake.Silvester"]
["PREM,K1M,49,Robert Guest,U23,2005,Manchester CC,2024-06-16,E,Robert.Guest"]
["PREM,K1M,50,Christopher Bowers,S,1998,Stafford & Stone CC,2025-02-13,E,Christopher.Bowers"]
["PREM,K1M,51,Jonny Dickson,U23,2001,CR Cats/Allatus Unity,2024-08-30,E,Jonny.Dickson"]
["PREM,K1M,52,Neil Caffrey,M,1980,CR Cats,2025-01-08,NI,Neil.Caffrey"]
["PREM,K1M,53,Jacob Law,J18,2006,Winchester & District CC/Shepperton SCC,2024-11-28,E,"]
["PREM,K1M,54,Herbie Staines,J18,2007,Lee Valley PC,2024-09-05,E,"]
["PREM,K1M,55,Finn Johnson,U23,2004,Frome CC,2024-10-14,E,Finn.Johnson"]
["PREM,K1M,56,Harry Joyce,U23,2005,Shepperton SCC,2024-06-16,E,Harry.Joyce"]
["PREM,K1M,57,Felix Newey,U23,2004,Wyedean CC,2024-10-26,E,Felix.Newey"]
["PREM,K1M,58,James Bailey,S,1989,Bradford & Bingley CC,2024-09-04,E,James.Bailey"]
["PREM,K1M,59,Jonah Hanrahan,J18,2006,Independent,2024-09-02,E,"]
["PREM,K1M,60,Scott Ritchie,J18,2006,Pinkston Panthers,2024-04-30,S,"]
["PREM,K1M,61,James Lyndon,S,2000,Independent,2024-04-24,E,James.Lyndon"]
["PREM,K1M,62,Andrew Crowhurst,S,1999,Halifax CC,2115-10-31,E,Andrew.Crowhurst"]
["PREM,K1M,63,Elliot Davis,S,1999,Cheltenham CC,2024-06-18,E,Elliot.Davis"]
["PREM,K1M,64,Woody South,J18,2006,Lee Valley PC,2024-09-09,E,Woody.South"]
["PREM,K1M,65,James Rennie,U23,2004,Holme Pierrepont CC,2024-01-19,E,James.Rennie"]
["PREM,K1M,66,Joe Clarke,S,1992,Stafford & Stone CC,2025-03-08,E,Joe.Clarke"]
["PREM,K1M,67,Ciaran Lee-Edwards,S,1993,Llandysul Paddlers,2024-03-17,E,Ciaran.Lee-Edwards"]
["PREM,K1M,68,Robert Fernie,U23,2001,Holme Pierrepont CC,2023-05-28,E,Robert.Fernie"]
["PREM,K1M,69,Harvey Merrifield,U23,2001,Taunton CC,2025-03-28,E,Harvey.Merrifield"]
["PREM,K1M,70,Theo Wright,J16,2008,Independent,2024-05-11,E,"]
["PREM,C1W,1,Joanna Blythe-Shields,U23,2003,Independent,2025-01-12,E,Joanna.Blythe-Shields"]
["PREM,C1W,2,Rachel Ellis,U23,2003,Lee Valley PC/Neustar,2024-10-30,E,Rachel.Ellis"]
["PREM,C1W,3,Kate Lyndon,J18,2006,Stafford & Stone CC,2024-11-29,E,"]
["PREM,C1W,4,Zoe Blythe-Shields,J18,2007,Independent,2025-01-12,E,Zoe.Blythe-Shields"]
["PREM,C1W,5,Katie Shattock,U23,2004,Taunton CC,2025-01-11,E,Katie.Shattock"]
["PREM,C1W,6,Darcey McMullins,J16,2008,Lee Valley PC,2025-03-25,E,Darcey.McMullins"]
["PREM,C1W,7,Aimee Collins,U23,2005,Frome CC,2025-05-13,E,Aimee.Collins"]
["PREM,C1W,8,Sophie Ogilvie,S,1999,CR Cats,2024-07-31,S,Sophie.Ogilvie"]
["PREM,C1W,9,Arina Kontchakov,J18,2007,Meridian CC/Lee Valley PC,2024-08-31,E,Arina.Kontchakov"]
["PREM,C1W,10,Sadie Sterry,J18,2006,Llandysul Paddlers,2025-02-06,W,"]
["PREM,C1W,11,Mallory Franklin,S,1994,Windsor & District CC,2025-03-17,E,Mallory.Franklin"]
["PREM,C1W,12,Leah Cameron,U23,2005,Pinkston Panthers/Strathallan CC,2024-09-30,S,Leah.Cameron"]
["PREM,C1W,13,Kimberley Woods,S,1995,Rugby CC/Nationwide Windows,2024-09-30,E,Kimberley.Woods"]
["PREM,C1W,14,Phoebe Spicer,S,2000,Lee Valley PC,2024-07-30,E,Phoebe.Spicer"]
["PREM,C1W,15,Eilidh Gibson,S,1995,Strathallan CC,2024-12-31,S,Eilidh.Gibson"]
["PREM,C1W,16,Taliesin McLean,J18,2007,Strathallan CC,2025-01-31,S,"]
["PREM,C1W,17,Hannah Rhodes,U23,2005,Lee Valley PC,2024-10-11,E,"]
["PREM,C1W,18,Jasmine Wilde,J16,2008,Frome CC,2024-09-11,E,"]
["PREM,C1W,20,Ellis Miller,U23,2002,Lee Valley PC,2024-10-28,E,Ellis.Miller"]
["PREM,C1W,21,Hannah Toovey,J16,2008,CR Cats,2025-04-30,S,"]
["PREM,C1W,22,Bethan Forrow,U23,2001,Lee Valley PC,2025-02-06,E,Bethan.Forrow"]
["PREM,C1W,23,Eloise Meakins,S,1993,St Albans & Hertsmere CC,2024-11-02,E,Eloise.Meakins"]
["PREM,C1W,24,Sophie Cameron,J16,2008,CR Cats/Pinkston Panthers,2024-09-30,S,"]
["PREM,C1M,1,Kurts-Adams Rozentals,U23,2002,Stafford & Stone CC,2024-05-14,E,Kurts-Adams.Rozentals"]
["PREM,C1M,2,William Coney,S,1997,Llandysul Paddlers/Seren Dwr,2024-11-14,E,William.Coney"]
["PREM,C1M,3,Luc Royle,U23,2003,Stafford & Stone CC/FMS / CKC,2025-02-01,E,Luc.Royle"]
["PREM,C1M,4,Sam Ibbotson,S,1996,Holme Pierrepont CC,2024-05-29,E,Sam.Ibbotson"]
["PREM,C1M,5,Edward McDonald,U23,2005,Holme Pierrepont CC,2024-08-02,E,Edward.McDonald"]
["PREM,C1M,6,Callum Walling,S,1999,Shepperton SCC,2025-02-27,E,Callum.Walling"]
["PREM,C1M,7,Vittorio Pezzaioli,U23,2002,CR Cats,2024-11-30,S,Vittorio.Pezzaioli"]
["PREM,C1M,8,Alfie Boote,U23,2001,Stafford & Stone CC/Polyflon,2024-03-21,E,Alfie.Boote"]
["PREM,C1M,9,Gabriel Keen,U23,2003,Holme Pierrepont CC,2025-03-10,E,Gabriel.Keen"]
["PREM,C1M,10,Peter Linksted,S,2000,Independent,2025-04-30,S,Peter.Linksted"]
["PREM,C1M,11,Klass-Francisks Rozentals,U23,2005,Stafford & Stone CC,2023-12-17,E,Klass-Francisks.Rozentals"]
["PREM,C1M,12,Philip Smith,U23,2004,Winchester & District CC/Shepperton SCC,2024-06-08,E,Philip.Smith"]
["PREM,C1M,13,William Kettle,J18,2006,Lee Valley PC,2024-10-13,E,William.Kettle"]
["PREM,C1M,14,James Kettle,U23,2001,Lee Valley PC,2024-10-13,E,James.Kettle"]
["PREM,C1M,15,William Mayer,U23,2005,Stafford & Stone CC,2024-10-31,E,William.Mayer"]
["PREM,C1M,16,Christopher Royle,U23,2004,Stafford & Stone CC/CKC,2025-02-01,E,Christopher.Royle"]
["PREM,C1M,17,Findlay McLean,U23,2005,Strathallan CC,2025-01-31,S,"]
["PREM,C1M,18,Sam Maingay,S,2000,Royal Navy Kayak Association/Stafford & Stone CC,2025-03-02,E,Sam.Maingay"]
["PREM,C1M,19,Ryan Westley,S,1993,Lower Wharfe CC,2025-02-13,E,Ryan.Westley"]
["PREM,C1M,20,Isaac Wright,J18,2007,Independent,2024-05-11,E,Isaac.Wright"]
["PREM,C1M,21,Woody South,J18,2006,Lee Valley PC,2024-09-09,E,Woody.South"]
["PREM,C1M,22,Jake Cox,S,1999,Lee Valley PC,2024-05-26,E,Jake.Cox"]
["PREM,C1M,23,Zachary Allin,S,1998,Royal Air Force,2024-12-15,E,Zachary.Allin"]
["PREM,C1M,24,Aaron Holmes,S,2000,Breadalbane CC,2024-05-31,S,Aaron.Holmes"]
["PREM,C1M,25,Sonny Shevill,U23,2004,Lee Valley PC,2025-04-13,E,Sonny.Shevill"]
["PREM,C1M,26,Talu Aysan,J16,2008,Lee Valley PC,2024-07-15,E,"]
["PREM,C1M,27,Toby Aston,U23,2003,Shepperton SCC,2024-09-18,E,"]
["PREM,C1M,28,Adam Burgess,S,1992,Stafford & Stone CC/JCB Ltd,2025-02-13,E,Adam.Burgess"]
["PREM,C1M,29,Ryan Mallon,U23,2005,CR Cats,2024-06-30,S,"]
["PREM,C1M,30,Leo Miller,J16,2008,Stafford & Stone CC,2025-04-11,E,"]
["PREM,C1M,31,Michael Brown,S,1996,CR Cats,2025-03-17,E,Michael.Brown"]
["PREM,C1M,32,James Rennie,U23,2004,Holme Pierrepont CC,2024-01-19,E,James.Rennie"]
["PREM,C1M,33,Michael Denvir,U23,2001,Forth CC,2024-12-31,S,Michael.Denvir"]
["PREM,C1M,34,Robert Fernie,U23,2001,Holme Pierrepont CC,2023-05-28,E,Robert.Fernie"]
["PREM,C1M,35,Lewis Arden,J16,2008,Manvers WBC,2024-08-26,E,"]
["PREM,C1M,36,Harry McKenna,J18,2006,Stafford & Stone CC/Greenshields JCB Ltd,2025-03-03,E,"]
["PREM-3 C2,C2,1,Sophie Cameron / Vittorio Pezzaioli,U23,2002,CR Cats,2024-09-30,S,Sophie.Cameron / Vittorio.Pezzaioli"]
["PREM-3 C2,C2,2,George Harratt / Robert Harratt,S,1996,Stafford & Stone CC,2024-06-19,E,George.Harratt / Robert.Harratt"]
["PREM-3 C2,C2,3,George Harratt / Steve Harratt,S,1966,Stafford & Stone CC,2024-06-19,E,George.Harratt / Steve.Harratt"]
["PREM-3 C2,C2,4,Robert Harratt / Steve Harratt,S,1966,Stafford & Stone CC,2024-07-06,E,Robert.Harratt / Steve.Harratt"]
["PREM-3 C2,C2,5,Robyn Taunt / Oliver Snowden,U23,2004,North Wales Slalom,2024-05-30,W,Robyn.Taunt / Oliver.Snowden"]
["PREM-3 C2,C2,6,Rebecca Harratt / Steve Harratt,S,1966,Stafford & Stone CC,2024-07-06,E,Rebecca.Harratt / Steve.Harratt"]
["PREM-3 C2,C2,7,Michael Stegeman / Jason Reid,S,1971,Proteus CC,2024-07-01,E,Michael.Stegeman / Jason.Reid"]
["PREM-3 C2,C2,8,Rebecca Harratt / Robert Harratt,S,1996,Stafford & Stone CC,2024-07-06,E,Rebecca.Harratt / Robert.Harratt"]
["PREM-3 C2,C2,9,Matt Crowhurst / George Harratt,S,1996,Sheffield CC/Stafford & Stone CC,2024-06-19,E,Matt.Crowhurst / George.Harratt"]
["PREM-3 C2,C2,10,Callum McDonald / Aidan Thacker,J18,2006,CR Cats,2025-03-31,S,Callum.McDonald / Aidan.Thacker"]
["PREM-3 C2,C2,11,Clive Merrifield / Mike Mitchell,M,1957,Taunton CC/Wyedean CC,2024-09-28,E,Clive.Merrifield / Mike.Mitchell"]
["PREM-3 C2,C2,12,Findlay McLean / Taliesin McLean,U23,2005,Strathallan CC/Pinkston Panthers,2025-01-31,S,Findlay.McLean / Taliesin.McLean"]
["PREM-3 C2,C2,13,Elliot Davis / Callum Jones,S,1999,Cheltenham CC,2024-06-10,E,Elliot.Davis / Callum.Jones"]
["PREM-3 C2,C2,14,Caitlan Scobie / Alistair Ross,J18,2007,Strathallan CC,2025-02-28,S,Caitlan.Scobie / Alistair.Ross"]
["PREM-3 C2,C2,15,Richard Comer / Richard Moore,S,1970,Windsor & District CC,2024-09-05,E,Richard.Comer / Richard.Moore"]
["PREM-3 C2,C2,16,James Stephens / Paul Stephens,S,1974,Viking KC,2024-09-07,E,James.Stephens / Paul.Stephens"]
["PREM-3 C2,C2,17,Harry McKenna / Leo Miller,J18,2006,Stafford & Stone CC,2025-03-03,E,Harry.McKenna / Leo.Miller"]
["PREM-3 C2,C2,18,Sally Atkinson / Kate Kent,M,1963,Proteus CC,2024-08-29,E,Sally.Atkinson / Kate.Kent"]
["PREM-3 C2,C2,19,John Kent / Andrew Lyall,M,1949,Frome CC,2024-04-30,E,John.Kent / Andrew.Lyall"]
["PREM-3 C2,C2,20,Adam Stephens / Paul Stephens,S,1974,Viking KC,2024-09-07,E,Adam.Stephens / Paul.Stephens"]
["PREM-3 C2,C2,21,Ingela Hoeglund / Phil Barber,S,1969,Stafford & Stone CC,2024-06-27,E,Ingela.Hoeglund / Phil.Barber"]
["PREM-3 C2,C2,22,Elliot Davis / Mari Watkins,S,1999,Cheltenham CC,2024-06-18,E,Elliot.Davis / Mari.Watkins"]
["PREM-3 C2,C2,23,Neal Underwood / Jasmin Uhlhorn,S,1960,The Sharks,2024-06-28,E,Neal.Underwood / Jasmin.Uhlhorn"]
["PREM-3 C2,C2,24,Neal Underwood / Fleur Harman,S,1960,The Sharks,2024-09-05,E,Neal.Underwood / Fleur.Harman"]
["PREM-3 C2,C2,25,Ingela Hoeglund / Charlotte Fraser,S,1969,Stafford & Stone CC,2025-01-24,E,Ingela.Hoeglund / Charlotte.Fraser"]
["PREM-3 C2,C2,26,Annabel Goodenough / Angus Stevens,J16,2009,Strathallan CC,2023-12-31,S,Annabel.Goodenough / Angus.Stevens"]
["PREM-3 C2,C2,27,Ingela Hoeglund / Clare Woolley,S,1969,Stafford & Stone CC,2023-10-20,E,Ingela.Hoeglund / Clare.Woolley"]
["PREM-3 C2,C2,28,Steven Green / Philip Green,S,1967,Worcester CC,1970-01-01,E,Steven.Green / Philip.Green"]
["PREM-3 C2,C2,29,James Roden / Andrew Roden,S,1975,Stafford & Stone CC,2025-02-04,E,James.Roden / Andrew.Roden"]
["PREM-3 C2,C2,30,Amelia White / Gabriel Rawlings-Crofts,U23,2005,Stafford & Stone CC,2024-06-15,E,Amelia.White / Gabriel.Rawlings-Crofts"]
["PREM-3 C2,C2,31,Lisa Meleri Williams / Leo Haston-Wilson,J18,2006,North Wales Slalom,2023-10-17,W,Lisa Meleri.Williams / Leo.Haston-Wilson"]
["PREM-3 C2,C2,32,Alison Longhurst / Heather Longhurst,S,1979,Cheltenham CC,2024-09-30,E,Alison.Longhurst / Heather.Longhurst"]
["PREM-3 C2,C2,33,Ailsa Scobie / Caitlan Scobie,J16,2008,Strathallan CC,2025-02-28,S,Ailsa.Scobie / Caitlan.Scobie"]
["PREM-3 C2,C2,34,Annabel Goodenough / Ailsa Scobie,J16,2009,Strathallan CC,2025-02-28,S,Annabel.Goodenough / Ailsa.Scobie"]
["PREM-3 C2,C2,35,Les Ford / Sarah Ford,M,1971,Halifax CC,2024-08-02,E,Les.Ford / Sarah.Ford"]
["PREM-3 C2,C2,36,Andrew Davies / Rupert Rawding,S,1975,Kingston KC,2024-07-11,E,Andrew.Davies / Rupert.Rawding"]
["PREM-3 C2,C2,37,Dan Rawding / Rupert Rawding,S,1989,Kingston KC,2024-07-11,E,Dan.Rawding / Rupert.Rawding"]
["PREM-3 C2,C2,38,Callum Jones / Richard Longhurst,S,1980,Wyedean CC,2022-09-30,E,Callum.Jones / Richard.Longhurst"]
["PREM-3 C2,C2,39,Annabel Goodenough / Josephine Carr,J16,2009,Strathallan CC,2025-03-31,S,Annabel.Goodenough / Josephine.Carr"]
["PREM-3 C2,C2,40,Callum Jones / Charlie Leonard,J16,2008,Wyedean CC,2024-06-10,E,Callum.Jones / Charlie.Leonard"]
["PREM-3 C2,C2,41,Jake Mitchell / Mike Mitchell,S,1957,Wyedean CC,2024-08-11,E,Jake.Mitchell / Mike.Mitchell"]
["PREM-3 C2,C2,42,David Quinn / Gary Clow,M,1968,Pinkston Panthers,2024-06-30,S,David.Quinn / Gary.Clow"]
["PREM-3 C2,C2,43,Harvey Merrifield / Thomas Merrifield,U23,2001,Taunton CC,2025-03-28,E,Harvey.Merrifield / Thomas.Merrifield"]
["PREM-3 C2,C2,44,Gareth Wilson / Paul Ramsdale,S,1986,Lee Valley PC,2025-04-12,E,Gareth.Wilson / Paul.Ramsdale"]
["PREM-3 C2,C2,45,Ash Humphrey / Esme Price,J16,2008,CR Cats,2024-05-31,S,Ash.Humphrey / Esme.Price"]
["DIV 1,K1W,1,Iga Tomasik,J16,2008,Manvers WBC,2024-07-01,E,Iga.Tomasik"]
["DIV 1,K1W,2,Maddie Hobbs,J16,2008,Frome CC/Shepperton SCC,2024-06-07,E,"]
["DIV 1,K1W,3,Hanna Griffiths,J18,2006,Llandysul Paddlers,2024-06-15,W,Hanna.Griffiths"]
["DIV 1,K1W,4,Aimee Cameron,J16,2008,CR Cats,2025-04-30,S,Aimee.Cameron"]
["DIV 1,K1W,5,Gracie Gormal,U23,2004,Pinkston Panthers,2025-01-31,S,Gracie.Gormal"]
["DIV 1,K1W,6,Daisy Macklin,J16,2008,Stafford & Stone CC,2024-07-04,E,Daisy.Macklin"]
["DIV 1,K1W,7,Eiri O'Connor,J16,2009,Llandysul Paddlers,2025-01-12,W,Eiri.O'Connor"]
["DIV 1,K1W,8,Charlotte Owen,J14,2010,Llandysul Paddlers,2025-01-09,E,Charlotte.Owen"]
["DIV 1,K1W,9,Robyn Taunt,J16,2009,North Wales Slalom/Mold,2024-09-18,W,Robyn.Taunt"]
["DIV 1,K1W,10,Sophie Cameron,J16,2008,CR Cats/Pinkston Panthers,2024-09-30,S,Sophie.Cameron"]
["DIV 1,K1W,11,Freya Pryce,J18,2006,Edinburgh Schools KC,2024-06-30,S,"]
["DIV 1,K1W,12,Lara Elcock,J16,2008,North Wales Slalom,2025-06-04,W,Lara.Elcock"]
["DIV 1,K1W,13,Leisa Thomas,J18,2006,Llandysul Paddlers,2024-08-07,W,"]
["DIV 1,K1W,14,Lucy Bowen,J14,2010,Llandysul Paddlers,2025-02-02,W,Lucy.Bowen"]
["DIV 1,K1W,15,Lorelei Kennan,J14,2010,North Wales Slalom/Mold Canoe Club,2024-06-29,W,Lorelei.Kennan"]
["DIV 1,K1W,16,Alana Middleton,J18,2007,Stafford & Stone CC,2023-07-02,E,Alana.Middleton"]
["DIV 1,K1W,17,Lutza Torok,S,1997,Pinkston Panthers/UTE,2025-04-30,S,Lutza.Torok"]
["DIV 1,K1W,18,Rebecca Guest,J18,2007,Manchester CC,2024-06-16,E,Rebecca.Guest"]
["DIV 1,K1W,19,Evie Lancaster,J16,2009,Manvers WBC,2025-05-28,E,"]
["DIV 1,K1W,20,Kate Kent,M,1977,Proteus CC,2024-08-29,E,Kate.Kent"]
["DIV 1,K1W,21,Cari Jones,J16,2008,Llandysul Paddlers,2024-10-11,W,"]
["DIV 1,K1W,22,Emily Maclean,J18,2007,Pinkston Panthers,2024-09-30,S,"]
["DIV 1,K1W,23,Sally Atkinson,M,1963,Proteus CC,2025-05-31,E,Sally.Atkinson"]
["DIV 1,K1W,24,Sophie Forster,J16,2009,Holme Pierrepont CC,2024-07-25,E,"]
["DIV 1,K1W,25,Mari Watkins,S,2000,Llandysul Paddlers,2025-01-07,W,Mari.Watkins"]
["DIV 1,K1W,26,Rhona Nakhaei,J18,2007,Pinkston Panthers,2025-01-31,S,"]
["DIV 1,K1W,27,Ash Humphrey,J16,2008,CR Cats,2024-06-30,S,"]
["DIV 1,K1W,28,Catherine Roberts,S,1995,Wyedean CC,2025-03-14,E,Catherine.Roberts"]
["DIV 1,K1W,29,Anna-Louise Glendenning,M,1988,Proteus CC/The Artist Jeal,2024-08-28,E,Anna-Louise.Glendenning"]
["DIV 1,K1W,30,Chloe Holmes,J14,2010,Manchester CC/Kingston KC,2025-02-28,E,"]
["DIV 1,K1W,31,Olivia Wears,J18,2006,CR Cats,2024-10-31,S,Olivia.Wears"]
["DIV 1,K1W,32,Emma Mitchell,J14,2011,Wyedean CC,2024-08-11,E,"]
["DIV 1,K1W,33,Isobel Mockett,U23,2005,Stafford & Stone CC,2025-01-10,E,Isobel.Mockett"]
["DIV 1,K1W,34,Hannah Clements,S,1997,Llandysul Paddlers/Shepperton,2024-09-18,W,Hannah.Clements"]
["DIV 1,K1W,35,Julie Kolb,M,1966,Bradford & Bingley CC,2024-07-30,E,Julie.Kolb"]
["DIV 1,K1W,36,Ridhi Makwana,J16,2008,Independent,2024-08-31,E,"]
["DIV 1,K1W,37,Megan Pillinger,S,1998,Stafford & Stone CC,2024-01-17,E,Megan.Pillinger"]
["DIV 1,K1W,38,Alice Williamson,J16,2008,Stafford & Stone CC,2025-01-31,E,Alice.Williamson"]
["DIV 1,K1W,39,Jessica Goodman,J14,2011,Frome CC,2024-06-19,E,"]
["DIV 1,K1W,40,Jessica Punchard,J16,2008,Stafford & Stone CC,2024-07-15,E,"]
["DIV 1,K1W,41,Holly Scott,J16,2009,Stafford & Stone CC,2024-11-04,E,Holly.Scott"]
["DIV 1,K1W,42,Sophie Reid,J16,2009,Llandysul Paddlers,2024-05-29,W,"]
["DIV 1,K1W,43,Lucy Williamson,J16,2008,Stafford & Stone CC,2025-01-31,E,Lucy.Williamson"]
["DIV 1,K1W,44,Sally Cresswell Cast,S,1994,Matlock CC,2024-08-22,E,Sally.Cresswell Cast"]
["DIV 1,K1W,45,Willow Rodi,J14,2011,Stafford & Stone CC,2024-09-19,E,"]
["DIV 1,K1W,46,Amy Howarth,S,2000,Bradford & Bingley CC,2024-09-30,E,Amy.Howarth"]
["DIV 1,K1W,47,Aisling Conlan,S,1992,Green Star CC,2023-09-22,NI,Aisling.Conlan"]
["DIV 1,K1W,48,Isla Phillips,J12,2012,CR Cats,2024-05-31,S,"]
["DIV 1,K1M,1,Hayden Ridley,J16,2008,Lee Valley PC/Shepperton SCC,2024-06-25,E,Hayden.Ridley"]
["DIV 1,K1M,2,Carl Sunderland,S,1993,Stafford & Stone CC,2115-10-31,E,Carl.Sunderland"]
["DIV 1,K1M,3,Thomas Arrowsmith,J18,2006,Holme Pierrepont CC,2024-11-01,E,"]
["DIV 1,K1M,4,Theo Wright,J16,2008,Independent,2024-05-11,E,Theo.Wright"]
["DIV 1,K1M,5,Deio Thomas,J16,2009,Llandysul Paddlers,2024-05-29,W,"]
["DIV 1,K1M,6,Louie Gordon,J18,2006,Holme Pierrepont CC,2025-04-17,E,Louie.Gordon"]
["DIV 1,K1M,7,James Jackson,U23,2004,Seren Dwr,2024-09-13,W,James.Jackson"]
["DIV 1,K1M,8,Daniel Lafford,U23,2001,Wyedean CC,2024-02-20,E,Daniel.Lafford"]
["DIV 1,K1M,9,Reuben Yates,J16,2009,Stafford & Stone CC,2025-03-14,E,"]
["DIV 1,K1M,10,Richard Stalker,S,1997,Copeland CC,2025-02-28,E,Richard.Stalker"]
["DIV 1,K1M,11,Austin Gould,J18,2007,Manvers WBC/Green Star CC,2025-02-21,E,"]
["DIV 1,K1M,12,Nick Mitchell,M,1983,Wyedean CC,2024-08-11,E,Nick.Mitchell"]
["DIV 1,K1M,13,Harry McKenna,J18,2006,Stafford & Stone CC/Greenshields JCB Ltd,2025-03-03,E,Harry.McKenna"]
["DIV 1,K1M,14,Mark Wignall,M,1973,Engineering Paddler Designs,2025-03-04,E,Mark.Wignall"]
["DIV 1,K1M,15,Luke Robinson,J18,2006,Break Out Canoe Unit,2024-07-03,E,Luke.Robinson"]
["DIV 1,K1M,16,Alistair Ross,J18,2007,Strathallan CC,2025-04-30,S,Alistair.Ross"]
["DIV 1,K1M,17,Jacob Mockler,J16,2009,Manvers WBC,2025-05-03,E,Jacob.Mockler"]
["DIV 1,K1M,18,Matthew Telfer,J18,2007,Forth CC/CR Cats,2025-02-28,S,"]
["DIV 1,K1M,19,Rob Stalker,S,1993,Copeland CC,2024-03-19,E,Rob.Stalker"]
["DIV 1,K1M,20,Sid Griffiths,J14,2011,Wyedean CC,2024-09-06,E,Sid.Griffiths"]
["DIV 1,K1M,21,Arthur Jacques,J18,2006,CR Cats,2024-06-30,S,"]
["DIV 1,K1M,22,Lewis Arden,J16,2008,Manvers WBC,2024-08-26,E,Lewis.Arden"]
["DIV 1,K1M,23,Cynyr Macrae,J18,2007,Llandysul Paddlers,2024-05-24,W,Cynyr.Macrae"]
["DIV 1,K1M,24,Efan Welton,J16,2009,Llandysul Paddlers,2024-07-07,W,"]
["DIV 1,K1M,25,Talu Aysan,J16,2008,Lee Valley PC,2024-07-15,E,"]
["DIV 1,K1M,26,Jacob Burton,S,2000,Wyedean CC,2025-06-01,E,Jacob.Burton"]
["DIV 1,K1M,27,Jake Mitchell,J14,2010,Wyedean CC,2024-08-11,E,"]
["DIV 1,K1M,28,Jacob Oakland,U23,2003,Independent,2024-12-06,E,Jacob.Oakland"]
["DIV 1,K1M,29,Samuel Stroud,J18,2007,Taunton CC,2024-07-19,E,"]
["DIV 1,K1M,30,Cameron McNab,J18,2006,Edinburgh Schools KC,2024-05-31,S,Cameron.McNab"]
["DIV 1,K1M,31,Andy Laird,M,1975,Copeland CC/EPD,2024-06-22,E,Andy.Laird"]
["DIV 1,K1M,32,Jun Yi Ong,S,1996,Lee Valley PC,2024-08-01,E,Jun Yi.Ong"]
["DIV 1,K1M,33,Joseph Whittington,J18,2007,Frome CC,2025-05-03,E,Joseph.Whittington"]
["DIV 1,K1M,34,Sebastian Reeves,J16,2008,Lee Valley PC,2025-02-10,E,"]
["DIV 1,K1M,35,Gabriel Rawlings-Crofts,J18,2006,Stafford & Stone CC,2025-02-23,E,Gabriel.Rawlings-Crofts"]
["DIV 1,K1M,36,Leo Timlin,U23,2003,Shepperton SCC,2024-06-15,E,Leo.Timlin"]
["DIV 1,K1M,37,Adam Knox,J18,2006,Pinkston Panthers,2025-01-31,S,"]
["DIV 1,K1M,38,Abel Blythe,J16,2008,Manchester CC,2025-03-02,E,Abel.Blythe"]
["DIV 1,K1M,39,Oliver Shadwell,J18,2007,Lee Valley PC,2024-10-06,E,Oliver.Shadwell"]
["DIV 1,K1M,40,Toby Wilde,J18,2006,Frome CC,2024-09-11,E,Toby.Wilde"]
["DIV 1,K1M,41,Nick Jackson,S,1999,Copeland CC,2025-04-26,E,Nick.Jackson"]
["DIV 1,K1M,42,Elliot Davie,J18,2006,Breadalbane CC,2024-09-30,S,Elliot.Davie"]
["DIV 1,K1M,43,Alasdair McMullen,S,1992,Strathallan CC,2025-01-31,S,Alasdair.McMullen"]
["DIV 1,K1M,44,Alexavier Aldred,U23,2004,Independent,2024-08-19,E,Alexavier.Aldred"]
["DIV 1,K1M,45,Ben Watkins,J14,2010,Wyedean CC,2024-10-11,E,"]
["DIV 1,K1M,46,Alex Cleator,J16,2009,Holme Pierrepont CC,2024-09-30,E,"]
["DIV 1,K1M,47,Alex Jones,M,1985,Independent,2024-06-27,E,Alex.Jones"]
["DIV 1,K1M,48,Charlie Leonard,J16,2008,Llandysul Paddlers,2024-07-29,W,"]
["DIV 1,K1M,49,Luke Wilkinson,U23,2005,Manvers WBC/Green Star CC,2024-06-28,E,Luke.Wilkinson"]
["DIV 1,K1M,50,Callum Jones,J16,2008,Wyedean CC,2024-06-10,E,"]
["DIV 1,K1M,51,Ross Claydon,J18,2006,CR Cats,2025-04-30,S,"]
["DIV 1,K1M,52,Joshua Spackman,J18,2006,Shepperton SCC,2024-08-02,E,"]
["DIV 1,K1M,53,Fergus Davie,J18,2007,Breadalbane CC,2024-09-30,S,Fergus.Davie"]
["DIV 1,K1M,54,Edward Searle,U23,2005,Shepperton SCC,2024-05-16,E,Edward.Searle"]
["DIV 1,K1M,55,Joshua Phillpotts,J18,2007,Shepperton SCC,2025-02-19,E,"]
["DIV 1,K1M,56,Ben Farrell,U23,2003,Seren Dwr,2025-02-11,W,Ben.Farrell"]
["DIV 1,K1M,57,Andrew McKenzie,J18,2006,Strathallan CC,2024-07-31,S,"]
["DIV 1,K1M,58,Josef Preston,J14,2010,Wyedean CC,2024-06-01,E,"]
["DIV 1,K1M,59,Les Ford,M,1971,Halifax CC,2024-08-02,E,Les.Ford"]
["DIV 1,K1M,60,Dan Clarke,J16,2009,Stafford & Stone CC,2024-09-03,E,"]
["DIV 1,K1M,61,Lucas Stevens,J16,2008,Holme Pierrepont CC,2025-04-18,E,"]
["DIV 1,K1M,62,Finlay Glanville,J18,2006,Shepperton SCC,2025-06-08,E,"]
["DIV 1,K1M,63,Murray E Weir,J18,2007,Breadalbane CC,2025-04-30,S,Murray E.Weir"]
["DIV 1,K1M,64,Ruaraidh Fowler,J16,2008,CR Cats,2024-05-31,S,"]
["DIV 1,K1M,65,Kitchener Duckworth,J18,2006,Wyedean CC,2024-10-05,W,Kitchener.Duckworth"]
["DIV 1,K1M,66,Joseph Gretton,U23,2005,Breadalbane CC,2024-11-30,S,"]
["DIV 1,K1M,67,Leo Bambridge,U23,2004,Shepperton SCC,2024-09-28,E,Leo.Bambridge"]
["DIV 1,K1M,68,Alasdair Woodward,U23,2004,Wyedean CC,2024-10-02,E,"]
["DIV 1,K1M,69,Tom Hibberd,S,1997,Royal Air Force,2024-05-22,E,Tom.Hibberd"]
["DIV 1,K1M,70,Gabriel Johnson,J16,2008,Holme Pierrepont CC,2023-05-18,E,"]
["DIV 1,K1M,71,Matt Ward,S,1983,Cheltenham CC/FFB Racers,2024-07-05,E,"]
["DIV 1,K1M,72,Isaac Wright,J18,2007,Independent,2024-05-11,E,Isaac.Wright"]
["DIV 1,K1M,74,Tom Robinson,S,1996,Salisbury CC,1970-01-01,E,Tom.Robinson"]
["DIV 1,K1M,75,Callum Massey,U23,2003,Break Out Canoe Unit,2025-01-29,E,Callum.Massey"]
["DIV 1,K1M,76,George Eastwood,U23,2001,Royal Air Force,2018-06-09,E,George.Eastwood"]
["DIV 1,K1M,77,Robert Grant,J16,2009,Breadalbane CC,2024-05-31,S,"]
["DIV 1,K1M,78,Thomas Kent,J16,2009,Stafford & Stone CC,2025-03-20,E,"]
["DIV 1,K1M,79,Lewis Rogers,J16,2008,North Wales Slalom/Mold CC,2024-10-26,W,"]
["DIV 1,C1W,1,Sophie Cameron,J16,2008,CR Cats/Pinkston Panthers,2024-09-30,S,Sophie.Cameron"]
["DIV 1,C1W,2,Lorelei Kennan,J14,2010,North Wales Slalom,2024-06-29,W,"]
["DIV 1,C1W,3,Emily Maclean,J18,2007,Pinkston Panthers,2024-09-30,S,"]
["DIV 1,C1W,4,Aimee Cameron,J16,2008,CR Cats,2025-04-30,S,"]
["DIV 1,C1W,5,Daisy Macklin,J16,2008,Stafford & Stone CC,2024-07-04,E,Daisy.Macklin"]
["DIV 1,C1W,6,Robyn Taunt,J16,2009,North Wales Slalom/Mold CC,2024-09-18,W,Robyn.Taunt"]
["DIV 1,C1W,7,Ridhi Makwana,J16,2008,Independent,2024-08-31,E,Ridhi.Makwana"]
["DIV 1,C1W,8,Charlotte Owen,J14,2010,Llandysul Paddlers,2025-01-09,E,Charlotte.Owen"]
["DIV 1,C1W,9,Lucy Bowen,J14,2010,Llandysul Paddlers,2025-02-02,W,Lucy.Bowen"]
["DIV 1,C1W,10,Laura Milne,S,2000,Pinkston Panthers,2024-07-31,S,Laura.Milne"]
["DIV 1,C1W,11,Chloe Holmes,J14,2010,Manchester CC,2025-02-28,E,"]
["DIV 1,C1W,12,Esme Price,J16,2008,CR Cats,2024-05-31,S,"]
["DIV 1,C1W,13,Ash Humphrey,J16,2008,CR Cats,2024-06-30,S,"]
["DIV 1,C1W,14,Hannah Lancaster,J18,2006,Manvers WBC,2024-05-28,E,Hannah.Lancaster"]
["DIV 1,C1W,15,Madelaine Jennings,S,1999,Breadalbane CC,2025-03-31,S,Madelaine.Jennings"]
["DIV 1,C1W,16,Lucy Williamson,J16,2008,Stafford & Stone CC,2025-01-31,E,Lucy.Williamson"]
["DIV 1,C1W,17,Cari Jones,J16,2008,Llandysul Paddlers,2024-10-11,W,"]
["DIV 1,C1W,18,Holly Scott,J16,2009,Stafford & Stone CC,2024-11-04,E,Holly.Scott"]
["DIV 1,C1W,19,Helena Nabili,J14,2010,Pinkston Panthers,2025-03-31,S,"]
["DIV 1,C1W,20,Willow Rodi,J14,2011,Stafford & Stone CC,2024-09-19,E,"]
["DIV 1,C1W,21,Alana Middleton,J18,2007,Stafford & Stone CC,2023-07-02,E,Alana.Middleton"]
["DIV 1,C1W,22,Emma Wallace,J14,2011,Stafford & Stone CC,2024-11-04,E,"]
["DIV 1,C1M,1,Harry McKenna,J18,2006,Stafford & Stone CC/Greenshields JCB Ltd,2025-03-03,E,Harry.McKenna"]
["DIV 1,C1M,2,Lewis Arden,J16,2008,Manvers WBC,2024-08-26,E,Lewis.Arden"]
["DIV 1,C1M,3,Dan Joyce,J18,2006,Shepperton SCC,2024-06-22,E,Dan.Joyce"]
["DIV 1,C1M,4,Andrew Crowhurst,S,1999,Halifax CC,2115-10-31,E,Andrew.Crowhurst"]
["DIV 1,C1M,5,Sebastian Reeves,J16,2008,Lee Valley PC,2025-02-10,E,"]
["DIV 1,C1M,6,Jake Mitchell,J14,2010,Wyedean CC,2024-08-11,E,"]
["DIV 1,C1M,7,Abel Blythe,J16,2008,Manchester CC,2025-03-02,E,Abel.Blythe"]
["DIV 1,C1M,8,Sid Griffiths,J14,2011,Wyedean CC,2024-09-06,E,"]
["DIV 1,C1M,9,Oliver Snowden,U23,2004,North Wales Slalom,2024-05-30,W,Oliver.Snowden"]
["DIV 1,C1M,10,Alistair Ross,J18,2007,Strathallan CC,2025-04-30,S,"]
["DIV 1,C1M,11,Matthew Telfer,J18,2007,Forth CC/CR Cats,2025-02-28,S,"]
["DIV 1,C1M,12,Leo Timlin,U23,2003,Shepperton SCC,2024-06-15,E,Leo.Timlin"]
["DIV 1,C1M,13,Mike Mitchell,M,1957,Wyedean CC,2024-09-28,E,Mike.Mitchell"]
["DIV 1,C1M,14,Osian Williams,U23,2005,Llandysul Paddlers,2024-09-18,W,Osian.Williams"]
["DIV 1,C1M,15,Thomas Kent,J16,2009,Stafford & Stone CC,2025-03-20,E,Thomas.Kent"]
["DIV 1,C1M,16,Toby Sutcliffe,J14,2010,North Wales Slalom,2025-05-30,W,Toby.Sutcliffe"]
["DIV 1,C1M,17,Toby Wilde,J18,2006,Frome CC,2024-09-11,E,"]
["DIV 1,C1M,18,Jonah Hanrahan,J18,2006,Independent,2024-09-02,E,Jonah.Hanrahan"]
["DIV 1,C1M,19,Gabriel Rawlings-Crofts,J18,2006,Stafford & Stone CC,2025-02-23,E,Gabriel.Rawlings-Crofts"]
["DIV 1,C1M,20,Callum McDonald,J18,2006,CR Cats,2025-04-30,S,"]
["DIV 1,C1M,21,Louie Gordon,J18,2006,Holme Pierrepont CC,2025-04-17,E,"]
["DIV 1,C1M,22,David Mason,U23,2003,Wyedean CC/Stroud Valley CC,2024-09-04,E,David.Mason"]
["DIV 1,C1M,23,Eddie Mackintosh,U23,2005,Manchester CC/Hexham CC,2025-05-23,E,Eddie.Mackintosh"]
["DIV 1,C1M,24,Paul Mew,M,1973,Windsor & District CC/Shepperton SCC,2025-03-16,E,Paul.Mew"]
["DIV 1,C1M,25,Eleftherios Chatzilamprou,S,1997,Shepperton SCC,2024-05-23,E,Eleftherios.Chatzilamprou"]
["DIV 1,C1M,26,Alex Cleator,J16,2009,Holme Pierrepont CC,2024-09-30,E,"]
["DIV 2,K1W,1,Esme Price,J16,2008,CR Cats,2024-05-31,S,Esme.Price"]
["DIV 2,K1W,2,Linda Allin,M,1965,Independent,2024-06-15,E,Linda.Allin"]
["DIV 2,K1W,3,Helen Sterry,M,1979,Llandysul Paddlers,2025-02-06,W,Helen.Sterry"]
["DIV 2,K1W,4,Isla Phillips,J12,2012,CR Cats,2024-05-31,S,Isla.Phillips"]
["DIV 2,K1W,5,Alice Coombes,J16,2009,Shepperton SCC,2024-07-18,E,Alice.Coombes"]
["DIV 2,K1W,6,Mali Davies,J14,2011,Llandysul Paddlers,2024-05-27,W,"]
["DIV 2,K1W,7,Imara Baldwin-Moore,J16,2008,Llandysul Paddlers,2025-05-09,W,"]
["DIV 2,K1W,8,Isabell Mackinnon,J18,2007,Manvers WBC,2024-09-18,E,Isabell.Mackinnon"]
["DIV 2,K1W,9,Karen Dickinson,M,1967,Stafford & Stone CC,2024-09-27,E,Karen.Dickinson"]
["DIV 2,K1W,10,Emma MacDonald,J18,2007,CR Cats,2025-04-30,S,"]
["DIV 2,K1W,11,Millie Goodman,J12,2013,Frome CC,2024-06-19,E,"]
["DIV 2,K1W,12,Karly Leeson,J14,2010,CR Cats,2025-04-30,S,"]
["DIV 2,K1W,13,Amber Saunders,J14,2011,Stafford & Stone CC,2025-04-04,E,"]
["DIV 2,K1W,14,Emma Wallace,J14,2011,Stafford & Stone CC,2024-11-04,E,"]
["DIV 2,K1W,15,Tamsin Hargreaves,J14,2011,Wyedean CC,2024-08-31,W,"]
["DIV 2,K1W,16,Rowan Yates,J10,2014,Stafford & Stone CC,2025-03-14,E,"]
["DIV 2,K1W,17,Zara Gardner,J18,2007,Pinkston Panthers,2024-08-31,S,"]
["DIV 2,K1W,18,Arabella Walker,J16,2008,Frome CC,2024-05-22,E,"]
["DIV 2,K1W,19,Kimberley Davies,J12,2012,Manchester CC/Stafford & Stone CC,2025-03-20,E,Kimberley.Davies"]
["DIV 2,K1W,20,Chloe Wallace,J14,2011,Stafford & Stone CC,2024-11-04,E,Chloe.Wallace"]
["DIV 2,K1W,21,Vorna Paul,J18,2007,Proteus CC,2025-02-26,E,Vorna.Paul"]
["DIV 2,K1W,22,Dani Goodman,M,1979,Frome CC,2024-06-19,E,Dani.Goodman"]
["DIV 2,K1W,23,Isobel Skinner,J14,2011,Holme Pierrepont CC,2024-06-16,E,"]
["DIV 2,K1W,24,Lydia Reeves,J14,2010,Lee Valley PC,2025-03-12,E,"]
["DIV 2,K1W,25,Isabel Booth,J14,2011,North Wales Slalom,2025-03-12,W,"]
["DIV 2,K1W,26,Amelia White,U23,2005,Stafford & Stone CC,2024-06-15,E,Amelia.White"]
["DIV 2,K1W,27,Ruby Sattin,J14,2010,Wyedean CC,2025-01-12,E,"]
["DIV 2,K1W,28,Emma Christie,U23,2004,Break Out Canoe Unit,2024-11-10,E,Emma.Christie"]
["DIV 2,K1W,29,Megan Powell,J16,2009,Taunton CC,2024-08-17,E,Megan.Powell"]
["DIV 2,K1W,30,Mollie Walker,U23,2002,Pleasley CC,2025-02-13,E,"]
["DIV 2,K1W,31,Francesca Main,J16,2009,CR Cats,2025-04-30,S,"]
["DIV 2,K1W,32,Connie Albrighton,J14,2011,North Wales Slalom/Mold CC,2025-01-10,W,Connie.Albrighton"]
["DIV 2,K1W,33,Eve Burgess Chaffe,J14,2011,Lee Valley PC,2024-06-03,E,"]
["DIV 2,K1W,34,Tavi Murray,M,1965,Seren Dwr,2025-02-25,W,Tavi.Murray"]
["DIV 2,K1W,35,Caitlan Scobie,J16,2008,Strathallan CC,2025-02-28,S,Caitlan.Scobie"]
["DIV 2,K1W,36,Sydney Storey,S,1993,Independent,2024-10-02,E,Sydney.Storey"]
["DIV 2,K1W,37,Liesl Rose Davies,J14,2011,North Wales Slalom,2024-09-18,W,"]
["DIV 2,K1W,38,Erica Thompson,J14,2011,Manvers WBC,2024-09-12,E,"]
["DIV 2,K1W,39,Kerry Christie,U23,2003,Break Out Canoe Unit,2024-11-10,E,Kerry.Christie"]
["DIV 2,K1W,40,Jasmine Naidu,J14,2011,Holme Pierrepont CC,2024-06-04,E,"]
["DIV 2,K1W,41,Oriana Perotti,M,1965,Cheltenham CC,2024-06-18,E,Oriana.Perotti"]
["DIV 2,K1W,42,Olivia Hopper,J12,2013,Holme Pierrepont CC,2024-07-02,E,Olivia.Hopper"]
["DIV 2,K1W,43,Ingela Hoeglund,S,1969,Stafford & Stone CC/Seren Dwr,2025-05-02,E,"]
["DIV 2,K1W,44,Laura Hau,M,1969,Seren Dwr,2025-04-03,W,Laura.Hau"]
["DIV 2,K1W,45,Maeve Woodhouse,S,1997,Break Out Canoe Unit,2024-09-07,E,Maeve.Woodhouse"]
["DIV 2,K1W,46,Hannah Matchett,S,1997,Matlock CC,2025-03-16,E,Hannah.Matchett"]
["DIV 2,K1W,47,Laura Wardle,S,1999,Matlock CC,2024-09-20,E,Laura.Wardle"]
["DIV 2,K1W,48,Josephine Carr,J14,2010,CR Cats,2025-04-30,S,"]
["DIV 2,K1W,49,Heather Longhurst,J12,2013,Cheltenham CC,2024-09-30,E,"]
["DIV 2,K1W,50,Fay Roden,J12,2013,Stafford & Stone CC,2025-04-06,E,"]
["DIV 2,K1W,51,Maya Darby-Dowman,J12,2012,Holme Pierrepont CC,2024-12-02,E,"]
["DIV 2,K1W,52,Thea McCrae,J14,2011,Breadalbane CC,2025-03-31,S,"]
["DIV 2,K1W,53,Eadie Whiting,J12,2013,Matlock CC/Paddle Peak,2024-07-30,E,"]
["DIV 2,K1W,54,Caelan Kerr,J16,2009,CR Cats,2024-07-31,S,"]
["DIV 2,K1W,55,Carys Jones,J14,2010,Viking KC,2024-08-14,E,"]
["DIV 2,K1W,56,Lucy Ellington,J12,2013,Manchester CC,2024-07-10,E,"]
["DIV 2,K1W,57,Rebecca Harratt,U23,2003,Stafford & Stone CC,2024-08-30,E,Rebecca.Harratt"]
["DIV 2,K1W,58,Hannah Lancaster,J18,2006,Manvers WBC,2024-05-28,E,Hannah.Lancaster"]
["DIV 2,K1W,59,Rosie-Lou Duckworth,J16,2009,Wyedean CC,2024-10-05,W,Rosie-Lou.Duckworth"]
["DIV 2,K1W,60,Ellie McGregor,J18,2007,Dysynni Paddling Club,2024-08-18,W,Ellie.McGregor"]
["DIV 2,K1W,61,Rebecca Mackenzie,M,1978,Bradford & Bingley CC,2025-01-09,E,"]
["DIV 2,K1W,62,Nadzieja Lu-Czartoryjska,J14,2010,CR Cats,2025-04-30,S,"]
["DIV 2,K1W,63,Amber J Forster,J14,2010,Holme Pierrepont CC,2024-09-11,E,"]
["DIV 2,K1M,1,Oliver Stegeman,J18,2006,Proteus CC,2024-07-10,E,"]
["DIV 2,K1M,2,Lewis Rogers,J16,2008,North Wales Slalom/Mold CC,2024-10-26,W,Lewis.Rogers"]
["DIV 2,K1M,3,Robert Grant,J16,2009,Breadalbane CC,2024-05-31,S,"]
["DIV 2,K1M,4,Adam Bradley,J16,2008,Holme Pierrepont CC,2025-04-23,E,Adam.Bradley"]
["DIV 2,K1M,5,Angus van Winsum,J16,2008,Stafford & Stone CC,2024-06-15,E,Angus van.Winsum"]
["DIV 2,K1M,6,Thomas Kent,J16,2009,Stafford & Stone CC,2025-03-20,E,Thomas.Kent"]
["DIV 2,K1M,7,Charlie Darby-Dowman,J14,2011,Holme Pierrepont CC,2024-12-02,E,Charlie.Darby-Dowman"]
["DIV 2,K1M,8,Alfie Dixon,J16,2009,Stafford & Stone CC,2025-02-12,E,"]
["DIV 2,K1M,9,Aaron Gibbs,J18,2006,Shepperton SCC,2024-05-29,E,"]
["DIV 2,K1M,10,Ayden Coe,J16,2008,Stafford & Stone CC,2025-02-09,E,Ayden.Coe"]
["DIV 2,K1M,11,Aidan Thacker,J18,2007,CR Cats,2025-03-31,S,Aidan.Thacker"]
["DIV 2,K1M,12,Morgan Paul,U23,2005,Proteus CC,2025-02-26,E,Morgan.Paul"]
["DIV 2,K1M,13,Harry Stroud,J14,2010,Taunton CC,2024-07-19,E,Harry.Stroud"]
["DIV 2,K1M,14,Daniel Weston,J14,2011,Stafford & Stone CC/Holme Pierrepont CC,2025-02-13,E,Daniel.Weston"]
["DIV 2,K1M,15,Alistair Thacker,J14,2010,CR Cats,2025-03-31,S,"]
["DIV 2,K1M,16,Olli Sanderson,J16,2009,Breadalbane CC,2025-01-31,S,"]
["DIV 2,K1M,17,Oliver Weston,J16,2009,Stafford & Stone CC,2025-02-13,E,Oliver.Weston"]
["DIV 2,K1M,18,Alastair McDonald,J14,2010,CR Cats,2025-04-30,S,Alastair.McDonald"]
["DIV 2,K1M,19,Shay Harte,J18,2007,Lee Valley PC,2025-02-05,E,"]
["DIV 2,K1M,20,Charles Blaylock,J16,2008,Stafford & Stone CC,2025-03-05,E,"]
["DIV 2,K1M,21,Callum McDonald,J18,2006,CR Cats,2025-04-30,S,"]
["DIV 2,K1M,22,Adam Clarke,M,1973,Stafford & Stone CC,2024-09-03,E,Adam.Clarke"]
["DIV 2,K1M,23,Joel Johnson,J16,2009,North Wales Slalom,2024-09-14,W,"]
["DIV 2,K1M,24,Aaron de Silva,J18,2006,Lee Valley PC,2024-10-13,E,"]
["DIV 2,K1M,25,Joshua Harley Benton,J14,2010,Stafford & Stone CC,2025-04-10,E,Joshua Harley.Benton"]
["DIV 2,K1M,26,Toby Cleator,J14,2010,Holme Pierrepont CC,2024-09-30,E,"]
["DIV 2,K1M,27,Sebastian White,J16,2008,Stafford & Stone CC,2024-06-15,E,"]
["DIV 2,K1M,28,Tom Kearsley,J14,2011,North Wales Slalom,2024-09-12,W,"]
["DIV 2,K1M,29,Alexander Watkins,J16,2009,Bradford & Bingley CC,2024-09-10,E,"]
["DIV 2,K1M,30,Nick Main,M,1977,CR Cats,2025-04-30,S,"]
["DIV 2,K1M,31,Martin Oakland,M,1969,Independent,2025-04-30,E,Martin.Oakland"]
["DIV 2,K1M,32,Gruffydd Williams,J14,2010,Llandysul Paddlers,2024-06-13,W,Gruffydd.Williams"]
["DIV 2,K1M,33,Matt Crowhurst,S,1996,Sheffield CC,2115-10-31,E,Matt.Crowhurst"]
["DIV 2,K1M,34,Archie Cowe,J14,2010,Strathallan CC,2025-03-31,S,"]
["DIV 2,K1M,35,Theo Beale,J16,2008,Green Star CC,2024-09-29,E,"]
["DIV 2,K1M,36,Thomas Hargreaves,J14,2011,Wyedean CC,2024-09-19,W,"]
["DIV 2,K1M,37,Craig Meldrum,J16,2008,Breadalbane CC,2024-09-30,S,"]
["DIV 2,K1M,38,Scott Tuckley,J18,2007,Stafford & Stone CC,2024-03-16,E,Scott.Tuckley"]
["DIV 2,K1M,39,Riley Wilford,J14,2011,Seren Dwr,2024-08-04,W,"]
["DIV 2,K1M,40,Jacob Chattell,J16,2008,Taunton CC,2024-05-16,E,"]
["DIV 2,K1M,41,Dougie Cresser,J12,2013,Bradford & Bingley CC,2024-09-29,E,"]
["DIV 2,K1M,42,Stuart MacDonald,M,1978,CR Cats,2024-05-31,S,Stuart.MacDonald"]
["DIV 2,K1M,43,Khaleel Ziauddin,U23,2002,The Sharks,2024-12-05,E,Khaleel.Ziauddin"]
["DIV 2,K1M,44,Steven Hosie,M,1966,Aberdeen KC,2024-09-30,S,Steven.Hosie"]
["DIV 2,K1M,45,Daniel Kelly,U23,2004,Break Out Canoe Unit,2024-07-25,E,Daniel.Kelly"]
["DIV 2,K1M,46,Paul Stephens,M,1974,Viking KC,2024-09-07,E,Paul.Stephens"]
["DIV 2,K1M,47,Ethan Fletcher,U23,2003,Break Out Canoe Unit,2024-06-03,E,Ethan.Fletcher"]
["DIV 2,K1M,48,William Beale,J18,2006,Independent,2024-09-28,E,"]
["DIV 2,K1M,49,Gordon Robb,M,1969,CR Cats,2025-01-31,S,Gordon.Robb"]
["DIV 2,K1M,50,Finlay Taylor,J16,2009,Breadalbane CC,2025-03-31,S,"]
["DIV 2,K1M,51,Mark Cast,S,1959,Matlock CC,2024-06-30,E,Mark.Cast"]
["DIV 2,K1M,52,Ross Linning,J16,2008,CR Cats,2024-05-31,S,"]
["DIV 2,K1M,53,Tony Chalk,M,1963,Stroud Valley CC,2024-12-06,E,Tony.Chalk"]
["DIV 2,K1M,54,Andrew Weston,M,1972,Stafford & Stone CC,2025-02-13,E,Andrew.Weston"]
["DIV 2,K1M,55,Darrel Hill,S,1961,Pleasley CC,2025-02-16,E,Darrel.Hill"]
["DIV 2,K1M,56,Harry McLain,J16,2009,Ribbontail Paddlers,2025-05-03,NI,Harry.McLain"]
["DIV 2,K1M,57,William Hanham,M,1949,Independent,2024-11-04,E,William.Hanham"]
["DIV 2,K1M,58,Oliver Rothner,J18,2006,Stafford & Stone CC,2024-04-03,E,Oliver.Rothner"]
["DIV 2,K1M,59,Alexander Kennan,J12,2013,North Wales Slalom,2024-06-04,W,"]
["DIV 2,K1M,60,Cally de Silva,J14,2010,Lee Valley PC,2024-10-13,E,"]
["DIV 2,K1M,61,William Goodhead,J16,2008,Green Star CC,2025-04-14,E,"]
["DIV 2,K1M,62,Jake Neal,J14,2011,North Wales Slalom,2025-02-10,W,"]
["DIV 2,K1M,63,Paul Rickards,M,1972,Seren Dwr,2024-03-20,W,Paul.Rickards"]
["DIV 2,K1M,64,Neal Underwood,M,1960,The Sharks,2025-02-17,E,Neal.Underwood"]
["DIV 2,K1M,65,Will Roden,J14,2011,Stafford & Stone CC,2025-04-06,E,"]
["DIV 2,K1M,66,Mason Gerald Rees,J14,2010,Seren Dwr/Llandysul Paddlers,2025-01-12,W,Mason Gerald.Rees"]
["DIV 2,K1M,67,Louie Dedman,J16,2009,Lee Valley PC,2024-05-09,E,"]
["DIV 2,K1M,68,Oscar Watkins,J16,2008,Wyedean CC,2024-10-11,E,"]
["DIV 2,K1M,69,Gary Clow,M,1968,Aberdeen KC,2024-06-30,S,Gary.Clow"]
["DIV 2,K1M,70,Thomas Muir,J14,2011,CR Cats,2025-04-30,S,"]
["DIV 2,K1M,71,Paul Jones,M,1970,Cardiff CC,2025-01-13,W,Paul.Jones"]
["DIV 2,K1M,72,Shaun Ross,M,1968,Strathallan CC,2025-04-30,S,"]
["DIV 2,K1M,73,Fraser Diggins,J14,2010,Lee Valley PC,2024-06-02,E,"]
["DIV 2,K1M,74,Oscar Thompson,J16,2008,Manvers WBC,2024-09-12,E,"]
["DIV 2,K1M,75,John Stoner,M,1955,Break Out Canoe Unit,2025-04-07,E,John.Stoner"]
["DIV 2,K1M,76,Nick Arrowsmith,M,1964,Holme Pierrepont CC,2024-11-01,E,Nick.Arrowsmith"]
["DIV 2,K1M,77,Logan Harte,J16,2009,Lee Valley PC,2025-02-05,E,"]
["DIV 2,K1M,78,David Knox,M,1963,Pinkston Panthers,2025-01-31,S,"]
["DIV 2,K1M,79,Connor Thorpe-Williams,J18,2007,Wyedean CC,2024-07-02,E,"]
["DIV 2,K1M,80,Joel Gardner,J14,2010,Pinkston Panthers,2024-08-31,S,Joel.Gardner"]
["DIV 2,K1M,81,Geoff Wears,M,1966,CR Cats,2024-10-31,S,Geoff.Wears"]
["DIV 2,K1M,82,Campbell Weir,J14,2011,Breadalbane CC,2025-04-30,S,"]
["DIV 2,K1M,83,Jacob Lane,J18,2006,Break Out Canoe Unit,2024-10-09,E,Jacob.Lane"]
["DIV 2,K1M,84,Kunihito Watanabe,M,1960,Stafford & Stone CC,2023-08-01,E,Kunihito.Watanabe"]
["DIV 2,K1M,85,James Coolican Smith,U23,2003,Wyedean CC,2023-08-09,E,James.Coolican Smith"]
["DIV 2,K1M,86,James D Brown,S,1986,Army Canoe Union,2024-04-30,S,James D.Brown"]
["DIV 2,K1M,87,Ilar Howells,J14,2010,Spring Valley Paddlers,2024-05-27,W,"]
["DIV 2,K1M,88,Jack Duberry,J16,2009,Frome CC,2024-08-09,E,Jack.Duberry"]
["DIV 2,K1M,89,Charlie Joyce,J14,2011,Shepperton SCC,2024-05-26,E,"]
["DIV 2,K1M,90,Tom Day,J16,2008,Matlock CC,2024-09-06,E,"]
["DIV 2,K1M,91,Toby English,J16,2008,Stafford & Stone CC,2024-10-02,E,"]
["DIV 2,K1M,92,Gregor Thomas,J16,2009,CR Cats,2025-04-30,S,"]
["DIV 2,K1M,93,Jenson Skillen,J18,2006,Copeland CC,2025-05-09,E,"]
["DIV 2,K1M,94,Oliver Raspin,J18,2007,Holme Pierrepont CC,2024-09-27,E,"]
["DIV 2,K1M,95,Steve Dixon,M,1982,Stafford & Stone CC,2025-02-12,E,"]
["DIV 2,K1M,96,James Given,J18,2006,Manchester CC,2024-07-04,E,"]
["DIV 2,K1M,97,Will Sutcliffe,S,1983,North Wales Slalom,2025-05-30,W,"]
["DIV 2,K1M,98,Toby Elcock,U23,2005,North Wales Slalom/Mold CC,2024-06-04,W,Toby.Elcock"]
["DIV 2,K1M,99,Sam Rolls,J18,2006,Wyedean CC,2024-05-17,E,"]
["DIV 2,K1M,100,Matt Arden,J18,2006,Manvers WBC,2024-08-26,E,Matt.Arden"]
["DIV 2,K1M,101,Christopher Harmer,M,1984,CR Cats/CR CATS,2024-05-31,S,Christopher.Harmer"]
["DIV 2,K1M,102,Aaron Nolan,S,1997,The Sharks,2024-07-01,E,Aaron.Nolan"]
["DIV 2,K1M,103,Tony Wells,M,1982,Llandysul Paddlers,2023-07-14,W,Tony.Wells"]
["DIV 2,K1M,104,Jack Rolls,U23,2004,Wyedean CC,2024-05-17,E,"]
["DIV 2,K1M,105,Phil Copeland,M,1959,Stroud Valley CC,2024-05-09,E,Phil.Copeland"]
["DIV 2,K1M,106,Rufus Whittingham,J18,2006,Stafford & Stone CC,2024-09-25,E,Rufus.Whittingham"]
["DIV 2,K1M,107,James Taylor,M,1981,Bradford & Bingley CC,2025-05-03,E,James.Taylor"]
["DIV 2,K1M,108,Jack Toovey,J14,2011,CR Cats,2024-04-30,S,Jack.Toovey"]
["DIV 2,K1M,109,Grant Mockler,M,1972,Independent,2025-05-03,E,Grant.Mockler"]
["DIV 2,K1M,110,Mark Simes,M,1962,Independent,2025-01-29,E,Mark.Simes"]
["DIV 2,K1M,111,Miles Dyson,S,1998,Matlock CC/Qik Kayaks,2024-02-13,E,Miles.Dyson"]
["DIV 2,K1M,112,Grant Underwood,S,1994,The Sharks,2025-02-28,S,Grant.Underwood"]
["DIV 2,K1M,114,Archie Phillips,J14,2010,CR Cats,2024-05-31,S,"]
["DIV 2,K1M,115,Jacob Riches,J14,2011,Stafford & Stone CC,2025-03-27,E,"]
["DIV 2,K1M,116,Adam Hicks,S,1988,Stafford & Stone CC,2025-03-23,E,"]
["DIV 2,K1M,117,Aiden Perkin,J14,2011,Stafford & Stone CC,2025-04-23,E,"]
["DIV 2,K1M,118,Ben Hewines,J16,2009,CR Cats,2025-03-31,S,"]
["DIV 2,K1M,119,Daniel Greening,U23,2001,Stroud Valley CC,2024-06-03,E,Daniel.Greening"]
["DIV 2,K1M,120,Oliver F Cooper,J16,2009,Holme Pierrepont CC,2025-05-15,E,"]
["DIV 2,C1W,1,Alice Williamson,J16,2008,Stafford & Stone CC,2025-01-31,E,Alice.Williamson"]
["DIV 2,C1W,2,Kimberley Davies,J12,2012,Manchester CC/Stafford & Stone CC,2025-03-20,E,"]
["DIV 2,C1W,3,Julie Kolb,M,1966,Bradford & Bingley CC,2024-07-30,E,Julie.Kolb"]
["DIV 2,C1W,4,Millie Goodman,J12,2013,Frome CC,2024-06-19,E,"]
["DIV 2,C1W,5,Emma Wallace,J14,2011,Stafford & Stone CC,2024-11-04,E,"]
["DIV 2,C1W,6,Emma Macdonald,J18,2007,CR Cats,2025-04-30,S,"]
["DIV 2,C1W,7,Chloe Wallace,J14,2011,Stafford & Stone CC,2024-11-04,E,"]
["DIV 2,C1W,8,Ailsa Scobie,J16,2008,Strathallan CC,2025-02-28,S,"]
["DIV 2,C1W,9,Thea McCrae,J14,2011,Breadalbane CC,2025-03-31,S,"]
["DIV 2,C1W,10,Isabell Mackinnon,J18,2007,Manvers WBC,2024-09-18,E,Isabell.Mackinnon"]
["DIV 2,C1W,11,Iga Tomasik,J16,2008,Manvers WBC,2024-07-01,E,Iga.Tomasik"]
["DIV 2,C1W,12,Kosi Rosser,S,1995,Proteus CC,2024-08-31,E,Kosi.Rosser"]
["DIV 2,C1W,13,Annabel Goodenough,J16,2009,Strathallan CC,2025-03-31,S,"]
["DIV 2,C1W,14,Lisa Meleri Williams,J18,2006,North Wales Slalom,2023-10-17,W,"]
["DIV 2,C1W,15,Sophie Forster,J16,2009,Holme Pierrepont CC,2024-07-25,E,"]
["DIV 2,C1W,16,Megan Powell,J16,2009,Taunton CC,2024-08-17,E,Megan.Powell"]
["DIV 2,C1W,17,Freya Pryce,J18,2006,Edinburgh Schools KC,2024-06-30,S,"]
["DIV 2,C1W,18,Jasmine Naidu,J14,2011,Holme Pierrepont CC,2024-06-04,E,"]
["DIV 2,C1W,19,Kerry Christie,U23,2003,Break Out Canoe Unit,2024-11-10,E,Kerry.Christie"]
["DIV 2,C1W,20,Lydia Reeves,J14,2010,Lee Valley PC,2025-03-12,E,"]
["DIV 2,C1W,21,Maeve Woodhouse,S,1997,Break Out Canoe Unit,2024-09-07,E,Maeve.Woodhouse"]
["DIV 2,C1W,22,Mali Davies,J14,2011,Llandysul Paddlers,2024-05-27,W,"]
["DIV 2,C1W,23,Imara Baldwin-Moore,J16,2008,Llandysul Paddlers,2025-05-09,W,"]
["DIV 2,C1W,24,Clare Wallace,M,1979,Stafford & Stone CC,2024-11-04,E,"]
["DIV 2,C1W,25,Brooke Benson,U23,2005,Stafford & Stone CC,2025-03-11,E,Brooke.Benson"]
["DIV 2,C1W,26,Ingela Hoeglund,S,1969,Stafford & Stone CC/Seren Dwr,2025-05-02,E,"]
["DIV 2,C1W,27,Emma Christie,U23,2004,Break Out Canoe Unit,2024-11-10,E,Emma.Christie"]
["DIV 2,C1W,28,Lucy Ellington,J12,2013,Manchester CC,2024-07-10,E,"]
["DIV 2,C1W,29,Alice Coombes,J16,2009,Shepperton SCC,2024-07-18,E,"]
["DIV 2,C1W,30,Isobel Skinner,J14,2011,Holme Pierrepont CC,2024-06-16,E,"]
["DIV 2,C1W,31,Maddie Hobbs,J16,2008,Frome CC,2024-06-07,E,Maddie.Hobbs"]
["DIV 2,C1W,32,Jessica Goodman,J14,2011,Frome CC,2024-06-19,E,Jessica.Goodman"]
["DIV 2,C1W,33,Sofia Alfer,J18,2007,Wyedean CC,2025-01-07,E,Sofia.Alfer"]
["DIV 2,C1W,34,Isabel Booth,J14,2011,North Wales Slalom,2025-03-12,W,"]
["DIV 2,C1W,35,Evie Lancaster,J16,2009,Manvers WBC,2025-05-28,E,"]
["DIV 2,C1M,1,Alex Cleator,J16,2009,Holme Pierrepont CC,2024-09-30,E,"]
["DIV 2,C1M,2,Oliver Stegeman,J18,2006,Proteus CC,2024-07-10,E,"]
["DIV 2,C1M,3,Daniel Weston,J14,2011,Stafford & Stone CC/Holme Pierrepont CC,2025-02-13,E,Daniel.Weston"]
["DIV 2,C1M,4,Lewis Rogers,J16,2008,North Wales Slalom,2024-10-26,W,Lewis.Rogers"]
["DIV 2,C1M,5,Charlie Leonard,J16,2008,Llandysul Paddlers,2024-07-29,W,"]
["DIV 2,C1M,6,Charlie Darby-Dowman,J14,2011,Holme Pierrepont CC,2024-12-02,E,"]
["DIV 2,C1M,7,Robin Williams,S,1958,Wey KC,2024-06-07,E,"]
["DIV 2,C1M,8,Luke Wilkinson,U23,2005,Manvers WBC/Green Star CC,2024-06-28,E,Luke.Wilkinson"]
["DIV 2,C1M,9,Adam Bradley,J16,2008,Holme Pierrepont CC,2025-04-23,E,"]
["DIV 2,C1M,10,Oliver Weston,J16,2009,Stafford & Stone CC,2025-02-13,E,"]
["DIV 2,C1M,11,Gruffydd Williams,J14,2010,Llandysul Paddlers,2024-06-13,W,Gruffydd.Williams"]
["DIV 2,C1M,12,Toby Cleator,J14,2010,Holme Pierrepont CC,2024-09-30,E,"]
["DIV 2,C1M,13,William Goodhead,J16,2008,Green Star CC,2025-04-14,E,"]
["DIV 2,C1M,14,Efan Welton,J16,2009,Llandysul Paddlers,2024-07-07,W,"]
["DIV 2,C1M,15,Finlay Glanville,J18,2006,Shepperton SCC,2025-06-08,E,Finlay.Glanville"]
["DIV 2,C1M,16,Leo Haston-Wilson,J18,2007,North Wales Slalom,2025-05-09,W,Leo.Haston-Wilson"]
["DIV 2,C1M,17,Ben Watkins,J14,2010,Wyedean CC,2024-10-11,E,"]
["DIV 2,C1M,18,Robert Grant,J16,2009,Breadalbane CC,2024-05-31,S,"]
["DIV 2,C1M,19,Alasdair Woodward,U23,2004,Wyedean CC,2024-10-02,E,Alasdair.Woodward"]
["DIV 2,C1M,20,Aiden Perkin,J14,2011,Stafford & Stone CC,2025-04-23,E,"]
["DIV 2,C1M,21,Andrew Carr,J16,2008,CR Cats,2025-04-30,S,Andrew.Carr"]
["DIV 2,C1M,22,Arthur Jacques,J18,2006,CR Cats,2024-06-30,S,"]
["DIV 2,C1M,23,Leondas Patsos,U23,2005,Manchester CC,2024-08-21,E,"]
["DIV 2,C1M,24,Herbie Staines,J18,2007,Lee Valley PC,2024-09-05,E,Herbie.Staines"]
["DIV 2,C1M,25,Cynyr Macrae,J18,2007,Llandysul Paddlers,2024-05-24,W,Cynyr.Macrae"]
["DIV 2,C1M,26,Alfie Dixon,J16,2009,Stafford & Stone CC,2025-02-12,E,"]
["DIV 2,C1M,27,Cameron McNab,J18,2006,Edinburgh Schools KC,2024-05-31,S,Cameron.McNab"]
["DIV 3,K1W,1,Donna Hawkins,M,1961,Matlock CC,2024-08-31,E,Donna.Hawkins"]
["DIV 3,K1W,2,Hannah Cadell,J16,2009,CR Cats,2025-03-31,S,"]
["DIV 3,K1W,3,Penny Maclean,J14,2011,Pinkston Panthers,2024-11-30,S,"]
["DIV 3,K1W,4,Leri Jones-Kenny,J10,2014,Llandysul Paddlers,2024-10-11,W,Leri.Jones-Kenny"]
["DIV 3,K1W,5,Ailsa Scobie,J16,2008,Strathallan CC,2025-02-28,S,Ailsa.Scobie"]
["DIV 3,K1W,6,Olivia Berriman,J12,2012,Kingston KC,2024-09-21,E,Olivia.Berriman"]
["DIV 3,K1W,7,Jane Sargent,M,1958,Peebles Kayak Club,2024-07-31,S,Jane.Sargent"]
["DIV 3,K1W,8,Erin Davies,J10,2014,Llandysul Paddlers,2024-09-07,W,Erin.Davies"]
["DIV 3,K1W,9,Luci Watkins,M,1972,Wyedean CC,2024-10-11,E,Luci.Watkins"]
["DIV 3,K1W,10,Debbie Jones,M,1978,Viking KC,2024-08-14,E,Debbie.Jones"]
["DIV 3,K1W,11,Isabelle Dixon,J14,2011,Stafford & Stone CC,2025-02-12,E,"]
["DIV 3,K1W,12,Jane Copeland,M,1963,Stroud Valley CC,2024-05-09,E,Jane.Copeland"]
["DIV 3,K1W,13,Caroline Stephens,S,1971,Viking KC,2024-09-07,E,"]
["DIV 3,K1W,14,Ava Hayden,J16,2008,Break Out Canoe Unit,2123-06-30,E,"]
["DIV 3,K1W,15,Charlotte Fraser,S,1985,Seren Dwr,2025-01-24,E,Charlotte.Fraser"]
["DIV 3,K1W,16,Kalina Lu-Czartoryjska,J12,2012,CR Cats,2025-04-30,S,"]
["DIV 3,K1W,17,Jenny Stephenson,S,1990,Bradford & Bingley CC,2025-04-15,E,Jenny.Stephenson"]
["DIV 3,K1W,18,Nadzieja Lu-Czartoryjska,J14,2010,CR Cats,2025-04-30,S,"]
["DIV 3,K1W,19,Jasmin Uhlhorn,S,1997,The Sharks,2024-06-28,E,"]
["DIV 3,K1W,20,Martha Hume,J14,2011,Pinkston Panthers,2024-12-31,S,"]
["DIV 3,K1W,21,Abbi Moses,J18,2006,Wyedean CC,2024-06-02,E,Abbi.Moses"]
["DIV 3,K1W,22,Liah Boyle,J16,2008,The Sharks,2024-06-03,E,"]
["DIV 3,K1W,23,Alice Searle,J14,2011,Shepperton SCC,2024-05-16,E,"]
["DIV 3,K1W,24,Bethany Thacker,J12,2012,CR Cats,2024-04-30,S,"]
["DIV 3,K1W,25,Julia Brittain,J14,2010,Pinkston Panthers,2024-12-31,S,"]
["DIV 3,K1W,26,Hanni Griffiths,J10,2014,Wyedean CC,2023-08-18,E,"]
["DIV 3,K1W,27,Ellie Doyle,J12,2013,CR Cats,2025-04-30,S,"]
["DIV 3,K1W,28,Laura Middelburg,S,1994,Stroud Valley CC,2024-05-22,E,"]
["DIV 3,K1W,29,Marina Tsopanou,J12,2012,Manchester CC,2024-07-10,E,"]
["DIV 3,K1W,30,Amber J Forster,J14,2010,Holme Pierrepont CC,2024-09-11,E,"]
["DIV 3,K1W,31,Tamsin Gibbs,J12,2012,Shepperton SCC,2024-10-06,E,"]
["DIV 3,K1W,32,Iona Hawksworth,J16,2009,Green Star CC,2024-05-30,E,"]
["DIV 3,K1W,33,Gaynor Cowe,S,1970,Strathallan CC,2024-07-31,S,"]
["DIV 3,K1W,34,Alice McCrae,S,1980,Breadalbane CC,2024-09-30,S,"]
["DIV 3,K1W,35,Anya Dennis,J18,2007,Proteus CC,2024-08-24,E,"]
["DIV 3,K1W,36,Victoria Wright,M,1975,Matlock CC,2024-07-21,E,Victoria.Wright"]
["DIV 3,K1W,37,Fleur Harman,S,1993,The Sharks,2024-09-05,E,"]
["DIV 3,K1W,38,Holly Wilkinson,J14,2010,Viking KC,2024-08-13,E,"]
["DIV 3,K1W,39,Laura Stevens,U23,2002,Addlestone CC,2025-04-09,E,Laura.Stevens"]
["DIV 3,K1W,40,Zooey Main,J12,2012,CR Cats,2024-05-31,S,"]
["DIV 3,K1W,41,Anna-Rose Schurink,J16,2007,Manchester CC,1970-01-01,E,"]
["DIV 3,K1W,42,Jo Sharp,M,1982,Manchester CC/Green Star CC,2024-08-03,E,Jo.Sharp"]
["DIV 3,K1W,43,Sali Jayne Watkins,J18,2006,Llandysul Paddlers,2024-10-07,W,Sali Jayne.Watkins"]
["DIV 3,K1W,44,Tess Ceney,J14,2011,Independent,2024-06-26,E,"]
["DIV 3,K1W,45,Claire Perkin,S,1981,Stafford & Stone CC,2025-04-23,E,"]
["DIV 3,K1W,46,Tracy Hughes,S,1966,Wyedean CC,2024-07-28,E,Tracy.Hughes"]
["DIV 3,K1W,47,Bethan Cradock,S,1975,Seren Dwr,2025-04-06,W,Bethan.Cradock"]
["DIV 3,K1W,48,Sophie Willmott,J16,2009,Shepperton SCC,2024-09-09,E,"]
["DIV 3,K1W,49,Christine Walker,M,1961,Matlock CC,2024-07-10,E,Christine.Walker"]
["DIV 3,K1W,50,Isla Arden,J10,2014,Manvers WBC,2024-08-26,E,"]
["DIV 3,K1W,51,Sarah Morton,S,1979,Viking KC,2024-09-24,E,"]
["DIV 3,K1W,52,Bethan Lloyd,J14,2009,Wiltshire Youth CC,1970-01-01,E,"]
["DIV 3,K1W,53,Rosanna Dixon,J12,2010,Wiltshire Youth CC,1970-01-01,E,"]
["DIV 3,K1W,54,Susan Templeton,M,1957,Itchen Valley CC/The Sharks,2115-10-31,E,Susan.Templeton"]
["DIV 3,K1W,55,Eleanor Thraves,S,1985,Nottingham KC,2025-03-22,E,Eleanor.Thraves"]
["DIV 3,K1W,57,Izzy Lloyd,J12,2011,Wiltshire Youth CC,1970-01-01,E,"]
["DIV 3,K1W,58,Allie Reeves,J14,2011,Break Out Canoe Unit,2025-02-17,E,"]
["DIV 3,K1W,59,Lizzie Bamforth,J12,2012,Manchester CC,2024-10-04,E,"]
["DIV 3,K1W,60,Emma Percy,M,1973,Halifax CC,2024-05-10,E,Emma.Percy"]
["DIV 3,K1W,61,Holly Lavelle,S,2000,Bradford & Bingley CC,2024-03-16,E,"]
["DIV 3,K1W,62,Louisa Rogers,S,1980,Mold CC,2024-06-13,W,"]
["DIV 3,K1W,63,Evonne Boyd,S,1976,Strathallan CC,2024-05-31,S,"]
["DIV 3,K1W,65,Daisy Obonyo,J14,2009,Wyedean CC,1970-01-01,E,"]
["DIV 3,K1W,66,Martha Innes,J16,2007,Edinburgh Schools KC,1970-01-01,E,"]
["DIV 3,K1W,67,Lia Wellings,J14,0,Green Star CC,1970-01-01,E,Lia.Wellings"]
["DIV 3,K1W,68,Kathryn Tuck,J16,2007,Meridian CC,1970-01-01,E,"]
["DIV 3,K1W,69,Lydia Dakin,J16,2009,Salisbury CC,1970-01-01,E,Lydia.Dakin"]
["DIV 3,K1W,70,Ava Ross,J14,2010,Pinkston Panthers,2024-09-30,S,Ava.Ross"]
["DIV 3,K1W,71,Anna Dovey,J8,2015,Llandysul Paddlers,1970-01-01,E,"]
["DIV 3,K1W,72,Jane Wilkinson,S,1971,Viking KC,2024-08-13,E,"]
["DIV 3,K1W,73,Michelle Harris,S,1995,North Wales Slalom,1970-01-01,E,"]
["DIV 3,K1W,74,Tamsin Russell,J14,2010,CR Cats,2024-08-31,S,Tamsin.Russell"]
["DIV 3,K1W,75,Holly Thomas,J12,2012,CR Cats,1970-01-01,E,"]
["DIV 3,K1W,76,Iona Caffrey,J8,2016,CR Cats,2025-03-02,NI,Iona.Caffrey"]
["DIV 3,K1W,77,Phoebe Brownbridge,J10,2014,Green Star CC,1970-01-01,E,"]
["DIV 3,K1W,79,Rebekah Gawne-Cain,M,1984,Break Out Canoe Unit,1970-01-01,E,"]
["DIV 3,K1W,80,Secoya Gray,J12,2013,North Wales Slalom,2025-03-03,W,"]
["DIV 3,K1W,81,Elizabeth Young,J18,2007,Seren Dwr/Stroud Valley / North Avon,2024-06-03,E,Elizabeth.Young"]
["DIV 3,K1W,82,Emily Walker,M,1984,Frome CC,2024-05-22,E,Emily.Walker"]
["DIV 3,K1W,83,Francesca Spackman,J14,2010,Shepperton SCC,2023-05-30,E,Francesca.Spackman"]
["DIV 3,K1W,84,Amber Ruddle-Clarke,U23,2002,Green Star CC,2023-12-05,E,Amber.Ruddle-Clarke"]
["DIV 3,K1W,85,Emma Taylor,J18,2007,Pinkston Panthers,2024-08-31,S,Emma.Taylor"]
["DIV 3,K1W,86,Anwen Jones,J18,2007,Viking KC,2024-08-14,E,"]
["DIV 3,K1W,87,Judith Dey,S,1963,Manvers WBC,2025-01-07,E,"]
["DIV 3,K1W,88,Emily Bower,J18,2006,Green Star CC,2024-08-15,E,Emily.Bower"]
["DIV 3,K1W,89,Jenny Berriman,M,1977,Kingston KC,2024-09-21,E,Jenny.Berriman"]
["DIV 3,K1W,90,Leanne Davies,S,1984,Llandysul Paddlers,1970-01-01,W,Leanne.Davies"]
["DIV 3,K1W,91,Abby Ellis,U23,2001,Independent,2024-10-15,E,Abby.Ellis"]
["DIV 3,K1W,92,Luciane Porter,J12,2012,Cheltenham CC,2025-04-13,E,Luciane.Porter"]
["DIV 3,K1W,93,Esme Watts,J12,2013,Stafford & Stone CC,2025-04-24,E,Esme.Watts"]
["DIV 3,K1W,94,Freya Watts,J12,2013,Stafford & Stone CC,2025-04-24,E,Freya.Watts"]
["DIV 3,K1W,95,Caitlin Potter,J12,2013,North Wales Slalom,2025-04-24,W,Caitlin.Potter"]
["DIV 3,K1W,96,Aiyana Elston,J14,2011,Taunton CC,2024-09-30,E,Aiyana.Elston"]
["DIV 3,K1W,97,Martha Bozic,S,0,Duddon CC,2025-03-20,E,Martha.Bozic"]
["DIV 3,K1M,1,Michael Brennan,M,1967,Hexham CC,2025-04-11,E,Michael.Brennan"]
["DIV 3,K1M,2,Harper Yarrow,J14,2010,Manchester CC,2025-03-23,E,Harper.Yarrow"]
["DIV 3,K1M,3,Kayden Mitchell,J16,2008,CR Cats,2024-05-31,S,Kayden.Mitchell"]
["DIV 3,K1M,4,Jacob Riches,J14,2011,Stafford & Stone CC,2025-03-27,E,"]
["DIV 3,K1M,5,Ben Hewines,J16,2009,CR Cats,2025-03-31,S,"]
["DIV 3,K1M,6,Aiden Perkin,J14,2011,Stafford & Stone CC,2025-04-23,E,"]
["DIV 3,K1M,7,Oliver F Cooper,J16,2009,Holme Pierrepont CC,2025-05-15,E,"]
["DIV 3,K1M,8,Harry Godwin,J12,2012,Stafford & Stone CC,2025-02-15,E,"]
["DIV 3,K1M,9,Andrew G Davies,J14,2010,Manchester CC,2025-03-20,E,Andrew G.Davies"]
["DIV 3,K1M,10,Colin Gardner,M,1975,Pinkston Panthers,2024-09-30,S,Colin.Gardner"]
["DIV 3,K1M,11,David Goodenough,M,1981,Strathallan CC,2024-07-31,S,David.Goodenough"]
["DIV 3,K1M,12,Samuel Costabile,J16,2008,Matlock CC,2024-07-21,E,Samuel.Costabile"]
["DIV 3,K1M,13,Nigel Thacker,M,1979,CR Cats,2025-03-31,S,Nigel.Thacker"]
["DIV 3,K1M,14,Nathan Hicks,J12,2012,Stafford & Stone CC,2025-03-23,E,Nathan.Hicks"]
["DIV 3,K1M,15,Dexter Diggins,J12,2013,Lee Valley PC,2024-06-02,E,"]
["DIV 3,K1M,16,Jack Smith,J14,2011,Stafford & Stone CC,2025-04-26,E,"]
["DIV 3,K1M,17,Toby Cooke,J14,2011,Bradford & Bingley CC,2025-02-27,E,Toby.Cooke"]
["DIV 3,K1M,18,Sergio Vieira,S,1989,Stafford & Stone CC,2023-10-25,E,"]
["DIV 3,K1M,19,Antony Cowderoy,M,1955,Shepperton SCC,2024-06-13,E,Antony.Cowderoy"]
["DIV 3,K1M,20,Stuart Grant,J14,2011,Breadalbane CC,2024-09-30,S,"]
["DIV 3,K1M,21,Benjamin Neal,J12,2013,North Wales Slalom,2024-06-15,W,"]
["DIV 3,K1M,22,Lloyd Monahan,J18,2006,Wyedean CC,2024-04-11,E,"]
["DIV 3,K1M,23,Barry Davies,M,1969,Salisbury CC,2024-07-19,E,Barry.Davies"]
["DIV 3,K1M,24,Rowan Sutcliffe,J14,2011,North Wales Slalom,2024-07-23,W,Rowan.Sutcliffe"]
["DIV 3,K1M,25,Dylan Hobson,J16,2009,Viking KC,2024-07-06,E,"]
["DIV 3,K1M,26,Daniel Pick,J16,2009,Matlock CC,2024-10-28,E,Daniel.Pick"]
["DIV 3,K1M,27,Mostyn Jones,J10,2014,Llandysul Paddlers,2025-03-27,W,Mostyn.Jones"]
["DIV 3,K1M,28,Alex Clark,J16,2008,Aberdeen KC,2024-09-30,S,"]
["DIV 3,K1M,29,Andrew Carr,J16,2008,CR Cats,2025-04-30,S,Andrew.Carr"]
["DIV 3,K1M,30,Lenny Cresser,J14,2010,Bradford & Bingley CC,2024-09-29,E,Lenny.Cresser"]
["DIV 3,K1M,31,James Stephens,J12,2012,Viking KC,2024-09-07,E,James.Stephens"]
["DIV 3,K1M,32,Jake Eaton,J18,2006,Sheffield CC,2025-05-04,E,Jake.Eaton"]
["DIV 3,K1M,33,Peter Thomas,S,1974,Break Out Canoe Unit,2024-09-22,E,Peter.Thomas"]
["DIV 3,K1M,34,Calum Tonry,J18,2007,Stafford & Stone CC,2024-02-27,E,Calum.Tonry"]
["DIV 3,K1M,35,Andrew Fowler,S,1977,CR Cats,2025-01-31,S,Andrew.Fowler"]
["DIV 3,K1M,36,Joshua Sutton,J12,0,Wiltshire Youth CC,1970-01-01,E,Joshua.Sutton"]
["DIV 3,K1M,37,Leo Haston-Wilson,J18,2007,North Wales Slalom,2025-05-09,W,Leo.Haston-Wilson"]
["DIV 3,K1M,38,Daniel Smye,J16,2009,Copeland CC,2025-05-10,E,"]
["DIV 3,K1M,39,Iain Russell,M,1972,Bradford & Bingley CC,2025-02-14,E,Iain.Russell"]
["DIV 3,K1M,40,Regan Toop,J18,2006,Wiltshire Youth CC,1970-01-01,E,Regan.Toop"]
["DIV 3,K1M,41,Lewis Monahan,J16,2009,Wyedean CC,2024-04-11,E,"]
["DIV 3,K1M,42,Oliver De-Loyde,J10,2014,Independent,2024-06-11,W,Oliver.De-Loyde"]
["DIV 3,K1M,43,Karl Egerton,S,1988,Bradford & Bingley CC,2023-09-26,E,"]
["DIV 3,K1M,44,Stefan Halama,M,1980,Stourbridge Arm CC,2025-01-28,E,Stefan.Halama"]
["DIV 3,K1M,45,Graeme Benson,S,1990,Kingston KC,2024-05-21,E,"]
["DIV 3,K1M,46,Euan Maciver,J14,2011,Strathallan CC,2024-09-30,S,"]
["DIV 3,K1M,47,Jacob Lumb,J16,2008,Bradford & Bingley CC,2024-04-24,E,"]
["DIV 3,K1M,48,Richard Davis,M,1938,Itchen Valley CC/The Sharks,2025-03-10,E,Richard.Davis"]
["DIV 3,K1M,49,Michael Boyle,S,1989,Viking KC,2024-07-14,E,"]
["DIV 3,K1M,50,Kieran Kudlicka,J14,2010,Break Out Canoe Unit,2024-06-16,E,"]
["DIV 3,K1M,51,Josh Boyd,J16,2008,Strathallan CC,2025-03-31,S,Josh.Boyd"]
["DIV 3,K1M,52,Ari Murdoch,J14,2011,Stafford & Stone CC,2025-04-24,E,"]
["DIV 3,K1M,53,Brodan McDonald,J18,2007,Strathallan CC,2025-04-30,S,Brodan.McDonald"]
["DIV 3,K1M,54,Ty Holmes,J18,2007,Sheffield CC,2024-04-12,E,Ty.Holmes"]
["DIV 3,K1M,55,Dan Whyte,J14,2010,CR Cats,2025-04-30,S,Dan.Whyte"]
["DIV 3,K1M,56,Harvey Reeves,J16,2008,Break Out Canoe Unit,2025-02-17,E,"]
["DIV 3,K1M,57,Will Vine,J16,2008,Green Star CC,2024-07-13,E,Will.Vine"]
["DIV 3,K1M,58,David A Clark,J14,2010,Aberdeen KC,2024-09-30,S,"]
["DIV 3,K1M,59,Dave Preston,M,1968,Wyedean CC,2024-06-01,E,Dave.Preston"]
["DIV 3,K1M,60,George Lee,J16,2009,Matlock CC,2024-03-14,E,"]
["DIV 3,K1M,61,James Gibson,U23,2002,Bradford & Bingley CC,2025-03-27,E,"]
["DIV 3,K1M,62,Lewis James Forkin,J18,2007,Llandysul Paddlers,2024-07-22,W,"]
["DIV 3,K1M,63,Nathan Harris,J16,2008,CR Cats,2024-10-31,S,"]
["DIV 3,K1M,64,Callan Gardner,J10,2015,Pinkston Panthers,2024-08-31,S,"]
["DIV 3,K1M,65,Brychan Watkins,M,1961,Independent,2024-10-31,E,Brychan.Watkins"]
["DIV 3,K1M,66,Joe Carey,S,2000,Sheffield University,2025-04-10,E,Joe.Carey"]
["DIV 3,K1M,67,Richard Arden,M,1972,Manvers WBC,2024-08-26,E,Richard.Arden"]
["DIV 3,K1M,68,Luke Pond,U23,2001,Seren Dwr,2024-10-17,E,Luke.Pond"]
["DIV 3,K1M,69,Bodie Ramsdale,J10,2014,Paddle Peak,2025-04-12,E,"]
["DIV 3,K1M,70,Christopher Blythe,J18,2007,Break Out Canoe Unit,2024-09-01,E,Christopher.Blythe"]
["DIV 3,K1M,71,William Costabile,J14,2010,Matlock CC,2024-07-21,E,"]
["DIV 3,K1M,72,Andy Land,S,1981,Proteus CC,2025-04-05,E,"]
["DIV 3,K1M,73,Liam Davies,J16,2008,Llandysul Paddlers,2024-08-30,W,"]
["DIV 3,K1M,74,Matthew Collington,J16,2008,CR Cats,2024-06-30,S,"]
["DIV 3,K1M,75,Joseph Cieslar,J12,2012,Strathallan CC,2025-03-31,S,Joseph.Cieslar"]
["DIV 3,K1M,76,Jack Macdonald,J12,2013,Cheltenham CC,2025-03-15,E,Jack.Macdonald"]
["DIV 3,K1M,77,Andrew Law,U23,2002,Stourbridge Arm CC,2024-09-02,E,Andrew.Law"]
["DIV 3,K1M,78,George Lumb,J14,2011,Bradford & Bingley CC,2023-08-28,E,"]
["DIV 3,K1M,79,Russell Hutchison,M,1973,Manvers WBC,2025-03-02,E,Russell.Hutchison"]
["DIV 3,K1M,80,Freddie Rickards,J18,2007,Seren Dwr,2024-03-20,W,Freddie.Rickards"]
["DIV 3,K1M,81,Nigel Greening,M,1968,Stroud Valley CC,2024-06-03,E,Nigel.Greening"]
["DIV 3,K1M,82,Nic English,S,1976,Stafford & Stone CC,2024-07-03,E,"]
["DIV 3,K1M,83,James Griffiths,J14,2011,Holme Pierrepont CC,2025-05-15,E,"]
["DIV 3,K1M,84,Jasper William Blackwell,J16,2009,Proteus CC,2024-08-15,E,"]
["DIV 3,K1M,85,Steve Wilford,S,1979,Seren Dwr,2024-08-06,W,Steve.Wilford"]
["DIV 3,K1M,86,Alfie Astles,J12,2013,Paddle Peak,2024-03-31,E,"]
["DIV 3,K1M,87,Thomas Brown,J14,2010,Holme Pierrepont CC,2025-04-12,E,Thomas.Brown"]
["DIV 3,K1M,88,Fionn O'Connor,J12,2013,Bradford & Bingley CC,2025-05-13,E,Fionn.O'Connor"]
["DIV 3,K1M,89,Alfie Stubbs,J16,2008,Green Star CC,2024-07-18,E,Alfie.Stubbs"]
["DIV 3,K1M,90,Freddie Tucker,J16,2007,Winchester & District CC,1970-01-01,E,"]
["DIV 3,K1M,91,Daniel Ahearne,J16,2009,Break Out Canoe Unit,2024-09-25,E,"]
["DIV 3,K1M,92,Harry Wellings,J14,2010,Green Star CC,2023-06-13,E,Harry.Wellings"]
["DIV 3,K1M,93,Coll McDonald,J12,2012,Strathallan CC,2025-04-30,S,"]
["DIV 3,K1M,94,Eddy Munday,M,1948,Green Star CC,2025-04-05,E,Eddy.Munday"]
["DIV 3,K1M,95,Isaac White,J14,2010,Holme Pierrepont CC,2024-06-22,E,Isaac.White"]
["DIV 3,K1M,96,Wilfred McCrae,J12,2013,Breadalbane CC,2025-03-31,S,Wilfred.McCrae"]
["DIV 3,K1M,97,Andrew McCrae,S,1980,Breadalbane CC,2024-11-30,S,"]
["DIV 3,K1M,98,Aditya Ravichander,J14,2010,The Sharks,2024-05-30,E,"]
["DIV 3,K1M,99,William Mason,J14,2011,Manchester CC,2024-08-03,E,"]
["DIV 3,K1M,100,Dylan Helm,J14,2010,Stafford & Stone CC,2024-07-10,E,"]
["DIV 3,K1M,101,Kurt White,S,1984,The Sharks,2023-08-23,E,"]
["DIV 3,K1M,102,James M Cooper,J14,2010,Matlock CC/Paddle Peak,2024-09-10,E,James M.Cooper"]
["DIV 3,K1M,103,Joe Harrison,J18,2007,Nottingham KC,2024-06-02,E,Joe.Harrison"]
["DIV 3,K1M,104,Andy Lloyd,M,1980,Wiltshire Youth CC,1970-01-01,E,"]
["DIV 3,K1M,105,Bill Richmond,M,1957,Poole Harbour CC,2024-08-10,E,Bill.Richmond"]
["DIV 3,K1M,106,Trystan Homer,J14,2010,Green Star CC,2024-06-21,E,"]
["DIV 3,K1M,107,Hector Wellings,J12,2012,Green Star CC,2023-06-13,E,"]
["DIV 3,K1M,108,Emmett Titchner,J10,2014,Wiltshire Youth CC,2025-04-24,E,"]
["DIV 3,K1M,109,Rowan Cysewski Light,J12,2012,Seren Dwr,2024-07-04,W,Rowan.Cysewski Light"]
["DIV 3,K1M,110,Paul Watkins,S,1964,Wyedean CC,2024-10-11,E,"]
["DIV 3,K1M,111,Austin Hague,J12,2013,Manvers WBC,2023-06-05,E,"]
["DIV 3,K1M,112,Joshua Czepiec,J16,2009,Green Star CC,2024-06-06,E,"]
["DIV 3,K1M,113,Connor Welsh,J16,2008,Edinburgh Schools KC,2024-05-31,S,"]
["DIV 3,K1M,114,Lee Draper,M,1970,Kingston KC,1970-01-01,E,"]
["DIV 3,K1M,115,Hadley Ridley,J14,2010,Lee Valley PC,2023-05-12,E,"]
["DIV 3,K1M,117,Ethan White,J12,2012,Holme Pierrepont CC,2024-06-22,E,"]
["DIV 3,K1M,118,Lucas Pick,J12,2012,Matlock CC,2024-10-28,E,Lucas.Pick"]
["DIV 3,K1M,119,Adam Hicks,S,1988,Stafford & Stone CC,2025-03-23,E,Adam.Hicks"]
["DIV 3,K1M,120,Anson Coop,J12,2013,Wiltshire Youth CC,2024-08-18,E,"]
["DIV 3,K1M,121,Sean Hulston,J18,2007,Llandysul Paddlers,2024-08-30,W,"]
["DIV 3,K1M,122,Daniel Moss,S,1986,Proteus CC,2024-05-09,E,"]
["DIV 3,K1M,123,Elijas Hill,J10,2014,Paddle Peak,2024-06-17,E,"]
["DIV 3,K1M,124,Alex McLaren,J16,2008,Independent,1970-01-01,E,"]
["DIV 3,K1M,125,Eoin Kenny,M,0,Llandysul Paddlers,1970-01-01,E,Eoin.Kenny"]
["DIV 3,K1M,126,Broden Daly,J14,2009,CR Cats,1970-01-01,E,"]
["DIV 3,K1M,127,David Stubley,M,1980,CR Cats,1970-01-01,E,"]
["DIV 3,K1M,128,Oliver Townsend,S,1997,Independent,1970-01-01,E,"]
["DIV 3,K1M,129,Sam Foote,U23,2004,Independent,1970-01-01,E,"]
["DIV 3,K1M,130,Issac Whitlock,J12,2011,Wiltshire Youth CC,1970-01-01,E,"]
["DIV 3,K1M,131,James Lawson,J16,2009,Taunton CC,1970-01-01,E,James.Lawson"]
["DIV 3,K1M,132,Harry Bowen,J10,0,Llandysul Paddlers,1970-01-01,E,Harry.Bowen"]
["DIV 3,K1M,133,Benja Obonyo,J16,2007,Wyedean CC,1970-01-01,E,"]
["DIV 3,K1M,134,Jack Ashley,J14,2010,Bradford & Bingley CC,1970-01-01,E,"]
["DIV 3,K1M,135,Billy Monahan,J12,2011,Wyedean CC,1970-01-01,E,"]
["DIV 3,K1M,136,Benji Lewis,J8,2015,Llandysul Paddlers,1970-01-01,E,"]
["DIV 3,K1M,137,Edward Doherty,S,1995,Proteus CC,1970-01-01,E,"]
["DIV 3,K1M,138,Nigel Fiddy,M,1985,Proteus CC,1970-01-01,E,"]
["DIV 3,K1M,140,Leo Keates,J12,2012,Stafford & Stone CC,1970-01-01,E,"]
["DIV 3,K1M,141,Oscar Haughey,J10,2013,Green Star CC,1970-01-01,E,"]
["DIV 3,K1M,142,Ethan Ovens,J12,2011,Wiltshire Youth CC,1970-01-01,E,"]
["DIV 3,K1M,145,Tomi Pugh,J10,2014,Llandysul Paddlers,2024-10-15,W,"]
["DIV 3,K1M,146,Hamish Arthur,J14,2011,Frome CC,2024-08-15,E,Hamish.Arthur"]
["DIV 3,K1M,147,Dylan Allen,J16,2008,Viking KC,2024-08-12,E,"]
["DIV 3,K1M,148,Daniel Hill,J10,2013,Manchester CC,1970-01-01,E,"]
["DIV 3,K1M,149,Dexter Gray,J14,2011,North Wales Slalom,2025-03-03,W,"]
["DIV 3,K1M,150,Archie Phillips,J14,2010,CR Cats,2024-05-31,S,"]
["DIV 3,K1M,151,Lucas Baikie,J14,2011,CR Cats,2025-03-31,S,"]
["DIV 3,K1M,152,Leon Tomlinson,J18,2005,Nottingham KC,1970-01-01,E,"]
["DIV 3,K1M,155,Rupert Rawding,J8,2016,Kingston KC,2024-07-11,E,"]
["DIV 3,K1M,156,Seb Moran,J16,2009,Green Star CC,2025-03-23,E,"]
["DIV 3,K1M,157,Harry Gregson,J14,2011,Break Out Canoe Unit,2025-01-15,E,"]
["DIV 3,K1M,158,Nigel Pick,S,1977,Matlock CC,2024-10-28,E,Nigel.Pick"]
["DIV 3,K1M,159,Bradleyjosh Garvey,J18,2006,Stourbridge Arm CC,2024-08-20,E,"]
["DIV 3,K1M,160,Giles Dyson,M,1963,Matlock CC,2025-02-14,E,Giles.Dyson"]
["DIV 3,K1M,161,David Spikings,M,1966,The Sharks,2024-08-02,E,David.Spikings"]
["DIV 3,K1M,162,Huw Singleton,J18,2006,Nottingham KC,2024-07-30,E,Huw.Singleton"]
["DIV 3,K1M,163,David Cotterill,M,1965,Independent,2024-01-25,E,David.Cotterill"]
["DIV 3,K1M,164,Franklin Singleton,J12,2013,Manvers WBC,2025-04-01,E,"]
["DIV 3,K1M,165,Richard Teague,M,1955,Stourbridge Arm CC,2024-10-04,E,Richard.Teague"]
["DIV 3,K1M,166,Shahriar Nabili,S,1972,Pinkston Panthers,2024-08-31,S,Shahriar.Nabili"]
["DIV 3,K1M,167,Alex Ziegler,S,1961,Stafford & Stone CC,2024-02-16,E,"]
["DIV 3,K1M,168,Ed Butler,J18,2005,Nottingham KC,2023-07-10,E,"]
["DIV 3,K1M,169,Paul McGuire,S,1956,Independent,2019-07-31,E,Paul.McGuire"]
["DIV 3,K1M,170,Zach Tott,J16,2009,Manchester CC,2025-02-12,E,Zach.Tott"]
["DIV 3,K1M,171,Phillip Saunders,S,1973,Stafford & Stone CC,2024-08-09,E,Phillip.Saunders"]
["DIV 3,K1M,172,Gareth Lambert,M,1974,Independent,2025-02-05,E,Gareth.Lambert"]
["DIV 3,K1M,173,Luca Willmott,J12,2012,Shepperton SCC,2024-09-09,E,Luca.Willmott"]
["DIV 3,K1M,174,Alistair Gifford-Moore,S,1973,The Sharks,2025-03-16,E,Alistair.Gifford-Moore"]
["DIV 3,K1M,175,Harrison Morton,J12,2012,Seren Dwr,2025-03-01,W,Harrison.Morton"]
["DIV 3,K1M,176,Thomas Henshaw,J12,2012,Stafford & Stone CC,2025-03-30,E,Thomas.Henshaw"]
["DIV 3,K1M,177,Louie Emberson,J12,2012,Stafford & Stone CC,2025-03-30,E,Louie.Emberson"]
["DIV 3,K1M,178,James Potter,S,1973,North Wales Slalom,2025-04-01,W,James.Potter"]
["DIV 3,K1M,179,Myles Cheadle,J12,2013,Stafford & Stone CC,2025-04-22,E,Myles.Cheadle"]
["DIV 3,K1M,180,Keanu Elston,J12,2012,Taunton CC,2024-09-30,E,Keanu.Elston"]
["DIV 3,K1M,181,Stan Roycroft,J14,2011,Stafford & Stone CC,2025-05-01,E,Stan.Roycroft"]
["DIV 3,K1M,182,Harry Walters,J16,2009,Spring Valley Paddlers,2024-06-24,W,Harry.Walters"]
["DIV 3,K1M,183,Teifion Friston-Kemble,J16,2008,Seren Dwr,1970-01-01,W,Teifion.Friston-Kemble"]
["DIV 3,C1W,1,Karly Leeson,J14,2010,CR Cats,2025-04-30,S,"]
["DIV 3,C1W,2,Carys Jones,J14,2010,Viking KC,2024-08-14,E,"]
["DIV 3,C1W,3,Fay Roden,J12,2013,Stafford & Stone CC,2025-04-06,E,Fay.Roden"]
["DIV 3,C1W,4,Tamsin Hargreaves,J14,2011,Wyedean CC,2024-08-31,W,"]
["DIV 3,C1W,5,Heather Longhurst,J12,2013,Cheltenham CC,2024-09-30,E,"]
["DIV 3,C1W,6,Ruby Sattin,J14,2010,Wyedean CC,2025-01-12,E,"]
["DIV 3,C1W,7,Emma Mitchell,J14,2011,Wyedean CC,2024-08-11,E,Emma.Mitchell"]
["DIV 3,C1W,8,Francesca Main,J16,2009,CR Cats,2025-04-30,S,"]
["DIV 3,C1W,9,Leri Jones-Kenny,J10,2014,Llandysul Paddlers,2024-10-11,W,Leri.Jones-Kenny"]
["DIV 3,C1W,10,Isabel Booth,J14,2011,North Wales Slalom,2025-03-12,W,Isabel.Booth"]
["DIV 3,C1W,11,Isla Phillips,J12,2012,CR Cats,2024-05-31,S,"]
["DIV 3,C1W,12,Josephine Carr,J14,2010,CR Cats,2025-04-30,S,Josephine.Carr"]
["DIV 3,C1W,13,Donna Hawkins,M,1961,Matlock CC,2024-08-31,E,Donna.Hawkins"]
["DIV 3,C1W,14,Eve Macnamara,J18,2007,Edinburgh Schools KC,2024-05-31,S,"]
["DIV 3,C1W,15,Penny Maclean,J14,2011,Pinkston Panthers,2024-11-30,S,Penny.Maclean"]
["DIV 3,C1W,16,Olivia Hopper,J12,2013,Holme Pierrepont CC,2024-07-02,E,Olivia.Hopper"]
["DIV 3,C1W,17,Olivia Wears,J18,2006,CR Cats,2024-10-31,S,Olivia.Wears"]
["DIV 3,C1W,18,Amber Saunders,J14,2011,Stafford & Stone CC,2025-04-04,E,Amber.Saunders"]
["DIV 3,C1W,19,Evie Lancaster,J16,2009,Manvers WBC,2025-05-28,E,Evie.Lancaster"]
["DIV 3,C1W,20,Maya Darby-Dowman,J12,2012,Holme Pierrepont CC,2024-12-02,E,Maya.Darby-Dowman"]
["DIV 3,C1W,21,Caitlan Scobie,J16,2008,Strathallan CC,2025-02-28,S,Caitlan.Scobie"]
["DIV 3,C1W,22,Hanni Griffiths,J10,2014,Wyedean CC,2023-08-18,E,"]
["DIV 3,C1W,23,Anna Alfer,J16,2009,Wyedean CC,2022-03-15,E,Anna.Alfer"]
["DIV 3,C1W,24,Eve Burgess Chaffe,J14,2011,Lee Valley PC,2024-06-03,E,"]
["DIV 3,C1W,25,Martha Innes,J16,0,Edinburgh Schools KC,1970-01-01,E,"]
["DIV 3,C1W,26,Maya Darby Dowman,J12,2011,Holme Pierrepont CC,1970-01-01,E,"]
["DIV 3,C1W,27,Thea Cooke,J14,2010,Edinburgh Schools KC,2025-02-28,S,"]
["DIV 3,C1W,28,Iona Hawksworth,J16,2009,Green Star CC,2024-05-30,E,"]
["DIV 3,C1W,29,Lia Wellings,J14,0,Green Star CC,1970-01-01,E,Lia.Wellings"]
["DIV 3,C1W,30,Rosie-Lou Duckworth,J16,2009,Wyedean CC,2024-10-05,W,Rosie-Lou.Duckworth"]
["DIV 3,C1W,31,Amelia White,U23,2005,Stafford & Stone CC,2024-06-15,E,Amelia.White"]
["DIV 3,C1W,32,Rebecca Mackenzie,M,1978,Bradford & Bingley CC,2025-01-09,E,Rebecca.Mackenzie"]
["DIV 3,C1W,33,Tavi Murray,M,1965,Seren Dwr,2025-02-25,W,Tavi.Murray"]
["DIV 3,C1W,34,Ellie Grant,S,1974,Salisbury CC,2025-05-10,E,Ellie.Grant"]
["DIV 3,C1W,35,Isabelle Dixon,J14,2011,Stafford & Stone CC,2025-02-12,E,Isabelle.Dixon"]
["DIV 3,C1W,36,Liesl Rose Davies,J14,2011,North Wales Slalom,2024-09-18,W,Liesl Rose.Davies"]
["DIV 3,C1W,37,Connie Albrighton,J14,2011,North Wales Slalom,2025-01-10,W,Connie.Albrighton"]
["DIV 3,C1W,38,Amber J Forster,J14,2010,Holme Pierrepont CC,2024-09-11,E,Amber J.Forster"]
["DIV 3,C1M,1,Tony Chalk,M,1963,Stroud Valley CC,2024-12-06,E,Tony.Chalk"]
["DIV 3,C1M,2,Thomas Hargreaves,J14,2011,Wyedean CC,2024-09-19,W,"]
["DIV 3,C1M,3,Harry Godwin,J12,2012,Stafford & Stone CC,2025-02-15,E,"]
["DIV 3,C1M,4,Joel Gardner,J14,2010,Pinkston Panthers,2024-08-31,S,Joel.Gardner"]
["DIV 3,C1M,5,William Beale,J18,2006,Independent,2024-09-28,E,William.Beale"]
["DIV 3,C1M,6,Rowan Sutcliffe,J14,2011,North Wales Slalom,2024-07-23,W,Rowan.Sutcliffe"]
["DIV 3,C1M,7,Joseph Whittington,J18,2007,Frome CC,2025-05-03,E,Joseph.Whittington"]
["DIV 3,C1M,8,Alfie Dixon,J16,2009,Stafford & Stone CC,2025-02-12,E,Alfie.Dixon"]
["DIV 3,C1M,9,Phil Copeland,M,1959,Stroud Valley CC,2024-05-09,E,Phil.Copeland"]
["DIV 3,C1M,10,Andrew Whiting,M,1972,Matlock CC/Paddle Peak,2024-07-30,E,Andrew.Whiting"]
["DIV 3,C1M,11,Will Roden,J14,2011,Stafford & Stone CC,2025-04-06,E,Will.Roden"]
["DIV 3,C1M,12,Toby Cooke,J14,2011,Bradford & Bingley CC,2025-02-27,E,Toby.Cooke"]
["DIV 3,C1M,13,Andrew G Davies,J14,2010,Manchester CC,2025-03-20,E,"]
["DIV 3,C1M,14,Fraser Diggins,J14,2010,Lee Valley PC,2024-06-02,E,"]
["DIV 3,C1M,15,Richard Story,M,1962,Salisbury CC,2025-03-02,E,Richard.Story"]
["DIV 3,C1M,16,Nathan Hicks,J12,2012,Stafford & Stone CC,2025-03-23,E,"]
["DIV 3,C1M,17,Riley Wilford,J14,2011,Seren Dwr,2024-08-04,W,Riley.Wilford"]
["DIV 3,C1M,18,David Quinn,M,1963,Pinkston Panthers,2024-12-31,S,David.Quinn"]
["DIV 3,C1M,19,Josef Preston,J14,2010,Wyedean CC,2024-06-01,E,Josef.Preston"]
["DIV 3,C1M,20,Theo Beale,J16,2008,Green Star CC,2024-09-29,E,Theo.Beale"]
["DIV 3,C1M,21,Stefan Halama,M,1980,Stourbridge Arm CC,2025-01-28,E,Stefan.Halama"]
["DIV 3,C1M,22,Jack Toovey,J14,2011,CR Cats,2024-04-30,S,Jack.Toovey"]
["DIV 3,C1M,23,Aidan Thacker,J18,2007,CR Cats,2025-03-31,S,"]
["DIV 3,C1M,24,Dexter Diggins,J12,2013,Lee Valley PC,2024-06-02,E,"]
["DIV 3,C1M,25,Daniel Kelly,U23,2004,Break Out Canoe Unit,2024-07-25,E,Daniel.Kelly"]
["DIV 3,C1M,26,Neal Underwood,M,1960,The Sharks,2025-02-17,E,Neal.Underwood"]
["DIV 3,C1M,27,Ross Linning,J16,2008,CR Cats,2024-05-31,S,"]
["DIV 3,C1M,28,Anson Coop,J12,2013,Wiltshire Youth CC,2024-08-18,E,"]
["DIV 3,C1M,29,Lucas Stevens,J16,2008,Holme Pierrepont CC,2025-04-18,E,Lucas.Stevens"]
["DIV 3,C1M,30,Alistair Thacker,J14,2010,CR Cats,2025-03-31,S,"]
["DIV 3,C1M,31,Barry Davies,M,1969,Salisbury CC,2024-07-19,E,"]
["DIV 3,C1M,32,Louie Dedman,J16,2009,Lee Valley PC,2024-05-09,E,Louie.Dedman"]
["DIV 3,C1M,33,David Wright,M,1948,Woodsetton CC,2024-08-10,E,David.Wright"]
["DIV 3,C1M,34,Regan Toop,J18,2006,Wiltshire Youth CC,1970-01-01,E,"]
["DIV 3,C1M,36,Ethan Owens,J12,2012,Wiltshire Youth CC,1970-01-01,E,"]
["DIV 3,C1M,37,Gregor Thomas,J16,2009,CR Cats,2025-04-30,S,"]
["DIV 3,C1M,38,Eion Kenny,M,72,Llandysul Paddlers,1970-01-01,E,"]
["DIV 3,C1M,39,Tomi Pugh,J10,0,Llandysul Paddlers,2024-10-15,W,"]
["DIV 3,C1M,40,Dougie Cresser,J12,2013,Bradford & Bingley CC,2024-09-29,E,"]
["DIV 3,C1M,41,Thomas Muir,J14,2011,CR Cats,2025-04-30,S,"]
["DIV 3,C1M,42,Archie Cowe,J14,2010,Strathallan CC,2025-03-31,S,"]
["DIV 3,C1M,43,Jack Smith,J14,2011,Stafford & Stone CC,2025-04-26,E,"]
["DIV 3,C1M,44,Tony Wells,M,1982,Llandysul Paddlers,2023-07-14,W,Tony.Wells"]
["DIV 3,C1M,45,Nick Mitchell,M,1983,Wyedean CC,2024-08-11,E,Nick.Mitchell"]
["DIV 3,C1M,46,Huw Singleton,J18,2006,Nottingham KC,2024-07-30,E,"]
["DIV 3,C1M,47,Austin Hague,J12,2013,Manvers WBC,2023-06-05,E,"]
["DIV 3,C1M,48,Austin Gould,J18,2007,Manvers WBC,2025-02-21,E,Austin.Gould"]
["DIV 3,C1M,49,Joshua Harley Benton,J14,2010,Stafford & Stone CC,2025-04-10,E,Joshua Harley.Benton"]
["DIV 3,C1M,50,Daniel Oldfield,S,1979,Proteus CC,2024-08-08,E,Daniel.Oldfield"]
["DIV 3,C1M,51,Gareth Lambert,M,1974,Independent,2025-02-05,E,Gareth.Lambert"]
["DIV 3,C1M,52,Mostyn Jones,J10,2014,Llandysul Paddlers,2025-03-27,W,Mostyn.Jones"]
["DIV 3,C1M,53,Gary Clow,M,1968,Aberdeen KC,2024-06-30,S,Gary.Clow"]
["DIV 3,C1M,54,Alexander Kennan,J12,2013,North Wales Slalom,2024-06-04,W,Alexander.Kennan"]
["DIV 3,C1M,55,Archie Phillips,J14,2010,CR Cats,2024-05-31,S,Archie.Phillips"]
["DIV 3,C1M,56,Will Sutcliffe,S,1983,North Wales Slalom,2025-05-30,W,Will.Sutcliffe"]
["VET,K1M,1,Thomas Power,V,1988,Llandysul Paddlers,2025-02-14,W,Thomas.Power"]
["VET,K1M,2,Jonathan Males,V,1962,Lee Valley PC,2024-06-30,E,Jonathan.Males"]
["VET,K1M,3,Mike Mitchell,V,1957,Wyedean CC,2024-09-28,E,Mike.Mitchell"]
["VET,K1M,4,Allan Tyler,V,1966,Lee Valley PC,2024-06-29,E,Allan.Tyler"]
["VET,K1M,5,Bob Grundy,V,1959,Lee Valley PC,2024-10-31,E,Bob.Grundy"]
["VET,K1M,6,Chris Wood,V,1961,Lee Valley PC,2024-09-30,E,Chris.Wood"]
["VET,K1M,7,Richard Moore,V,1966,The Sharks,2024-10-31,E,Richard.Moore"]
["VET,K1M,8,Michael Huddlestan,V,1965,Ribble CC,2123-06-02,E,Michael.Huddlestan"]
["VET,K1M,9,Jeff Wilson,V,1963,Manchester CC,2025-02-17,E,Jeff.Wilson"]
["VET,K1M,10,Paul Kettle,V,1974,Lee Valley PC,2024-10-13,E,Paul.Kettle"]
["VET,K1M,11,Clive Merrifield,V,1969,Taunton CC,2025-03-28,E,Clive.Merrifield"]
["VET,K1M,12,Phil Gooding,V,1961,Independent,2025-01-31,E,Phil.Gooding"]
["VET,K1M,13,Paul Evans,V,1956,Stafford & Stone CC,2025-05-26,E,Paul.Evans"]
["VET,K1M,14,Steve Harratt,V,1966,Stafford & Stone CC,2024-07-06,E,Steve.Harratt"]
["VET,K1M,15,Darren Ship,V,1966,Stafford & Stone CC,2025-01-11,E,Darren.Ship"]
["VET,K1M,16,Robert Graves,V,1966,Independent,2024-11-30,W,Robert.Graves"]
["VET,K1M,17,Terry Griffiths,V,1956,Baldock & District CC,2024-10-31,E,Terry.Griffiths"]
["VET,K1M,18,Richard Luke,V,1963,Manchester CC/Matlock CC,2115-10-31,E,Richard.Luke"]
["VET,K1M,20,Simon MacDonald,V,1975,Cheltenham CC,2025-03-15,E,Simon.MacDonald"]
["VET,K1M,21,Andrew Bennett,V,1961,Viking KC,2025-04-11,E,Andrew.Bennett"]
["VET,K1M,22,Dave Rawding,V,1960,Kingston KC,2025-01-11,E,Dave.Rawding"]
["VET,K1M,23,Tony O'Connell,V,1953,Bradford & Bingley CC,2025-03-03,E,Tony.O'Connell"]
["VET,K1M,24,Paul Mew,V,1973,Windsor & District CC/Shepperton SCC,2025-03-16,E,Paul.Mew"]
["VET,K1M,25,David Quinn,V,1963,Pinkston Panthers,2024-12-31,S,David.Quinn"]
["VET,K1M,26,David Mawdsley,V,1960,Bradford & Bingley CC,2024-12-30,E,David.Mawdsley"]
["VET,K1M,27,Lloyd Allin,V,1955,Independent,2023-12-19,E,Lloyd.Allin"]
["VET,K1M,28,Duncan Berriman,V,1966,Kingston KC,2024-09-21,E,Duncan.Berriman"]
["VET,K1M,29,Geoff Porter,V,1963,Strathallan CC,2024-12-31,S,Geoff.Porter"]
["VET,K1M,30,Adam Hicks,V,1988,Stafford & Stone CC,2025-03-23,E,Adam.Hicks"]
["VET,K1M,31,Alan Hartley,V,1974,Independent,2025-03-24,E,Alan.Hartley"]
["VET,K1M,32,Pete Astles,V,1969,Paddle Peak,2025-03-31,E,Pete.Astles"]
["VET,K1M,33,Jerry Tracey,V,1955,Independent,2024-10-31,S,Jerry.Tracey"]
["VET,K1M,34,Andrew Close,V,1960,Pennine CRC/Pennine CC,2025-04-30,E,Andrew.Close"]
["VET,K1M,35,Steve Holmes,V,1976,Manchester CC/Kingston KC,2025-02-28,E,Steve.Holmes"]
["VET,K1M,36,Andrew Childs,V,1966,Independent,2025-04-28,E,Andrew.Childs"]
["VET,K1M,37,Michael Penfold,V,1976,Llandysul Paddlers,2024-10-31,W,Michael.Penfold"]
["VET,K1M,38,Dave Radmore,V,1955,Independent,2024-10-31,S,Dave.Radmore"]
["VET,K1M,39,Andrew Lyall,V,1963,Independent,2025-05-01,E,Andrew.Lyall"]
["VET,K1M,40,Paul Wallace,V,1967,Stafford & Stone CC,2024-11-04,E,Paul.Wallace"]
["VET,K1M,41,Horst Mayer,V,1971,Stafford & Stone CC,2024-10-31,E,Horst.Mayer"]
["VET,K1M,42,Craig Douglas,V,1960,Aberdeen KC,2024-12-31,S,Craig.Douglas"]
["VET,K1M,43,Jamie Christie,V,1972,Break Out Canoe Unit,2024-11-10,E,Jamie.Christie"]
["VET,K1M,44,Richard Story,V,1962,Salisbury CC,2025-03-02,E,Richard.Story"]
["VET,K1M,45,Danny Dalrymple,V,1946,Itchen Valley CC/The Sharks,2024-11-01,E,Danny.Dalrymple"]
["VET,K1M,46,Bob Lawler,V,1965,Halifax CC,2024-05-30,E,Bob.Lawler"]
["VET,K1M,47,Rob Callingham,V,1959,Windermere CC,2024-05-27,E,Rob.Callingham"]
["VET,K1M,48,Peter Appleton,V,1959,Stafford & Stone CC,2025-01-14,E,Peter.Appleton"]
["VET,K1M,49,Jason Reid,V,1971,Proteus CC,2024-07-01,E,Jason.Reid"]
["VET,K1M,50,Stuart Vidler,V,1975,Halifax CC,2025-02-04,E,Stuart.Vidler"]
["VET,K1M,51,Mark Davies,V,1972,Manchester CC,2025-03-20,E,Mark.Davies"]
["VET,K1M,52,Paul Marshall,V,1943,Poole Harbour CC,2025-05-08,E,Paul.Marshall"]
["VET,K1M,53,Ken Baillie,V,1948,Aberdeen KC,2024-12-31,S,Ken.Baillie"]
["VET,K1M,54,Peter Welton,V,1974,Llandysul Paddlers,2024-07-07,W,Peter.Welton"]
["VET,K1M,55,Duncan Oughton,V,1961,Nottingham KC,2024-07-14,E,Duncan.Oughton"]
["VET,K1M,56,Alan Cardy,V,1979,Malton & Norton CC,2024-04-14,E,Alan.Cardy"]
["VET,K1M,57,Kevin Campbell,V,1965,Independent,2025-02-16,E,Kevin.Campbell"]
["VET,K1M,58,Andrew Guest,V,1971,Manchester CC,2024-06-16,E,Andrew.Guest"]
["VET,K1M,59,Selwyn Richards,V,1967,Poole Harbour CC,2024-12-05,E,Selwyn.Richards"]
["VET,K1M,60,Steve P Briggs,V,1960,Chester S&CC,2024-07-05,E,Steve P.Briggs"]
["VET,K1M,61,David Cooke,V,1967,Manchester CC,2024-12-01,E,David.Cooke"]
["VET,K1M,62,James Doherty,V,1960,Proteus CC,2024-07-16,E,James.Doherty"]
["VET,K1M,63,Steve Briggs,V,1966,Matlock CC,2025-02-11,E,Steve.Briggs"]
["VET,K1M,64,Andrew Roden,V,1977,Stafford & Stone CC,2025-04-06,E,Andrew.Roden"]
["VET,K1M,65,Andrew Davies,V,1975,Kingston KC,2025-01-11,E,Andrew.Davies"]
["VET,K1M,66,John Dickinson,V,1966,Stafford & Stone CC,2024-09-27,E,John.Dickinson"]
["VET,K1M,67,Jason Gregory,V,1970,Independent,1970-01-01,E,Jason.Gregory"]
["VET,K1M,68,Richard Argue,V,1959,Chalfont Park CC,2025-03-13,E,Richard.Argue"]
["VET,K1M,69,Tim Murdoch,V,1966,Stafford & Stone CC,2025-04-24,E,Tim.Murdoch"]
["VET,K1W,1,Jane Gibson,V,1958,Strathallan CC,2024-12-31,S,Jane.Gibson"]
["VET,K1W,2,Rose Mitchell,V,1965,Wyedean CC,2024-09-28,E,Rose.Mitchell"]
["VET,K1W,3,Isabel Green,V,1978,Hemel Hempstead CC,2024-08-02,E,Isabel.Green"]
["VET,K1W,4,Alison Longhurst,V,1979,Cheltenham CC,2024-09-30,E,Alison.Longhurst"]
["VET,K1W,5,Ellie Grant,V,1974,Salisbury CC,2025-05-10,E,Ellie.Grant"]
["VET,K1W,6,Noreen Bishop,V,1956,Cheltenham CC,2024-06-10,E,Noreen.Bishop"]
["VET,K1W,7,Leonie Merrifield,V,1970,Taunton CC,2025-03-28,E,Leonie.Merrifield"]
["VET,K1W,8,Tracy Wells,V,1971,Proteus CC,2115-10-31,E,Tracy.Wells"]
["VET,K1W,9,Donna Hawkins,V,1961,Matlock CC,2024-08-31,E,Donna.Hawkins"]
["VET,K1W,10,Karen Seeley,V,1959,Stafford & Stone CC,2025-04-28,E,Karen.Seeley"]
["VET,K1W,11,Anita Evans,V,1978,Shropshire Paddlesport,2025-03-12,E,Anita.Evans"]
["VET,K1W,12,Kay Royle,V,1963,Stafford & Stone CC/CKC,2025-02-01,E,Kay.Royle"]
["VET,K1W,13,Penny Swaine,V,1958,Independent,2024-11-01,E,Penny.Swaine"]
["VET,K1W,14,Helen Weedon,V,1978,Llandysul Paddlers,2024-06-26,W,Helen.Weedon"]
["VET,K1W,15,Anne Roberts,V,1961,Wyedean CC,2025-03-02,E,Anne.Roberts"]
["VET,K1W,16,Avis Noott,V,1938,Bristol CC,2024-11-30,E,Avis.Noott"]
["VET,K1W,17,Sarah Ford,V,1970,Halifax CC,2024-08-02,E,Sarah.Ford"]
["VET,K1W,18,Karen Crowhurst,V,1961,Sheffield CC,2024-09-08,E,Karen.Crowhurst"]
["VET,K1W,19,Julia Kay,V,1958,Macclesfield CC,2024-06-04,E,Julia.Kay"]
["VET,K1W,20,Lydie Luis,V,1977,Proteus CC,2024-07-08,E,Lydie.Luis"]
["VET,K1W,21,Mandy Greenaway,V,1966,Manvers WBC,2024-10-03,E,Mandy.Greenaway"]
["VET,C1M,2,Dave Royle,V,1962,Stafford & Stone CC/CKC,2025-02-01,E,Dave.Royle"]
["VET,C1M,3,Shane Timlin,V,1966,Shepperton SCC,2024-06-15,E,Shane.Timlin"]
["VET,C1M,4,Michael Stegeman,V,1968,Proteus CC,2024-07-10,E,Michael.Stegeman"]
["VET,C1M,5,Richard Comer,V,1970,Windsor & District CC,2024-09-05,E,Richard.Comer"]
["VET,C1M,6,Paul Foster,V,1967,Independent,2025-02-02,E,Paul.Foster"]
["VET,C1M,7,Steve Harratt,V,1966,Stafford & Stone CC,2024-07-06,E,Steve.Harratt"]
["VET,C1M,8,Patrick Thorn,V,1957,Windsor & District CC/Shepperton SCC,2025-04-18,E,Patrick.Thorn"]
["VET,C1M,9,Steve Green,V,1969,Hemel Hempstead CC,2024-08-02,E,Steve.Green"]
["VET,C1M,10,David Smith,V,1955,Bradford & Bingley CC,2024-09-10,E,David.Smith"]
["VET,C1M,11,Richard Moore,V,1966,The Sharks,2024-10-31,E,Richard.Moore"]
["VET,C1M,12,Steven Green,V,1967,Worcester CC,2024-10-31,E,Steven.Green"]
["VET,C1M,14,Andy McNeil,V,1972,Independent,2024-07-23,E,Andy.McNeil"]
["VET,C1M,15,Andrew Roden,V,1977,Stafford & Stone CC,2025-04-06,E,Andrew.Roden"]
["VET,C1W,1,Kate Kent,V,1977,Proteus CC,2024-08-29,E,Kate.Kent"]
["VET,C1W,2,Gemma Starks,V,1982,Llandysul Paddlers,2024-09-30,W,Gemma.Starks"]
["VET,C1W,3,Anna-Louise Glendenning,V,1988,Proteus CC,2024-08-28,E,Anna-Louise.Glendenning"]
["version,Ver 11 May"]

{"sheet":"Clubs","index":13,"n_rows":271,"n_cols":1,"rows_kept":271,"cut":false,"hidden":true,"merged":[]}
["Aberdeen KC"]
["Aberfan CC"]
["Abergavenny CC"]
["Aboyne CC"]
["Addlestone CC"]
["Adur CC"]
["Adur Centre"]
["Ambleside AAA"]
["Analong C&KC"]
["Army Canoe Union"]
["Arun CC"]
["Bala CC"]
["Baldock & District CC"]
["Barking & Dagenham CC"]
["Basingstoke & Dean CC"]
["Bideford CC"]
["Birmingham University"]
["Bishop Auckland CKC"]
["Blyth CC"]
["Bradford & Bingley CC"]
["Breadalbane CC"]
["Break Out Canoe Unit"]
["Brecon CC"]
["Bridgend CC"]
["Bristol CC"]
["Broadland Paddlesport"]
["Broadland Paddlesport"]
["Burton CC"]
["Caerphilly AG"]
["Cambridge CC"]
["Cambridge University CC"]
["Canalside AC"]
["Canoe Slalom Bay of Plenty NZ"]
["Canoe Slalom NI"]
["Cardiff CC"]
["Cardiff University"]
["Carlisle CC"]
["Castle CC"]
["Chalfont Park CC"]
["Chatham CC"]
["Cheltenham CC"]
["Cherwell CC"]
["Chester S&CC"]
["Cleveland CC"]
["Click-Let"]
["Club Cadi Canoe-Kayak"]
["Clywedog CC"]
["Colwyn CC"]
["Conway Paddlers"]
["Cool Blue Canoes"]
["Copeland CC"]
["County Antrim PS"]
["CR Cats"]
["Crewe & Nantwich CC"]
["Croesyceiliog CC"]
["CS Canoe"]
["Derwent Racers"]
["Desperate Measures"]
["Deveron CC"]
["Deveron Club"]
["Docklands SWC"]
["Duddon CC"]
["Durham KC"]
["Dyffryn Conwy Paddlers"]
["Dyffryn Taf"]
["Dysynni Paddling Club"]
["East Kent Paddlers"]
["East Yorkshire CC"]
["Edinburgh Schools KC"]
["Engineering Paddler Designs"]
["Essex Slalom Squad"]
["Euxton CC"]
["Evesham CC"]
["Evesham Paddle Monsters"]
["EyeTee"]
["FFB"]
["Fife CAG"]
["Forth CC"]
["Friends of Allonby"]
["Frodsham WSC"]
["Frome CC"]
["Galasport"]
["GB Academy"]
["Glam Boaters"]
["Glanford & Scunthorpe CC"]
["Glyn D&#373;r Dragons"]
["Green Star CC"]
["Gwedraeth Valley Paddlers"]
["Halifax CC"]
["Hamble Sea Scouts"]
["Hampshire Scouts"]
["Harefield Paddlers"]
["Heatree Activity Centre"]
["Hemel Hempstead CC"]
["Herts Canoe Club"]
["Herts Young Mariners"]
["Hexham CC"]
["Holme Pierrepont CC"]
["Hydrasports"]
["Independent"]
["Ireland"]
["Islington BC"]
["Itchen Valley CC"]
["JEM Racing"]
["Kilcullen CC"]
["Kingston KC"]
["Kingswood CC"]
["Kinver CC"]
["KKK Tacen"]
["Knottingley CC"]
["Laburnum BC"]
["Lakeland CC"]
["Lancaster & District CC"]
["Leaping Frogs"]
["Lee Valley PC"]
["Leeds CC"]
["Leithen Water Paddlers"]
["Lisburn City Paddlers"]
["Liverpool CC"]
["Liverpool CC"]
["Llandovery CC"]
["Llandysul Paddlers"]
["Llangollen CC"]
["Llanrwst CC"]
["Lloyds Register"]
["Loch Centre CC"]
["Loughborough CC"]
["Loughborough University"]
["Lower Wharfe CC"]
["LSCC"]
["M W Sport"]
["Macclesfield CC"]
["Mad Paddlers"]
["Malton & Norton CC"]
["Manchester CC"]
["Manchester University CC"]
["Manvers WBC"]
["Market Harborough Sea Cadets"]
["Matlock CC"]
["Meridian CC"]
["Mid-Ulster C&K"]
["Midland CC"]
["Millfield School"]
["Mold CC"]
["Monmouth School"]
["Moray House"]
["Morpeth CC"]
["Mount Sackville Ireland"]
["Narberth CC"]
["NELO"]
["Newbury CC"]
["Newcastle University CC"]
["Ninebanks CC"]
["Nomad"]
["North Wales Slalom"]
["Northampton C&KC"]
["Nottingham KC"]
["Nottingham Surf Club"]
["Nottingham Trent University"]
["Packers CC"]
["Paddle Monsters"]
["Paddle Peak"]
["Paddle Plus"]
["Paignton CC"]
["Peak UK"]
["Peak UK / Gpower / Vajda"]
["Peebles Kayak Club"]
["Pennine CRC"]
["Performance1"]
["Perth CC"]
["Phoenix CC"]
["Pinkston Panthers"]
["Pirates CC"]
["Plas y Brenin"]
["Pleasley CC"]
["Poole Harbour CC"]
["Proteus CC"]
["Queens College Taunton"]
["RAFCA"]
["Rapid Talent"]
["Reading CC"]
["RGC"]
["Rhondda Paddlers"]
["Ribble CC"]
["Ribbontail Paddlers"]
["Roker CC"]
["Royal Air Force"]
["Royal Leamington Spa CC"]
["Royal Navy Kayak Association"]
["Rugby CC"]
["Sacile CC"]
["Salisbury CC"]
["SCOTS"]
["Selkirk CC"]
["Seren D&#373;r"]
["Sharnbrook Upper School"]
["Sheffield CC"]
["Sheffield City KC"]
["Sheffield Hallam"]
["Sheffield University"]
["Shepperton SCC"]
["Shrewsbury CC"]
["Shropshire Paddlesport"]
["Slalom UK"]
["Snowdonia CC"]
["Snowdonia Slalom Eryri"]
["SOC"]
["South Avon CC"]
["Southampton University Canoe Polo"]
["Spexhall CC"]
["Spring Valley Paddlers"]
["Square Rock"]
["St Albans & Hertsmere CC"]
["Stafford & Stone CC"]
["Stirling & Falkirk CC"]
["Stockton & Thornaby CC"]
["Stourbridge Arm CC"]
["Strathallan CC"]
["Stroud Valley CC"]
["Sunderland CC"]
["Sutton Bingham & District CC"]
["Sutton Bingham CC"]
["Swaledale Outdoor Club"]
["Swansea University CC"]
["Tandridge Blades"]
["Taunton CC"]
["Taunton Scouts"]
["Team HF"]
["Team Spittal"]
["Tees Tigers"]
["Teifi Valley Paddlers"]
["Telford CC"]
["Thamesway CC"]
["The Sharks"]
["Time to Change"]
["Trim Canoe Club"]
["Trowbridge CC"]
["Tyne Valley CC"]
["Ulster University"]
["Ulster University Coleraine"]
["Undefined"]
["University of Hertfordshire CC"]
["Unknown"]
["Upper Hamble CC"]
["Urchins KC"]
["Viking KC"]
["Warrington CC"]
["Waterside CC"]
["West Lothian CC"]
["West Reservoir CC"]
["West Yorkshire CC"]
["Westminster BB"]
["Wey KC"]
["White Rose CC"]
["White Water Active"]
["Whitewater Action Medway"]
["Wild Water KC"]
["Wild Water KC"]
["Wiltshire Youth CC"]
["Winchester & District CC"]
["Windermere"]
["Windermere CC"]
["Windsor & District CC"]
["Woodsetton CC"]
["Worcester CC"]
["Wychavon KCC"]
["Wyedean CC"]
["Yat Racers"]
["York University CC"]
["Yorkshire Slalom"]
["Zipfit"]

{"sheet":"PrizesSetup","index":14,"n_rows":40,"n_cols":19,"rows_kept":40,"cut":false,"hidden":true,"merged":[[1,1,1,13],[2,1,2,10],[2,11,2,13]]}
[null,null,null,null,null,null,null,null,null,null,null,null,null,null,null,null,null,null,"X"]
[null,"Prize Allocation"]
[null,"Place an \"X\" against each Event/Prize to populate the Prizes worksheet when results are generated. \nPress Continue button to return to main menu."]
[null,"Division","Event","1st","2nd","3rd","U23","J18","J16","J14","J12","J10","S","M"]
[null,"Prem","PREM K1M","X","X","X","X","X","X",null,null,null,null,null,null,null,null,null,"X"]
[null,"Prem","PREM C1M","X","X","X","X","X","X"]
[null,"Prem","PREM K1W","X","X","X","X","X","X"]
[null,"Prem","PREM C1W","X","X","X","X","X","X"]
[null,"Div1","DIV 1 K1M","X","X","X","X","X","X"]
[null,"Div1","DIV 1 C1M","X","X","X","X","X","X"]
[null,"Div1","DIV 1 K1W","X","X","X","X","X","X"]
[null,"Div1","DIV 1 C1W","X","X","X","X","X","X"]
[null,"Div2","DIV 2 K1M","X","X","X","X","X","X","X"]
[null,"Div2","DIV 2 C1M","X","X","X","X","X","X","X"]
[null,"Div2","DIV 2 K1W","X","X","X","X","X","X","X"]
[null,"Div2","DIV 2 C1W","X","X","X","X","X","X","X"]
[null,"Div3","DIV 3 K1M","X","X","X","X","X","X","X","X"]
[null,"Div3","DIV 3 C1M","X","X","X","X","X","X","X","X"]
[null,"Div3","DIV 3 K1W","X","X","X","X","X","X","X","X"]
[null,"Div3","DIV 3 C1W","X","X","X","X","X","X","X","X"]
[null,"Div4","DIV 4 K1M","X","X","X"]
[null,"Div4","DIV 4 C1M","X","X","X"]
[null,"Div4","DIV 4 K1W","X","X","X"]
[null,"Div4","DIV 4 C1W","X","X","X"]
[null,"Open","OPEN K1M","X","X","X"]
[null,"Open","OPEN C1M","X","X","X"]
[null,"Open","OPEN K1W","X","X","X"]
[null,"Open","OPEN C1W","X","X","X"]
[null,"Open","OPEN C2","X","X","X"]
[null,"Vet","VET K1M","X"]
[null,"Vet","VET K1W","X"]
[null,"Vet","VET C1M","X"]
[null,"Vet","VET C1W","X"]
[null,"C2","PREM-3 C2","X","X","X"]
[null,"C2","PREM-3 C2S","X","X","X"]
[null,"TEAM","DIV 1 TEAMS","x"]
[null,"TEAM","DIV 2 TEAMS","x"]
[null,"TEAM","DIV 3 TEAMS","x"]
[null,"TEAM","DIV 4 TEAMS","X"]
[null,"Offs","OFFICIALS","X","X","X"]